Body Name,Body,Date,Department,Beneficiary,Summary of Purpose (SeRCOP),Amount SUM,Merchant Code,Transaction Number,Supplier ID
Sandwell Metropolitan Borough Council,http://www.sandwell.gov.uk/info/200202/performance_and_spending/1079/payments_over_500,01-Feb-2024,Adults Social Care Capital,PR PROPERTY MAINTENANCE,Adults Social Care Capital,15566.60,Deferred Charges/Grant Payments,2324P11_CR00001,33836
Sandwell Metropolitan Borough Council,http://www.sandwell.gov.uk/info/200202/performance_and_spending/1079/payments_over_500,01-Feb-2024,Adults Social Care Capital,PREMIER MOBILITY UK LTD,Adults Social Care Capital,4659.35,Deferred Charges/Grant Payments,2324P11_CR00002,167259
Sandwell Metropolitan Borough Council,http://www.sandwell.gov.uk/info/200202/performance_and_spending/1079/payments_over_500,01-Feb-2024,Adults Social Care Capital,PREMIER MOBILITY UK LTD,Adults Social Care Capital,2552.69,Deferred Charges/Grant Payments,2324P11_CR00003,167259
Sandwell Metropolitan Borough Council,http://www.sandwell.gov.uk/info/200202/performance_and_spending/1079/payments_over_500,01-Feb-2024,Adults Social Care Capital,PREMIER MOBILITY UK LTD,Adults Social Care Capital,2152.69,Deferred Charges/Grant Payments,2324P11_CR00004,167259
Sandwell Metropolitan Borough Council,http://www.sandwell.gov.uk/info/200202/performance_and_spending/1079/payments_over_500,01-Feb-2024,Adults Social Care Capital,PREMIER MOBILITY UK LTD,Adults Social Care Capital,2443.41,Deferred Charges/Grant Payments,2324P11_CR00005,167259
Sandwell Metropolitan Borough Council,http://www.sandwell.gov.uk/info/200202/performance_and_spending/1079/payments_over_500,01-Feb-2024,Adults Social Care Capital,PREMIER MOBILITY UK LTD,Adults Social Care Capital,3965.43,Deferred Charges/Grant Payments,2324P11_CR00006,167259
Sandwell Metropolitan Borough Council,http://www.sandwell.gov.uk/info/200202/performance_and_spending/1079/payments_over_500,01-Feb-2024,Adults Social Care Capital,PREMIER MOBILITY UK LTD,Adults Social Care Capital,3857.79,Deferred Charges/Grant Payments,2324P11_CR00007,167259
Sandwell Metropolitan Borough Council,http://www.sandwell.gov.uk/info/200202/performance_and_spending/1079/payments_over_500,04-Feb-2024,Adults Social Care Capital,DESIGN SYNTAX LIMITED,Adults Social Care Capital,29593.20,Deferred Charges/Grant Payments,2324P11_CR00008,106226
Sandwell Metropolitan Borough Council,http://www.sandwell.gov.uk/info/200202/performance_and_spending/1079/payments_over_500,01-Feb-2024,Adults Social Care Capital,EASIBATHE LTD,Adults Social Care Capital,6398.08,Deferred Charges/Grant Payments,2324P11_CR00009,46096
Sandwell Metropolitan Borough Council,http://www.sandwell.gov.uk/info/200202/performance_and_spending/1079/payments_over_500,15-Feb-2024,Adults Social Care Capital,HOME DESIGN,Adults Social Care Capital,10000.00,Deferred Charges/Grant Payments,2324P11_CR00010,141847
Sandwell Metropolitan Borough Council,http://www.sandwell.gov.uk/info/200202/performance_and_spending/1079/payments_over_500,06-Feb-2024,Adults Social Care Capital,JOHN GILLESPIE CONTRACTORS LTD,Adults Social Care Capital,10749.65,Deferred Charges/Grant Payments,2324P11_CR00011,82566
Sandwell Metropolitan Borough Council,http://www.sandwell.gov.uk/info/200202/performance_and_spending/1079/payments_over_500,08-Feb-2024,Adults Social Care Capital,PR BUILDING SERVICES,Adults Social Care Capital,3401.33,Deferred Charges/Grant Payments,2324P11_CR00012,167483
Sandwell Metropolitan Borough Council,http://www.sandwell.gov.uk/info/200202/performance_and_spending/1079/payments_over_500,01-Feb-2024,Adults Social Care Capital,PR PROPERTY MAINTENANCE,Adults Social Care Capital,670.45,Deferred Charges/Grant Payments,2324P11_CR00013,33836
Sandwell Metropolitan Borough Council,http://www.sandwell.gov.uk/info/200202/performance_and_spending/1079/payments_over_500,01-Feb-2024,Adults Social Care Capital,PR PROPERTY MAINTENANCE,Adults Social Care Capital,670.45,Deferred Charges/Grant Payments,2324P11_CR00014,33836
Sandwell Metropolitan Borough Council,http://www.sandwell.gov.uk/info/200202/performance_and_spending/1079/payments_over_500,01-Feb-2024,Adults Social Care Capital,PR PROPERTY MAINTENANCE,Adults Social Care Capital,670.45,Deferred Charges/Grant Payments,2324P11_CR00015,33836
Sandwell Metropolitan Borough Council,http://www.sandwell.gov.uk/info/200202/performance_and_spending/1079/payments_over_500,16-Feb-2024,Adults Social Care Capital,TDF DESIGN LIMITED,Adults Social Care Capital,12500.00,Deferred Charges/Grant Payments,2324P11_CR00016,10320
Sandwell Metropolitan Borough Council,http://www.sandwell.gov.uk/info/200202/performance_and_spending/1079/payments_over_500,08-Feb-2024,Adults Social Care Capital,TDF DESIGN LIMITED,Adults Social Care Capital,10000.00,Deferred Charges/Grant Payments,2324P11_CR00017,10320
Sandwell Metropolitan Borough Council,http://www.sandwell.gov.uk/info/200202/performance_and_spending/1079/payments_over_500,01-Feb-2024,Adults Social Care Capital,REDACTED PERSONAL DATA,Adults Social Care Capital,10257.00,Deferred Charges/Grant Payments,2324P11_CR00018,REDACTED PERSONAL DATA
Sandwell Metropolitan Borough Council,http://www.sandwell.gov.uk/info/200202/performance_and_spending/1079/payments_over_500,21-Feb-2024,Adults Social Care Capital,LIFT & ENGINEERING SERVICES LTD,Adults Social Care Capital,11619.54,"CIP - New Construction,Conversion, Enhancement & Reno",2324P11_CR00019,77003962
Sandwell Metropolitan Borough Council,http://www.sandwell.gov.uk/info/200202/performance_and_spending/1079/payments_over_500,01-Feb-2024,Childrens Services,ALEX STYLES PHOTOGRAPHY LTD,Childrens Services,850.00,Advertising & Publicity,2324P11_CR00020,166978
Sandwell Metropolitan Borough Council,http://www.sandwell.gov.uk/info/200202/performance_and_spending/1079/payments_over_500,01-Feb-2024,Childrens Services,ALLPAY LIMITED,Childrens Services,1353.60,Contract Payments,2324P11_CR00021,111177
Sandwell Metropolitan Borough Council,http://www.sandwell.gov.uk/info/200202/performance_and_spending/1079/payments_over_500,01-Feb-2024,Childrens Services,APD PRINT & DESIGN,Childrens Services,900.00,"Printing, Stationery & General Office Expenses",2324P11_CR00022,49454
Sandwell Metropolitan Borough Council,http://www.sandwell.gov.uk/info/200202/performance_and_spending/1079/payments_over_500,01-Feb-2024,Childrens Services,APD PRINT & DESIGN,Childrens Services,910.00,"Printing, Stationery & General Office Expenses",2324P11_CR00023,49454
Sandwell Metropolitan Borough Council,http://www.sandwell.gov.uk/info/200202/performance_and_spending/1079/payments_over_500,01-Feb-2024,Childrens Services,APD PRINT & DESIGN,Childrens Services,635.00,"Printing, Stationery & General Office Expenses",2324P11_CR00024,49454
Sandwell Metropolitan Borough Council,http://www.sandwell.gov.uk/info/200202/performance_and_spending/1079/payments_over_500,01-Feb-2024,Childrens Services,APD PRINT & DESIGN,Childrens Services,950.00,"Printing, Stationery & General Office Expenses",2324P11_CR00025,49454
Sandwell Metropolitan Borough Council,http://www.sandwell.gov.uk/info/200202/performance_and_spending/1079/payments_over_500,01-Feb-2024,Childrens Services,APD PRINT & DESIGN,Childrens Services,980.00,"Printing, Stationery & General Office Expenses",2324P11_CR00026,49454
Sandwell Metropolitan Borough Council,http://www.sandwell.gov.uk/info/200202/performance_and_spending/1079/payments_over_500,01-Feb-2024,Childrens Services,APD PRINT & DESIGN,Childrens Services,950.00,"Printing, Stationery & General Office Expenses",2324P11_CR00027,49454
Sandwell Metropolitan Borough Council,http://www.sandwell.gov.uk/info/200202/performance_and_spending/1079/payments_over_500,01-Feb-2024,Childrens Services,APD PRINT & DESIGN,Childrens Services,720.00,"Printing, Stationery & General Office Expenses",2324P11_CR00028,49454
Sandwell Metropolitan Borough Council,http://www.sandwell.gov.uk/info/200202/performance_and_spending/1079/payments_over_500,01-Feb-2024,Childrens Services,AVANTI GAS LIMITED,Childrens Services,1710.06,Gas,2324P11_CR00029,60069
Sandwell Metropolitan Borough Council,http://www.sandwell.gov.uk/info/200202/performance_and_spending/1079/payments_over_500,01-Feb-2024,Childrens Services,AVANTI GAS LIMITED,Childrens Services,2110.84,Gas,2324P11_CR00030,60069
Sandwell Metropolitan Borough Council,http://www.sandwell.gov.uk/info/200202/performance_and_spending/1079/payments_over_500,01-Feb-2024,Childrens Services,BCH PROPERTY LIMITED,Childrens Services,1166.76,Rents,2324P11_CR00031,01011861
Sandwell Metropolitan Borough Council,http://www.sandwell.gov.uk/info/200202/performance_and_spending/1079/payments_over_500,01-Feb-2024,Childrens Services,BCH PROPERTY LIMITED,Childrens Services,1283.52,Rents,2324P11_CR00032,01011861
Sandwell Metropolitan Borough Council,http://www.sandwell.gov.uk/info/200202/performance_and_spending/1079/payments_over_500,01-Feb-2024,Childrens Services,BCH PROPERTY LIMITED,Childrens Services,1283.52,Rents,2324P11_CR00033,01011861
Sandwell Metropolitan Borough Council,http://www.sandwell.gov.uk/info/200202/performance_and_spending/1079/payments_over_500,01-Feb-2024,Childrens Services,BCH PROPERTY LIMITED,Childrens Services,1283.52,Rents,2324P11_CR00034,01011861
Sandwell Metropolitan Borough Council,http://www.sandwell.gov.uk/info/200202/performance_and_spending/1079/payments_over_500,01-Feb-2024,Childrens Services,BCH PROPERTY LIMITED,Childrens Services,1283.52,Rents,2324P11_CR00035,01011861
Sandwell Metropolitan Borough Council,http://www.sandwell.gov.uk/info/200202/performance_and_spending/1079/payments_over_500,01-Feb-2024,Childrens Services,BCH PROPERTY LIMITED,Childrens Services,933.52,Rents,2324P11_CR00036,01011861
Sandwell Metropolitan Borough Council,http://www.sandwell.gov.uk/info/200202/performance_and_spending/1079/payments_over_500,01-Feb-2024,Childrens Services,BCH PROPERTY LIMITED,Childrens Services,1568.00,Rents,2324P11_CR00037,01011861
Sandwell Metropolitan Borough Council,http://www.sandwell.gov.uk/info/200202/performance_and_spending/1079/payments_over_500,01-Feb-2024,Childrens Services,BCH PROPERTY LIMITED,Childrens Services,1568.00,Rents,2324P11_CR00038,01011861
Sandwell Metropolitan Borough Council,http://www.sandwell.gov.uk/info/200202/performance_and_spending/1079/payments_over_500,01-Feb-2024,Childrens Services,BCH PROPERTY LIMITED,Childrens Services,1166.76,Rents,2324P11_CR00039,01011861
Sandwell Metropolitan Borough Council,http://www.sandwell.gov.uk/info/200202/performance_and_spending/1079/payments_over_500,01-Feb-2024,Childrens Services,BCH PROPERTY LIMITED,Childrens Services,1568.00,Rents,2324P11_CR00040,01011861
Sandwell Metropolitan Borough Council,http://www.sandwell.gov.uk/info/200202/performance_and_spending/1079/payments_over_500,01-Feb-2024,Childrens Services,BCH PROPERTY LIMITED,Childrens Services,1568.00,Rents,2324P11_CR00041,01011861
Sandwell Metropolitan Borough Council,http://www.sandwell.gov.uk/info/200202/performance_and_spending/1079/payments_over_500,01-Feb-2024,Childrens Services,BCH PROPERTY LIMITED,Childrens Services,1568.00,Rents,2324P11_CR00042,01011861
Sandwell Metropolitan Borough Council,http://www.sandwell.gov.uk/info/200202/performance_and_spending/1079/payments_over_500,01-Feb-2024,Childrens Services,BCH PROPERTY LIMITED,Childrens Services,1568.00,Rents,2324P11_CR00043,01011861
Sandwell Metropolitan Borough Council,http://www.sandwell.gov.uk/info/200202/performance_and_spending/1079/payments_over_500,01-Feb-2024,Childrens Services,BCH PROPERTY LIMITED,Childrens Services,933.52,Rents,2324P11_CR00044,01011861
Sandwell Metropolitan Borough Council,http://www.sandwell.gov.uk/info/200202/performance_and_spending/1079/payments_over_500,01-Feb-2024,Childrens Services,BCH PROPERTY LIMITED,Childrens Services,933.52,Rents,2324P11_CR00045,01011861
Sandwell Metropolitan Borough Council,http://www.sandwell.gov.uk/info/200202/performance_and_spending/1079/payments_over_500,01-Feb-2024,Childrens Services,BCH PROPERTY LIMITED,Childrens Services,1283.52,Rents,2324P11_CR00046,01011861
Sandwell Metropolitan Borough Council,http://www.sandwell.gov.uk/info/200202/performance_and_spending/1079/payments_over_500,01-Feb-2024,Childrens Services,BCH PROPERTY LIMITED,Childrens Services,1283.52,Rents,2324P11_CR00047,01011861
Sandwell Metropolitan Borough Council,http://www.sandwell.gov.uk/info/200202/performance_and_spending/1079/payments_over_500,01-Feb-2024,Childrens Services,BCH PROPERTY LIMITED,Childrens Services,1283.52,Rents,2324P11_CR00048,01011861
Sandwell Metropolitan Borough Council,http://www.sandwell.gov.uk/info/200202/performance_and_spending/1079/payments_over_500,01-Feb-2024,Childrens Services,BCH PROPERTY LIMITED,Childrens Services,1283.52,Rents,2324P11_CR00049,01011861
Sandwell Metropolitan Borough Council,http://www.sandwell.gov.uk/info/200202/performance_and_spending/1079/payments_over_500,01-Feb-2024,Childrens Services,BCH PROPERTY LIMITED,Childrens Services,687.60,Rents,2324P11_CR00050,01011861
Sandwell Metropolitan Borough Council,http://www.sandwell.gov.uk/info/200202/performance_and_spending/1079/payments_over_500,01-Feb-2024,Childrens Services,BCH PROPERTY LIMITED,Childrens Services,1283.52,Rents,2324P11_CR00051,01011861
Sandwell Metropolitan Borough Council,http://www.sandwell.gov.uk/info/200202/performance_and_spending/1079/payments_over_500,01-Feb-2024,Childrens Services,BCH PROPERTY LIMITED,Childrens Services,1283.52,Rents,2324P11_CR00052,01011861
Sandwell Metropolitan Borough Council,http://www.sandwell.gov.uk/info/200202/performance_and_spending/1079/payments_over_500,01-Feb-2024,Childrens Services,BCH PROPERTY LIMITED,Childrens Services,1750.00,Rents,2324P11_CR00053,01011861
Sandwell Metropolitan Borough Council,http://www.sandwell.gov.uk/info/200202/performance_and_spending/1079/payments_over_500,01-Feb-2024,Childrens Services,BCH PROPERTY LIMITED,Childrens Services,1166.76,Rents,2324P11_CR00054,01011861
Sandwell Metropolitan Borough Council,http://www.sandwell.gov.uk/info/200202/performance_and_spending/1079/payments_over_500,01-Feb-2024,Childrens Services,BEACON CENTRE FOR THE BLIND      ,Childrens Services,6437.59,Grants,2324P11_CR00055,53331
Sandwell Metropolitan Borough Council,http://www.sandwell.gov.uk/info/200202/performance_and_spending/1079/payments_over_500,01-Feb-2024,Childrens Services,BEACON CENTRE FOR THE BLIND                    ,Childrens Services,6437.59,Grants,2324P11_CR00056,53331
Sandwell Metropolitan Borough Council,http://www.sandwell.gov.uk/info/200202/performance_and_spending/1079/payments_over_500,01-Feb-2024,Childrens Services,BEECHWOOD TREES & LANDSCAPE LTD,Childrens Services,1200.00,Grounds Maintenance & Improvements,2324P11_CR00057,93287
Sandwell Metropolitan Borough Council,http://www.sandwell.gov.uk/info/200202/performance_and_spending/1079/payments_over_500,01-Feb-2024,Childrens Services,BLACK COUNTRY HEALTHCARE NHS FT,Childrens Services,1350.00,SH Payments,2324P11_CR00058,166658
Sandwell Metropolitan Borough Council,http://www.sandwell.gov.uk/info/200202/performance_and_spending/1079/payments_over_500,01-Feb-2024,Childrens Services,BURTECH CYF,Childrens Services,670.00,Materials & Consumables,2324P11_CR00059,55031
Sandwell Metropolitan Borough Council,http://www.sandwell.gov.uk/info/200202/performance_and_spending/1079/payments_over_500,01-Feb-2024,Childrens Services,CALOR GAS LTD,Childrens Services,1535.96,Gas,2324P11_CR00060,01562564
Sandwell Metropolitan Borough Council,http://www.sandwell.gov.uk/info/200202/performance_and_spending/1079/payments_over_500,01-Feb-2024,Childrens Services,COMMUNITIES IN SYNC,Childrens Services,6775.16,Grants,2324P11_CR00061,137123
Sandwell Metropolitan Borough Council,http://www.sandwell.gov.uk/info/200202/performance_and_spending/1079/payments_over_500,01-Feb-2024,Childrens Services,COMMUNITIES IN SYNC,Childrens Services,7756.23,Grants,2324P11_CR00062,137123
Sandwell Metropolitan Borough Council,http://www.sandwell.gov.uk/info/200202/performance_and_spending/1079/payments_over_500,01-Feb-2024,Childrens Services,COMMUNITIES IN SYNC,Childrens Services,6857.65,Grants,2324P11_CR00063,137123
Sandwell Metropolitan Borough Council,http://www.sandwell.gov.uk/info/200202/performance_and_spending/1079/payments_over_500,09-Feb-2024,Childrens Services,COUNTY CARS (2003) LIMITED,Childrens Services,303742.07,Public Transport,2324P11_CR00064,06002387
Sandwell Metropolitan Borough Council,http://www.sandwell.gov.uk/info/200202/performance_and_spending/1079/payments_over_500,09-Feb-2024,Childrens Services,COUNTY CARS (2003) LIMITED,Childrens Services,329523.47,Public Transport,2324P11_CR00065,06002387
Sandwell Metropolitan Borough Council,http://www.sandwell.gov.uk/info/200202/performance_and_spending/1079/payments_over_500,09-Feb-2024,Childrens Services,COUNTY CARS (2003) LIMITED,Childrens Services,281279.33,Public Transport,2324P11_CR00066,06002387
Sandwell Metropolitan Borough Council,http://www.sandwell.gov.uk/info/200202/performance_and_spending/1079/payments_over_500,09-Feb-2024,Childrens Services,COUNTY CARS (2003) LIMITED,Childrens Services,26705.11,Public Transport,2324P11_CR00067,06002387
Sandwell Metropolitan Borough Council,http://www.sandwell.gov.uk/info/200202/performance_and_spending/1079/payments_over_500,09-Feb-2024,Childrens Services,COUNTY CARS (2003) LIMITED,Childrens Services,30278.54,Public Transport,2324P11_CR00068,06002387
Sandwell Metropolitan Borough Council,http://www.sandwell.gov.uk/info/200202/performance_and_spending/1079/payments_over_500,09-Feb-2024,Childrens Services,COUNTY CARS (2003) LIMITED,Childrens Services,28366.04,Public Transport,2324P11_CR00069,06002387
Sandwell Metropolitan Borough Council,http://www.sandwell.gov.uk/info/200202/performance_and_spending/1079/payments_over_500,09-Feb-2024,Childrens Services,COUNTY CARS (2003) LIMITED,Childrens Services,23585.12,Public Transport,2324P11_CR00070,06002387
Sandwell Metropolitan Borough Council,http://www.sandwell.gov.uk/info/200202/performance_and_spending/1079/payments_over_500,09-Feb-2024,Childrens Services,COUNTY CARS (2003) LIMITED,Childrens Services,70905.39,Public Transport,2324P11_CR00071,06002387
Sandwell Metropolitan Borough Council,http://www.sandwell.gov.uk/info/200202/performance_and_spending/1079/payments_over_500,09-Feb-2024,Childrens Services,COUNTY CARS (2003) LIMITED,Childrens Services,99590.28,Public Transport,2324P11_CR00072,06002387
Sandwell Metropolitan Borough Council,http://www.sandwell.gov.uk/info/200202/performance_and_spending/1079/payments_over_500,01-Feb-2024,Childrens Services,COUNTY CARS (2003) LIMITED,Childrens Services,107381.84,Public Transport,2324P11_CR00073,06002387
Sandwell Metropolitan Borough Council,http://www.sandwell.gov.uk/info/200202/performance_and_spending/1079/payments_over_500,01-Feb-2024,Childrens Services,COUNTY CARS (2003) LIMITED,Childrens Services,107951.78,Public Transport,2324P11_CR00074,06002387
Sandwell Metropolitan Borough Council,http://www.sandwell.gov.uk/info/200202/performance_and_spending/1079/payments_over_500,01-Feb-2024,Childrens Services,COUNTY CARS (2003) LIMITED,Childrens Services,106491.82,Public Transport,2324P11_CR00075,06002387
Sandwell Metropolitan Borough Council,http://www.sandwell.gov.uk/info/200202/performance_and_spending/1079/payments_over_500,01-Feb-2024,Childrens Services,COUNTY CARS (2003) LIMITED,Childrens Services,90221.18,Public Transport,2324P11_CR00076,06002387
Sandwell Metropolitan Borough Council,http://www.sandwell.gov.uk/info/200202/performance_and_spending/1079/payments_over_500,01-Feb-2024,Childrens Services,COUNTY CARS (2003) LIMITED,Childrens Services,72352.03,Public Transport,2324P11_CR00077,06002387
Sandwell Metropolitan Borough Council,http://www.sandwell.gov.uk/info/200202/performance_and_spending/1079/payments_over_500,01-Feb-2024,Childrens Services,COUNTY CARS (2003) LIMITED,Childrens Services,85918.04,Public Transport,2324P11_CR00078,06002387
Sandwell Metropolitan Borough Council,http://www.sandwell.gov.uk/info/200202/performance_and_spending/1079/payments_over_500,01-Feb-2024,Childrens Services,COUNTY CARS (2003) LIMITED,Childrens Services,90440.04,Public Transport,2324P11_CR00079,06002387
Sandwell Metropolitan Borough Council,http://www.sandwell.gov.uk/info/200202/performance_and_spending/1079/payments_over_500,01-Feb-2024,Childrens Services,COUNTY CARS (2003) LIMITED,Childrens Services,80254.04,Public Transport,2324P11_CR00080,06002387
Sandwell Metropolitan Borough Council,http://www.sandwell.gov.uk/info/200202/performance_and_spending/1079/payments_over_500,01-Feb-2024,Childrens Services,COUNTY CARS (2003) LIMITED,Childrens Services,16425.00,Public Transport,2324P11_CR00081,06002387
Sandwell Metropolitan Borough Council,http://www.sandwell.gov.uk/info/200202/performance_and_spending/1079/payments_over_500,01-Feb-2024,Childrens Services,CUSTODIAN GROUP LTD,Childrens Services,630.00,Rents,2324P11_CR00082,151637
Sandwell Metropolitan Borough Council,http://www.sandwell.gov.uk/info/200202/performance_and_spending/1079/payments_over_500,01-Feb-2024,Childrens Services,CUSTODIAN GROUP LTD,Childrens Services,630.00,Rents,2324P11_CR00083,151637
Sandwell Metropolitan Borough Council,http://www.sandwell.gov.uk/info/200202/performance_and_spending/1079/payments_over_500,01-Feb-2024,Childrens Services,CUSTODIAN GROUP LTD,Childrens Services,630.00,Rents,2324P11_CR00084,151637
Sandwell Metropolitan Borough Council,http://www.sandwell.gov.uk/info/200202/performance_and_spending/1079/payments_over_500,01-Feb-2024,Childrens Services,CUSTODIAN GROUP LTD,Childrens Services,630.00,Rents,2324P11_CR00085,151637
Sandwell Metropolitan Borough Council,http://www.sandwell.gov.uk/info/200202/performance_and_spending/1079/payments_over_500,01-Feb-2024,Childrens Services,CUSTODIAN GROUP LTD,Childrens Services,630.00,Rents,2324P11_CR00086,151637
Sandwell Metropolitan Borough Council,http://www.sandwell.gov.uk/info/200202/performance_and_spending/1079/payments_over_500,01-Feb-2024,Childrens Services,CUSTODIAN GROUP LTD,Childrens Services,630.00,Rents,2324P11_CR00087,151637
Sandwell Metropolitan Borough Council,http://www.sandwell.gov.uk/info/200202/performance_and_spending/1079/payments_over_500,01-Feb-2024,Childrens Services,CUSTODIAN GROUP LTD,Childrens Services,630.00,Rents,2324P11_CR00088,151637
Sandwell Metropolitan Borough Council,http://www.sandwell.gov.uk/info/200202/performance_and_spending/1079/payments_over_500,01-Feb-2024,Childrens Services,CUSTODIAN GROUP LTD,Childrens Services,630.00,Rents,2324P11_CR00089,151637
Sandwell Metropolitan Borough Council,http://www.sandwell.gov.uk/info/200202/performance_and_spending/1079/payments_over_500,01-Feb-2024,Childrens Services,CUSTODIAN GROUP LTD,Childrens Services,630.00,Rents,2324P11_CR00090,151637
Sandwell Metropolitan Borough Council,http://www.sandwell.gov.uk/info/200202/performance_and_spending/1079/payments_over_500,01-Feb-2024,Childrens Services,CUSTODIAN GROUP LTD,Childrens Services,630.00,Rents,2324P11_CR00091,151637
Sandwell Metropolitan Borough Council,http://www.sandwell.gov.uk/info/200202/performance_and_spending/1079/payments_over_500,01-Feb-2024,Childrens Services,CUSTODIAN GROUP LTD,Childrens Services,630.00,Rents,2324P11_CR00092,151637
Sandwell Metropolitan Borough Council,http://www.sandwell.gov.uk/info/200202/performance_and_spending/1079/payments_over_500,01-Feb-2024,Childrens Services,CUSTODIAN GROUP LTD,Childrens Services,630.00,Rents,2324P11_CR00093,151637
Sandwell Metropolitan Borough Council,http://www.sandwell.gov.uk/info/200202/performance_and_spending/1079/payments_over_500,01-Feb-2024,Childrens Services,CUSTODIAN GROUP LTD,Childrens Services,630.00,Rents,2324P11_CR00094,151637
Sandwell Metropolitan Borough Council,http://www.sandwell.gov.uk/info/200202/performance_and_spending/1079/payments_over_500,01-Feb-2024,Childrens Services,CUSTODIAN GROUP LTD,Childrens Services,630.00,Rents,2324P11_CR00095,151637
Sandwell Metropolitan Borough Council,http://www.sandwell.gov.uk/info/200202/performance_and_spending/1079/payments_over_500,01-Feb-2024,Childrens Services,CUSTODIAN GROUP LTD,Childrens Services,630.00,Rents,2324P11_CR00096,151637
Sandwell Metropolitan Borough Council,http://www.sandwell.gov.uk/info/200202/performance_and_spending/1079/payments_over_500,01-Feb-2024,Childrens Services,CUSTODIAN GROUP LTD,Childrens Services,630.00,Rents,2324P11_CR00097,151637
Sandwell Metropolitan Borough Council,http://www.sandwell.gov.uk/info/200202/performance_and_spending/1079/payments_over_500,01-Feb-2024,Childrens Services,CUSTODIAN GROUP LTD,Childrens Services,630.00,Rents,2324P11_CR00098,151637
Sandwell Metropolitan Borough Council,http://www.sandwell.gov.uk/info/200202/performance_and_spending/1079/payments_over_500,01-Feb-2024,Childrens Services,CUSTODIAN GROUP LTD,Childrens Services,630.00,Rents,2324P11_CR00099,151637
Sandwell Metropolitan Borough Council,http://www.sandwell.gov.uk/info/200202/performance_and_spending/1079/payments_over_500,01-Feb-2024,Childrens Services,CUSTODIAN GROUP LTD,Childrens Services,630.00,Rents,2324P11_CR00100,151637
Sandwell Metropolitan Borough Council,http://www.sandwell.gov.uk/info/200202/performance_and_spending/1079/payments_over_500,01-Feb-2024,Childrens Services,CUSTODIAN GROUP LTD,Childrens Services,630.00,Rents,2324P11_CR00101,151637
Sandwell Metropolitan Borough Council,http://www.sandwell.gov.uk/info/200202/performance_and_spending/1079/payments_over_500,01-Feb-2024,Childrens Services,CUSTODIAN GROUP LTD,Childrens Services,630.00,Rents,2324P11_CR00102,151637
Sandwell Metropolitan Borough Council,http://www.sandwell.gov.uk/info/200202/performance_and_spending/1079/payments_over_500,01-Feb-2024,Childrens Services,CUSTODIAN GROUP LTD,Childrens Services,630.00,Rents,2324P11_CR00103,151637
Sandwell Metropolitan Borough Council,http://www.sandwell.gov.uk/info/200202/performance_and_spending/1079/payments_over_500,01-Feb-2024,Childrens Services,CUSTODIAN GROUP LTD,Childrens Services,630.00,Rents,2324P11_CR00104,151637
Sandwell Metropolitan Borough Council,http://www.sandwell.gov.uk/info/200202/performance_and_spending/1079/payments_over_500,01-Feb-2024,Childrens Services,CUSTODIAN GROUP LTD,Childrens Services,630.00,Rents,2324P11_CR00105,151637
Sandwell Metropolitan Borough Council,http://www.sandwell.gov.uk/info/200202/performance_and_spending/1079/payments_over_500,01-Feb-2024,Childrens Services,CUSTODIAN GROUP LTD,Childrens Services,630.00,Rents,2324P11_CR00106,151637
Sandwell Metropolitan Borough Council,http://www.sandwell.gov.uk/info/200202/performance_and_spending/1079/payments_over_500,01-Feb-2024,Childrens Services,CUSTODIAN GROUP LTD,Childrens Services,630.00,Rents,2324P11_CR00107,151637
Sandwell Metropolitan Borough Council,http://www.sandwell.gov.uk/info/200202/performance_and_spending/1079/payments_over_500,01-Feb-2024,Childrens Services,CUSTODIAN GROUP LTD,Childrens Services,630.00,Rents,2324P11_CR00108,151637
Sandwell Metropolitan Borough Council,http://www.sandwell.gov.uk/info/200202/performance_and_spending/1079/payments_over_500,01-Feb-2024,Childrens Services,CUSTODIAN GROUP LTD,Childrens Services,630.00,Rents,2324P11_CR00109,151637
Sandwell Metropolitan Borough Council,http://www.sandwell.gov.uk/info/200202/performance_and_spending/1079/payments_over_500,01-Feb-2024,Childrens Services,CUSTODIAN GROUP LTD,Childrens Services,630.00,Rents,2324P11_CR00110,151637
Sandwell Metropolitan Borough Council,http://www.sandwell.gov.uk/info/200202/performance_and_spending/1079/payments_over_500,01-Feb-2024,Childrens Services,CUSTODIAN GROUP LTD,Childrens Services,630.00,Rents,2324P11_CR00111,151637
Sandwell Metropolitan Borough Council,http://www.sandwell.gov.uk/info/200202/performance_and_spending/1079/payments_over_500,01-Feb-2024,Childrens Services,DEBORAH UDAKIS CONSULTANCY LTD,Childrens Services,590.00,Externally Purchased Professional Services ,2324P11_CR00112,139858
Sandwell Metropolitan Borough Council,http://www.sandwell.gov.uk/info/200202/performance_and_spending/1079/payments_over_500,01-Feb-2024,Childrens Services,DIRECTION TRAINING & MANAGEMENT,Childrens Services,500.00,Externally Purchased Professional Services ,2324P11_CR00113,01727395
Sandwell Metropolitan Borough Council,http://www.sandwell.gov.uk/info/200202/performance_and_spending/1079/payments_over_500,01-Feb-2024,Childrens Services,DIRECTION TRAINING & MANAGEMENT,Childrens Services,500.00,Externally Purchased Professional Services ,2324P11_CR00114,01727395
Sandwell Metropolitan Borough Council,http://www.sandwell.gov.uk/info/200202/performance_and_spending/1079/payments_over_500,03-Feb-2024,Childrens Services,DJB PEST CONTROL,Childrens Services,635.00,Pest Control,2324P11_CR00115,119231
Sandwell Metropolitan Borough Council,http://www.sandwell.gov.uk/info/200202/performance_and_spending/1079/payments_over_500,01-Feb-2024,Childrens Services,DUDLEY MBC,Childrens Services,3194.00,Externally Purchased Professional Services ,2324P11_CR00116,01349846
Sandwell Metropolitan Borough Council,http://www.sandwell.gov.uk/info/200202/performance_and_spending/1079/payments_over_500,01-Feb-2024,Childrens Services,EGANS COACH TRAVEL LTD T/A KINGS NORTON COACHES,Childrens Services,156154.56,Public Transport,2324P11_CR00117,164676
Sandwell Metropolitan Borough Council,http://www.sandwell.gov.uk/info/200202/performance_and_spending/1079/payments_over_500,01-Feb-2024,Childrens Services,EGANS COACH TRAVEL LTD T/A KINGS NORTON COACHES,Childrens Services,149706.66,Public Transport,2324P11_CR00118,164676
Sandwell Metropolitan Borough Council,http://www.sandwell.gov.uk/info/200202/performance_and_spending/1079/payments_over_500,01-Feb-2024,Childrens Services,EGANS COACH TRAVEL LTD T/A KINGS NORTON COACHES,Childrens Services,125714.55,Public Transport,2324P11_CR00119,164676
Sandwell Metropolitan Borough Council,http://www.sandwell.gov.uk/info/200202/performance_and_spending/1079/payments_over_500,01-Feb-2024,Childrens Services,EGANS COACH TRAVEL LTD T/A KINGS NORTON COACHES,Childrens Services,120508.68,Public Transport,2324P11_CR00120,164676
Sandwell Metropolitan Borough Council,http://www.sandwell.gov.uk/info/200202/performance_and_spending/1079/payments_over_500,01-Feb-2024,Childrens Services,EON NEXT ENERGY LTD,Childrens Services,819.31,Electricity,2324P11_CR00121,149566
Sandwell Metropolitan Borough Council,http://www.sandwell.gov.uk/info/200202/performance_and_spending/1079/payments_over_500,01-Feb-2024,Childrens Services,GILANI ENTERPRISES LIMITED,Childrens Services,1866.67,Rents,2324P11_CR00122,2696
Sandwell Metropolitan Borough Council,http://www.sandwell.gov.uk/info/200202/performance_and_spending/1079/payments_over_500,01-Feb-2024,Childrens Services,GILANI ENTERPRISES LIMITED,Childrens Services,1866.67,Rents,2324P11_CR00123,2696
Sandwell Metropolitan Borough Council,http://www.sandwell.gov.uk/info/200202/performance_and_spending/1079/payments_over_500,01-Feb-2024,Childrens Services,GILANI ENTERPRISES LIMITED,Childrens Services,1866.67,Rents,2324P11_CR00124,2696
Sandwell Metropolitan Borough Council,http://www.sandwell.gov.uk/info/200202/performance_and_spending/1079/payments_over_500,01-Feb-2024,Childrens Services,GILANI ENTERPRISES LIMITED,Childrens Services,1866.67,Rents,2324P11_CR00125,2696
Sandwell Metropolitan Borough Council,http://www.sandwell.gov.uk/info/200202/performance_and_spending/1079/payments_over_500,01-Feb-2024,Childrens Services,GILANI ENTERPRISES LIMITED,Childrens Services,1866.67,Rents,2324P11_CR00126,2696
Sandwell Metropolitan Borough Council,http://www.sandwell.gov.uk/info/200202/performance_and_spending/1079/payments_over_500,01-Feb-2024,Childrens Services,GILANI ENTERPRISES LIMITED,Childrens Services,1866.67,Rents,2324P11_CR00127,2696
Sandwell Metropolitan Borough Council,http://www.sandwell.gov.uk/info/200202/performance_and_spending/1079/payments_over_500,01-Feb-2024,Childrens Services,GILANI ENTERPRISES LIMITED,Childrens Services,1866.67,Rents,2324P11_CR00128,2696
Sandwell Metropolitan Borough Council,http://www.sandwell.gov.uk/info/200202/performance_and_spending/1079/payments_over_500,01-Feb-2024,Childrens Services,GILANI ENTERPRISES LIMITED,Childrens Services,1866.67,Rents,2324P11_CR00129,2696
Sandwell Metropolitan Borough Council,http://www.sandwell.gov.uk/info/200202/performance_and_spending/1079/payments_over_500,01-Feb-2024,Childrens Services,GILANI ENTERPRISES LIMITED,Childrens Services,2800.00,Rents,2324P11_CR00130,2696
Sandwell Metropolitan Borough Council,http://www.sandwell.gov.uk/info/200202/performance_and_spending/1079/payments_over_500,01-Feb-2024,Childrens Services,GILANI ENTERPRISES LIMITED,Childrens Services,2333.33,Rents,2324P11_CR00131,2696
Sandwell Metropolitan Borough Council,http://www.sandwell.gov.uk/info/200202/performance_and_spending/1079/payments_over_500,01-Feb-2024,Childrens Services,GILANI ENTERPRISES LIMITED,Childrens Services,2333.33,Rents,2324P11_CR00132,2696
Sandwell Metropolitan Borough Council,http://www.sandwell.gov.uk/info/200202/performance_and_spending/1079/payments_over_500,01-Feb-2024,Childrens Services,GILANI ENTERPRISES LIMITED,Childrens Services,2333.33,Rents,2324P11_CR00133,2696
Sandwell Metropolitan Borough Council,http://www.sandwell.gov.uk/info/200202/performance_and_spending/1079/payments_over_500,01-Feb-2024,Childrens Services,GILANI ENTERPRISES LIMITED,Childrens Services,2333.33,Rents,2324P11_CR00134,2696
Sandwell Metropolitan Borough Council,http://www.sandwell.gov.uk/info/200202/performance_and_spending/1079/payments_over_500,01-Feb-2024,Childrens Services,GILANI ENTERPRISES LIMITED,Childrens Services,2333.33,Rents,2324P11_CR00135,2696
Sandwell Metropolitan Borough Council,http://www.sandwell.gov.uk/info/200202/performance_and_spending/1079/payments_over_500,01-Feb-2024,Childrens Services,GILANI ENTERPRISES LIMITED,Childrens Services,2333.33,Rents,2324P11_CR00136,2696
Sandwell Metropolitan Borough Council,http://www.sandwell.gov.uk/info/200202/performance_and_spending/1079/payments_over_500,01-Feb-2024,Childrens Services,GILANI ENTERPRISES LIMITED,Childrens Services,3500.00,Rents,2324P11_CR00137,2696
Sandwell Metropolitan Borough Council,http://www.sandwell.gov.uk/info/200202/performance_and_spending/1079/payments_over_500,01-Feb-2024,Childrens Services,GILANI ENTERPRISES LIMITED,Childrens Services,733.33,Rents,2324P11_CR00138,2696
Sandwell Metropolitan Borough Council,http://www.sandwell.gov.uk/info/200202/performance_and_spending/1079/payments_over_500,01-Feb-2024,Childrens Services,GLOBAL MEDIA GROUP SERVICES LTD,Childrens Services,2052.00,Advertising & Publicity,2324P11_CR00139,86878
Sandwell Metropolitan Borough Council,http://www.sandwell.gov.uk/info/200202/performance_and_spending/1079/payments_over_500,01-Feb-2024,Childrens Services,GREEN DESTINATIONS LTD,Childrens Services,142536.62,Public Transport,2324P11_CR00140,109275
Sandwell Metropolitan Borough Council,http://www.sandwell.gov.uk/info/200202/performance_and_spending/1079/payments_over_500,01-Feb-2024,Childrens Services,GREEN DESTINATIONS LTD,Childrens Services,1979.60,Public Transport,2324P11_CR00141,109275
Sandwell Metropolitan Borough Council,http://www.sandwell.gov.uk/info/200202/performance_and_spending/1079/payments_over_500,01-Feb-2024,Childrens Services,GREEN DESTINATIONS LTD,Childrens Services,1781.64,Public Transport,2324P11_CR00142,109275
Sandwell Metropolitan Borough Council,http://www.sandwell.gov.uk/info/200202/performance_and_spending/1079/payments_over_500,01-Feb-2024,Childrens Services,GRON CATERING,Childrens Services,640.50,Catering Provisions,2324P11_CR00143,166729
Sandwell Metropolitan Borough Council,http://www.sandwell.gov.uk/info/200202/performance_and_spending/1079/payments_over_500,01-Feb-2024,Childrens Services,HEART OF ENGLAND COMMUNITY FOUNDATION,Childrens Services,3250.00,Grant Payments,2324P11_CR00144,133427
Sandwell Metropolitan Borough Council,http://www.sandwell.gov.uk/info/200202/performance_and_spending/1079/payments_over_500,01-Feb-2024,Childrens Services,I CAN CHARITY,Childrens Services,14600.10,Advertising & Publicity,2324P11_CR00145,84207
Sandwell Metropolitan Borough Council,http://www.sandwell.gov.uk/info/200202/performance_and_spending/1079/payments_over_500,01-Feb-2024,Childrens Services,INSPIRE CONSULTING & COACHING LTD T/A INSPIRE2ADVENTURE,Childrens Services,500.00,Externally Purchased Professional Services ,2324P11_CR00146,167959
Sandwell Metropolitan Borough Council,http://www.sandwell.gov.uk/info/200202/performance_and_spending/1079/payments_over_500,01-Feb-2024,Childrens Services,JOHN PRICE PRINTERS LIMITED,Childrens Services,4930.00,"Printing, Stationery & General Office Expenses",2324P11_CR00147,111986
Sandwell Metropolitan Borough Council,http://www.sandwell.gov.uk/info/200202/performance_and_spending/1079/payments_over_500,01-Feb-2024,Childrens Services,MURRAY HALL COMMUNITY TRUST,Childrens Services,690.00,Hire of Facilities,2324P11_CR00148,01627284
Sandwell Metropolitan Borough Council,http://www.sandwell.gov.uk/info/200202/performance_and_spending/1079/payments_over_500,01-Feb-2024,Childrens Services,MUSIC BUGS HALESOWEN,Childrens Services,500.00,Externally Purchased Professional Services ,2324P11_CR00149,98972
Sandwell Metropolitan Borough Council,http://www.sandwell.gov.uk/info/200202/performance_and_spending/1079/payments_over_500,01-Feb-2024,Childrens Services,NCFE,Childrens Services,582.00,Externally Purchased Professional Services ,2324P11_CR00150,6230
Sandwell Metropolitan Borough Council,http://www.sandwell.gov.uk/info/200202/performance_and_spending/1079/payments_over_500,01-Feb-2024,Childrens Services,NET BUILDER LIMITED,Childrens Services,1400.00,Externally Purchased Professional Services ,2324P11_CR00151,139019
Sandwell Metropolitan Borough Council,http://www.sandwell.gov.uk/info/200202/performance_and_spending/1079/payments_over_500,01-Feb-2024,Childrens Services,NEWAVE LTD,Childrens Services,1712.00,Agency Staff,2324P11_CR00152,101666
Sandwell Metropolitan Borough Council,http://www.sandwell.gov.uk/info/200202/performance_and_spending/1079/payments_over_500,01-Feb-2024,Childrens Services,NEWAVE LTD,Childrens Services,2859.20,Agency Staff,2324P11_CR00153,101666
Sandwell Metropolitan Borough Council,http://www.sandwell.gov.uk/info/200202/performance_and_spending/1079/payments_over_500,01-Feb-2024,Childrens Services,NEWAVE LTD,Childrens Services,1625.00,Agency Staff,2324P11_CR00154,101666
Sandwell Metropolitan Borough Council,http://www.sandwell.gov.uk/info/200202/performance_and_spending/1079/payments_over_500,01-Feb-2024,Childrens Services,NEWAVE LTD,Childrens Services,2212.00,Agency Staff,2324P11_CR00155,101666
Sandwell Metropolitan Borough Council,http://www.sandwell.gov.uk/info/200202/performance_and_spending/1079/payments_over_500,01-Feb-2024,Childrens Services,NEWAVE LTD,Childrens Services,1901.50,Agency Staff,2324P11_CR00156,101666
Sandwell Metropolitan Borough Council,http://www.sandwell.gov.uk/info/200202/performance_and_spending/1079/payments_over_500,01-Feb-2024,Childrens Services,NEWAVE LTD,Childrens Services,912.71,Agency Staff,2324P11_CR00157,101666
Sandwell Metropolitan Borough Council,http://www.sandwell.gov.uk/info/200202/performance_and_spending/1079/payments_over_500,01-Feb-2024,Childrens Services,NEWAVE LTD,Childrens Services,1837.00,Agency Staff,2324P11_CR00158,101666
Sandwell Metropolitan Borough Council,http://www.sandwell.gov.uk/info/200202/performance_and_spending/1079/payments_over_500,01-Feb-2024,Childrens Services,NEWAVE LTD,Childrens Services,990.00,Agency Staff,2324P11_CR00159,101666
Sandwell Metropolitan Borough Council,http://www.sandwell.gov.uk/info/200202/performance_and_spending/1079/payments_over_500,09-Feb-2024,Childrens Services,NORTH BIRMINGHAM TRAVEL LTD,Childrens Services,68558.44,Public Transport,2324P11_CR00160,72112
Sandwell Metropolitan Borough Council,http://www.sandwell.gov.uk/info/200202/performance_and_spending/1079/payments_over_500,09-Feb-2024,Childrens Services,NORTH BIRMINGHAM TRAVEL LTD,Childrens Services,65240.77,Public Transport,2324P11_CR00161,72112
Sandwell Metropolitan Borough Council,http://www.sandwell.gov.uk/info/200202/performance_and_spending/1079/payments_over_500,09-Feb-2024,Childrens Services,NORTH BIRMINGHAM TRAVEL LTD,Childrens Services,70697.27,Public Transport,2324P11_CR00162,72112
Sandwell Metropolitan Borough Council,http://www.sandwell.gov.uk/info/200202/performance_and_spending/1079/payments_over_500,09-Feb-2024,Childrens Services,NORTH BIRMINGHAM TRAVEL LTD,Childrens Services,63087.58,Public Transport,2324P11_CR00163,72112
Sandwell Metropolitan Borough Council,http://www.sandwell.gov.uk/info/200202/performance_and_spending/1079/payments_over_500,15-Feb-2024,Childrens Services,NORTH BIRMINGHAM TRAVEL LTD,Childrens Services,87081.12,Public Transport,2324P11_CR00164,72112
Sandwell Metropolitan Borough Council,http://www.sandwell.gov.uk/info/200202/performance_and_spending/1079/payments_over_500,15-Feb-2024,Childrens Services,NORTH BIRMINGHAM TRAVEL LTD,Childrens Services,75122.43,Public Transport,2324P11_CR00165,72112
Sandwell Metropolitan Borough Council,http://www.sandwell.gov.uk/info/200202/performance_and_spending/1079/payments_over_500,15-Feb-2024,Childrens Services,NORTH BIRMINGHAM TRAVEL LTD,Childrens Services,91637.85,Public Transport,2324P11_CR00166,72112
Sandwell Metropolitan Borough Council,http://www.sandwell.gov.uk/info/200202/performance_and_spending/1079/payments_over_500,15-Feb-2024,Childrens Services,NORTH BIRMINGHAM TRAVEL LTD,Childrens Services,133613.13,Public Transport,2324P11_CR00167,72112
Sandwell Metropolitan Borough Council,http://www.sandwell.gov.uk/info/200202/performance_and_spending/1079/payments_over_500,15-Feb-2024,Childrens Services,NORTH BIRMINGHAM TRAVEL LTD,Childrens Services,155876.37,Public Transport,2324P11_CR00168,72112
Sandwell Metropolitan Borough Council,http://www.sandwell.gov.uk/info/200202/performance_and_spending/1079/payments_over_500,15-Feb-2024,Childrens Services,NORTH BIRMINGHAM TRAVEL LTD,Childrens Services,148406.92,Public Transport,2324P11_CR00169,72112
Sandwell Metropolitan Borough Council,http://www.sandwell.gov.uk/info/200202/performance_and_spending/1079/payments_over_500,15-Feb-2024,Childrens Services,NORTH BIRMINGHAM TRAVEL LTD,Childrens Services,126565.16,Public Transport,2324P11_CR00170,72112
Sandwell Metropolitan Borough Council,http://www.sandwell.gov.uk/info/200202/performance_and_spending/1079/payments_over_500,15-Feb-2024,Childrens Services,NORTH BIRMINGHAM TRAVEL LTD,Childrens Services,68721.70,Public Transport,2324P11_CR00171,72112
Sandwell Metropolitan Borough Council,http://www.sandwell.gov.uk/info/200202/performance_and_spending/1079/payments_over_500,15-Feb-2024,Childrens Services,NORTH BIRMINGHAM TRAVEL LTD,Childrens Services,76177.74,Public Transport,2324P11_CR00172,72112
Sandwell Metropolitan Borough Council,http://www.sandwell.gov.uk/info/200202/performance_and_spending/1079/payments_over_500,15-Feb-2024,Childrens Services,NORTH BIRMINGHAM TRAVEL LTD,Childrens Services,74558.37,Public Transport,2324P11_CR00173,72112
Sandwell Metropolitan Borough Council,http://www.sandwell.gov.uk/info/200202/performance_and_spending/1079/payments_over_500,15-Feb-2024,Childrens Services,NORTH BIRMINGHAM TRAVEL LTD,Childrens Services,77385.62,Public Transport,2324P11_CR00174,72112
Sandwell Metropolitan Borough Council,http://www.sandwell.gov.uk/info/200202/performance_and_spending/1079/payments_over_500,15-Feb-2024,Childrens Services,NORTH BIRMINGHAM TRAVEL LTD,Childrens Services,88063.24,Public Transport,2324P11_CR00175,72112
Sandwell Metropolitan Borough Council,http://www.sandwell.gov.uk/info/200202/performance_and_spending/1079/payments_over_500,15-Feb-2024,Childrens Services,NORTH BIRMINGHAM TRAVEL LTD,Childrens Services,84039.30,Public Transport,2324P11_CR00176,72112
Sandwell Metropolitan Borough Council,http://www.sandwell.gov.uk/info/200202/performance_and_spending/1079/payments_over_500,15-Feb-2024,Childrens Services,NORTH BIRMINGHAM TRAVEL LTD,Childrens Services,71290.72,Public Transport,2324P11_CR00177,72112
Sandwell Metropolitan Borough Council,http://www.sandwell.gov.uk/info/200202/performance_and_spending/1079/payments_over_500,01-Feb-2024,Childrens Services,NORTH BIRMINGHAM TRAVEL LTD,Childrens Services,50928.61,Public Transport,2324P11_CR00178,72112
Sandwell Metropolitan Borough Council,http://www.sandwell.gov.uk/info/200202/performance_and_spending/1079/payments_over_500,01-Feb-2024,Childrens Services,NOTTINGHAMSHIRE WOMEN'S AID LTD,Childrens Services,1144.32,Rents,2324P11_CR00179,167961
Sandwell Metropolitan Borough Council,http://www.sandwell.gov.uk/info/200202/performance_and_spending/1079/payments_over_500,01-Feb-2024,Childrens Services,ONE 4 YOU SERVICES LTD,Childrens Services,2358.98,Public Transport,2324P11_CR00180,81204
Sandwell Metropolitan Borough Council,http://www.sandwell.gov.uk/info/200202/performance_and_spending/1079/payments_over_500,01-Feb-2024,Childrens Services,ONE 4 YOU SERVICES LTD,Childrens Services,199587.69,Public Transport,2324P11_CR00181,81204
Sandwell Metropolitan Borough Council,http://www.sandwell.gov.uk/info/200202/performance_and_spending/1079/payments_over_500,01-Feb-2024,Childrens Services,OPEN AWARDS,Childrens Services,625.00,Subscriptions,2324P11_CR00182,124650
Sandwell Metropolitan Borough Council,http://www.sandwell.gov.uk/info/200202/performance_and_spending/1079/payments_over_500,01-Feb-2024,Childrens Services,PIONEER PEOPLE LIMITED,Childrens Services,609.89,Agency Staff,2324P11_CR00183,165385
Sandwell Metropolitan Borough Council,http://www.sandwell.gov.uk/info/200202/performance_and_spending/1079/payments_over_500,01-Feb-2024,Childrens Services,PIONEER PEOPLE LIMITED,Childrens Services,515.40,Agency Staff,2324P11_CR00184,165385
Sandwell Metropolitan Borough Council,http://www.sandwell.gov.uk/info/200202/performance_and_spending/1079/payments_over_500,13-Feb-2024,Childrens Services,PIONEER PEOPLE LIMITED,Childrens Services,515.40,Agency Staff,2324P11_CR00185,165385
Sandwell Metropolitan Borough Council,http://www.sandwell.gov.uk/info/200202/performance_and_spending/1079/payments_over_500,01-Feb-2024,Childrens Services,SAMS GYM,Childrens Services,5725.00,Grant Payments,2324P11_CR00186,162911
Sandwell Metropolitan Borough Council,http://www.sandwell.gov.uk/info/200202/performance_and_spending/1079/payments_over_500,08-Feb-2024,Childrens Services,SANDWELL CHILDREN'S TRUST,Childrens Services,803674.62,Other Establishments,2324P11_CR00187,133302
Sandwell Metropolitan Borough Council,http://www.sandwell.gov.uk/info/200202/performance_and_spending/1079/payments_over_500,01-Feb-2024,Childrens Services,SANDWELL CHILDREN'S TRUST,Childrens Services,5705769.23,Other Establishments,2324P11_CR00188,133302
Sandwell Metropolitan Borough Council,http://www.sandwell.gov.uk/info/200202/performance_and_spending/1079/payments_over_500,01-Feb-2024,Childrens Services,SANDWELL DEAF COMMUNITY ASSOCIATION,Childrens Services,880.00,Bi-Lingual Translation Services,2324P11_CR00189,3138
Sandwell Metropolitan Borough Council,http://www.sandwell.gov.uk/info/200202/performance_and_spending/1079/payments_over_500,01-Feb-2024,Childrens Services,SANDWELL PARENTS FOR DISABLED CHILDREN,Childrens Services,6000.00,Grant Payments,2324P11_CR00190,70991
Sandwell Metropolitan Borough Council,http://www.sandwell.gov.uk/info/200202/performance_and_spending/1079/payments_over_500,01-Feb-2024,Childrens Services,SIPS EDUCATION LTD,Childrens Services,2217.50,Catering Provisions,2324P11_CR00191,110784
Sandwell Metropolitan Borough Council,http://www.sandwell.gov.uk/info/200202/performance_and_spending/1079/payments_over_500,01-Feb-2024,Childrens Services,SKILLS WORK AND ENTERPRISE DEVELOPMENT AGENCY LTD,Childrens Services,500.00,Hire of Facilities,2324P11_CR00192,5092
Sandwell Metropolitan Borough Council,http://www.sandwell.gov.uk/info/200202/performance_and_spending/1079/payments_over_500,01-Feb-2024,Childrens Services,TENNALS PEST CONTROL LTD,Childrens Services,825.00,Pest Control,2324P11_CR00193,138145
Sandwell Metropolitan Borough Council,http://www.sandwell.gov.uk/info/200202/performance_and_spending/1079/payments_over_500,01-Feb-2024,Childrens Services,THE ALBION FOUNDATION,Childrens Services,1080.00,Externally Purchased Professional Services ,2324P11_CR00194,21026659
Sandwell Metropolitan Borough Council,http://www.sandwell.gov.uk/info/200202/performance_and_spending/1079/payments_over_500,15-Feb-2024,Childrens Services,THE GIFT VOUCHER SHOP LIMITED,Childrens Services,1470.00,Operational Services ,2324P11_CR00195,111545
Sandwell Metropolitan Borough Council,http://www.sandwell.gov.uk/info/200202/performance_and_spending/1079/payments_over_500,01-Feb-2024,Childrens Services,THE PRIORY PRIMARY,Childrens Services,3698.51,Rents,2324P11_CR00196,01746051
Sandwell Metropolitan Borough Council,http://www.sandwell.gov.uk/info/200202/performance_and_spending/1079/payments_over_500,01-Feb-2024,Childrens Services,THOMAS CHARLES FACILITIES & MAINTENANCE LTD,Childrens Services,1188.00,Contract Cleaning,2324P11_CR00197,114170
Sandwell Metropolitan Borough Council,http://www.sandwell.gov.uk/info/200202/performance_and_spending/1079/payments_over_500,01-Feb-2024,Childrens Services,THOMAS CHARLES FACILITIES & MAINTENANCE LTD,Childrens Services,792.00,Contract Cleaning,2324P11_CR00198,114170
Sandwell Metropolitan Borough Council,http://www.sandwell.gov.uk/info/200202/performance_and_spending/1079/payments_over_500,01-Feb-2024,Childrens Services,THOMAS CHARLES FACILITIES & MAINTENANCE LTD,Childrens Services,1584.00,Contract Cleaning,2324P11_CR00199,114170
Sandwell Metropolitan Borough Council,http://www.sandwell.gov.uk/info/200202/performance_and_spending/1079/payments_over_500,01-Feb-2024,Childrens Services,THOMAS CHARLES FACILITIES & MAINTENANCE LTD,Childrens Services,1980.00,Contract Cleaning,2324P11_CR00200,114170
Sandwell Metropolitan Borough Council,http://www.sandwell.gov.uk/info/200202/performance_and_spending/1079/payments_over_500,01-Feb-2024,Childrens Services,THOMAS CHARLES FACILITIES & MAINTENANCE LTD,Childrens Services,1980.00,Contract Cleaning,2324P11_CR00201,114170
Sandwell Metropolitan Borough Council,http://www.sandwell.gov.uk/info/200202/performance_and_spending/1079/payments_over_500,01-Feb-2024,Childrens Services,THOMAS CHARLES FACILITIES & MAINTENANCE LTD,Childrens Services,1980.00,Contract Cleaning,2324P11_CR00202,114170
Sandwell Metropolitan Borough Council,http://www.sandwell.gov.uk/info/200202/performance_and_spending/1079/payments_over_500,01-Feb-2024,Childrens Services,THOMAS CHARLES FACILITIES & MAINTENANCE LTD,Childrens Services,2970.00,Contract Cleaning,2324P11_CR00203,114170
Sandwell Metropolitan Borough Council,http://www.sandwell.gov.uk/info/200202/performance_and_spending/1079/payments_over_500,01-Feb-2024,Childrens Services,THOMAS CHARLES FACILITIES & MAINTENANCE LTD,Childrens Services,960.00,Security,2324P11_CR00204,114170
Sandwell Metropolitan Borough Council,http://www.sandwell.gov.uk/info/200202/performance_and_spending/1079/payments_over_500,01-Feb-2024,Childrens Services,THRIIVER LTD,Childrens Services,570.00,Operational Services ,2324P11_CR00205,65196
Sandwell Metropolitan Borough Council,http://www.sandwell.gov.uk/info/200202/performance_and_spending/1079/payments_over_500,01-Feb-2024,Childrens Services,TOPPS MANAGEMENT & SUPPORT SERVICES LTD,Childrens Services,5357.10,Discretionary Awards,2324P11_CR00206,68846
Sandwell Metropolitan Borough Council,http://www.sandwell.gov.uk/info/200202/performance_and_spending/1079/payments_over_500,01-Feb-2024,Childrens Services,TOTALENERGIES GAS & POWER LTD,Childrens Services,2949.40,Electricity,2324P11_CR00207,107605
Sandwell Metropolitan Borough Council,http://www.sandwell.gov.uk/info/200202/performance_and_spending/1079/payments_over_500,01-Feb-2024,Childrens Services,TOTALENERGIES GAS & POWER LTD,Childrens Services,840.02,Electricity,2324P11_CR00208,107605
Sandwell Metropolitan Borough Council,http://www.sandwell.gov.uk/info/200202/performance_and_spending/1079/payments_over_500,01-Feb-2024,Childrens Services,TOTALENERGIES GAS & POWER LTD,Childrens Services,942.81,Gas,2324P11_CR00209,107605
Sandwell Metropolitan Borough Council,http://www.sandwell.gov.uk/info/200202/performance_and_spending/1079/payments_over_500,01-Feb-2024,Childrens Services,TOTALENERGIES GAS & POWER LTD,Childrens Services,1648.64,Electricity,2324P11_CR00210,107605
Sandwell Metropolitan Borough Council,http://www.sandwell.gov.uk/info/200202/performance_and_spending/1079/payments_over_500,01-Feb-2024,Childrens Services,TOTALENERGIES GAS & POWER LTD,Childrens Services,541.23,Electricity,2324P11_CR00211,107605
Sandwell Metropolitan Borough Council,http://www.sandwell.gov.uk/info/200202/performance_and_spending/1079/payments_over_500,01-Feb-2024,Childrens Services,TOTALENERGIES GAS & POWER LTD,Childrens Services,518.58,Electricity,2324P11_CR00212,107605
Sandwell Metropolitan Borough Council,http://www.sandwell.gov.uk/info/200202/performance_and_spending/1079/payments_over_500,01-Feb-2024,Childrens Services,TOTALENERGIES GAS & POWER LTD,Childrens Services,664.62,Electricity,2324P11_CR00213,107605
Sandwell Metropolitan Borough Council,http://www.sandwell.gov.uk/info/200202/performance_and_spending/1079/payments_over_500,01-Feb-2024,Childrens Services,TOTALENERGIES GAS & POWER LTD,Childrens Services,1145.16,Gas,2324P11_CR00214,107605
Sandwell Metropolitan Borough Council,http://www.sandwell.gov.uk/info/200202/performance_and_spending/1079/payments_over_500,01-Feb-2024,Childrens Services,TOTALENERGIES GAS & POWER LTD,Childrens Services,1383.23,Gas,2324P11_CR00215,107605
Sandwell Metropolitan Borough Council,http://www.sandwell.gov.uk/info/200202/performance_and_spending/1079/payments_over_500,01-Feb-2024,Childrens Services,TOTALENERGIES GAS & POWER LTD,Childrens Services,551.86,Gas,2324P11_CR00216,107605
Sandwell Metropolitan Borough Council,http://www.sandwell.gov.uk/info/200202/performance_and_spending/1079/payments_over_500,01-Feb-2024,Childrens Services,TOTALENERGIES GAS & POWER LTD,Childrens Services,1108.20,Electricity,2324P11_CR00217,107605
Sandwell Metropolitan Borough Council,http://www.sandwell.gov.uk/info/200202/performance_and_spending/1079/payments_over_500,01-Feb-2024,Childrens Services,TOTALENERGIES GAS & POWER LTD,Childrens Services,1150.42,Electricity,2324P11_CR00218,107605
Sandwell Metropolitan Borough Council,http://www.sandwell.gov.uk/info/200202/performance_and_spending/1079/payments_over_500,01-Feb-2024,Childrens Services,TOTALENERGIES GAS & POWER LTD,Childrens Services,726.69,Electricity,2324P11_CR00219,107605
Sandwell Metropolitan Borough Council,http://www.sandwell.gov.uk/info/200202/performance_and_spending/1079/payments_over_500,01-Feb-2024,Childrens Services,TOTALENERGIES GAS & POWER LTD,Childrens Services,740.19,Electricity,2324P11_CR00220,107605
Sandwell Metropolitan Borough Council,http://www.sandwell.gov.uk/info/200202/performance_and_spending/1079/payments_over_500,01-Feb-2024,Childrens Services,TOTALENERGIES GAS & POWER LTD,Childrens Services,1373.42,Electricity,2324P11_CR00221,107605
Sandwell Metropolitan Borough Council,http://www.sandwell.gov.uk/info/200202/performance_and_spending/1079/payments_over_500,01-Feb-2024,Childrens Services,TOTALENERGIES GAS & POWER LTD,Childrens Services,1390.18,Gas,2324P11_CR00222,107605
Sandwell Metropolitan Borough Council,http://www.sandwell.gov.uk/info/200202/performance_and_spending/1079/payments_over_500,01-Feb-2024,Childrens Services,TOTALENERGIES GAS & POWER LTD,Childrens Services,1264.78,Gas,2324P11_CR00223,107605
Sandwell Metropolitan Borough Council,http://www.sandwell.gov.uk/info/200202/performance_and_spending/1079/payments_over_500,01-Feb-2024,Childrens Services,TOTALENERGIES GAS & POWER LTD,Childrens Services,923.38,Gas,2324P11_CR00224,107605
Sandwell Metropolitan Borough Council,http://www.sandwell.gov.uk/info/200202/performance_and_spending/1079/payments_over_500,01-Feb-2024,Childrens Services,TRH WALSALL LTD,Childrens Services,933.52,Rents,2324P11_CR00225,85648
Sandwell Metropolitan Borough Council,http://www.sandwell.gov.uk/info/200202/performance_and_spending/1079/payments_over_500,01-Feb-2024,Childrens Services,TRH WALSALL LTD,Childrens Services,933.52,Rents,2324P11_CR00226,85648
Sandwell Metropolitan Borough Council,http://www.sandwell.gov.uk/info/200202/performance_and_spending/1079/payments_over_500,01-Feb-2024,Childrens Services,TRH WALSALL LTD,Childrens Services,1283.52,Rents,2324P11_CR00227,85648
Sandwell Metropolitan Borough Council,http://www.sandwell.gov.uk/info/200202/performance_and_spending/1079/payments_over_500,01-Feb-2024,Childrens Services,TRH WALSALL LTD,Childrens Services,933.52,Rents,2324P11_CR00228,85648
Sandwell Metropolitan Borough Council,http://www.sandwell.gov.uk/info/200202/performance_and_spending/1079/payments_over_500,01-Feb-2024,Childrens Services,TRH WALSALL LTD,Childrens Services,1568.00,Rents,2324P11_CR00229,85648
Sandwell Metropolitan Borough Council,http://www.sandwell.gov.uk/info/200202/performance_and_spending/1079/payments_over_500,01-Feb-2024,Childrens Services,TRH WALSALL LTD,Childrens Services,933.52,Rents,2324P11_CR00230,85648
Sandwell Metropolitan Borough Council,http://www.sandwell.gov.uk/info/200202/performance_and_spending/1079/payments_over_500,01-Feb-2024,Childrens Services,TRH WALSALL LTD,Childrens Services,933.52,Rents,2324P11_CR00231,85648
Sandwell Metropolitan Borough Council,http://www.sandwell.gov.uk/info/200202/performance_and_spending/1079/payments_over_500,01-Feb-2024,Childrens Services,TRH WALSALL LTD,Childrens Services,1283.52,Rents,2324P11_CR00232,85648
Sandwell Metropolitan Borough Council,http://www.sandwell.gov.uk/info/200202/performance_and_spending/1079/payments_over_500,01-Feb-2024,Childrens Services,TRH WALSALL LTD,Childrens Services,933.52,Rents,2324P11_CR00233,85648
Sandwell Metropolitan Borough Council,http://www.sandwell.gov.uk/info/200202/performance_and_spending/1079/payments_over_500,01-Feb-2024,Childrens Services,TRH WALSALL LTD,Childrens Services,933.52,Rents,2324P11_CR00234,85648
Sandwell Metropolitan Borough Council,http://www.sandwell.gov.uk/info/200202/performance_and_spending/1079/payments_over_500,01-Feb-2024,Childrens Services,TRH WALSALL LTD,Childrens Services,933.52,Rents,2324P11_CR00235,85648
Sandwell Metropolitan Borough Council,http://www.sandwell.gov.uk/info/200202/performance_and_spending/1079/payments_over_500,01-Feb-2024,Childrens Services,TRH WALSALL LTD,Childrens Services,1260.00,Rents,2324P11_CR00236,85648
Sandwell Metropolitan Borough Council,http://www.sandwell.gov.uk/info/200202/performance_and_spending/1079/payments_over_500,01-Feb-2024,Childrens Services,TRH WALSALL LTD,Childrens Services,933.52,Rents,2324P11_CR00237,85648
Sandwell Metropolitan Borough Council,http://www.sandwell.gov.uk/info/200202/performance_and_spending/1079/payments_over_500,01-Feb-2024,Childrens Services,TRH WALSALL LTD,Childrens Services,933.52,Rents,2324P11_CR00238,85648
Sandwell Metropolitan Borough Council,http://www.sandwell.gov.uk/info/200202/performance_and_spending/1079/payments_over_500,01-Feb-2024,Childrens Services,TRH WALSALL LTD,Childrens Services,1568.00,Rents,2324P11_CR00239,85648
Sandwell Metropolitan Borough Council,http://www.sandwell.gov.uk/info/200202/performance_and_spending/1079/payments_over_500,01-Feb-2024,Childrens Services,TRH WALSALL LTD,Childrens Services,933.52,Rents,2324P11_CR00240,85648
Sandwell Metropolitan Borough Council,http://www.sandwell.gov.uk/info/200202/performance_and_spending/1079/payments_over_500,01-Feb-2024,Childrens Services,TRH WALSALL LTD,Childrens Services,933.52,Rents,2324P11_CR00241,85648
Sandwell Metropolitan Borough Council,http://www.sandwell.gov.uk/info/200202/performance_and_spending/1079/payments_over_500,01-Feb-2024,Childrens Services,WATER PLUS SELECT LIMITED,Childrens Services,1288.23,Water Services,2324P11_CR00242,129644
Sandwell Metropolitan Borough Council,http://www.sandwell.gov.uk/info/200202/performance_and_spending/1079/payments_over_500,01-Feb-2024,Childrens Services,WEST BROMWICH ALBION FC LTD,Childrens Services,2000.00,Conference Expenses,2324P11_CR00243,01606624
Sandwell Metropolitan Borough Council,http://www.sandwell.gov.uk/info/200202/performance_and_spending/1079/payments_over_500,01-Feb-2024,Childrens Services,WEST MIDLANDS SUPPORT HOMES LTD,Childrens Services,560.00,Rents,2324P11_CR00244,167338
Sandwell Metropolitan Borough Council,http://www.sandwell.gov.uk/info/200202/performance_and_spending/1079/payments_over_500,01-Feb-2024,Childrens Services,WEST MIDLANDS SUPPORT HOMES LTD,Childrens Services,560.00,Rents,2324P11_CR00245,167338
Sandwell Metropolitan Borough Council,http://www.sandwell.gov.uk/info/200202/performance_and_spending/1079/payments_over_500,01-Feb-2024,Childrens Services,WEST MIDLANDS SUPPORT HOMES LTD,Childrens Services,560.00,Rents,2324P11_CR00246,167338
Sandwell Metropolitan Borough Council,http://www.sandwell.gov.uk/info/200202/performance_and_spending/1079/payments_over_500,01-Feb-2024,Childrens Services,WEST MIDLANDS SUPPORT HOMES LTD,Childrens Services,560.00,Rents,2324P11_CR00247,167338
Sandwell Metropolitan Borough Council,http://www.sandwell.gov.uk/info/200202/performance_and_spending/1079/payments_over_500,01-Feb-2024,Childrens Services,WEST MIDLANDS SUPPORT HOMES LTD,Childrens Services,560.00,Rents,2324P11_CR00248,167338
Sandwell Metropolitan Borough Council,http://www.sandwell.gov.uk/info/200202/performance_and_spending/1079/payments_over_500,01-Feb-2024,Childrens Services,WEST MIDLANDS SUPPORT HOMES LTD,Childrens Services,560.00,Rents,2324P11_CR00249,167338
Sandwell Metropolitan Borough Council,http://www.sandwell.gov.uk/info/200202/performance_and_spending/1079/payments_over_500,01-Feb-2024,Childrens Services,WEST MIDLANDS SUPPORT HOMES LTD,Childrens Services,560.00,Rents,2324P11_CR00250,167338
Sandwell Metropolitan Borough Council,http://www.sandwell.gov.uk/info/200202/performance_and_spending/1079/payments_over_500,01-Feb-2024,Childrens Services,WEST MIDLANDS SUPPORT HOMES LTD,Childrens Services,560.00,Rents,2324P11_CR00251,167338
Sandwell Metropolitan Borough Council,http://www.sandwell.gov.uk/info/200202/performance_and_spending/1079/payments_over_500,01-Feb-2024,Childrens Services,WEST MIDLANDS SUPPORT HOMES LTD,Childrens Services,560.00,Rents,2324P11_CR00252,167338
Sandwell Metropolitan Borough Council,http://www.sandwell.gov.uk/info/200202/performance_and_spending/1079/payments_over_500,01-Feb-2024,Childrens Services,WEST MIDLANDS SUPPORT HOMES LTD,Childrens Services,560.00,Rents,2324P11_CR00253,167338
Sandwell Metropolitan Borough Council,http://www.sandwell.gov.uk/info/200202/performance_and_spending/1079/payments_over_500,01-Feb-2024,Childrens Services,WEST MIDLANDS SUPPORT HOMES LTD,Childrens Services,560.00,Rents,2324P11_CR00254,167338
Sandwell Metropolitan Borough Council,http://www.sandwell.gov.uk/info/200202/performance_and_spending/1079/payments_over_500,01-Feb-2024,Childrens Services,WEST MIDLANDS SUPPORT HOMES LTD,Childrens Services,560.00,Rents,2324P11_CR00255,167338
Sandwell Metropolitan Borough Council,http://www.sandwell.gov.uk/info/200202/performance_and_spending/1079/payments_over_500,01-Feb-2024,Childrens Services,WEST MIDLANDS SUPPORT HOMES LTD,Childrens Services,560.00,Rents,2324P11_CR00256,167338
Sandwell Metropolitan Borough Council,http://www.sandwell.gov.uk/info/200202/performance_and_spending/1079/payments_over_500,01-Feb-2024,Childrens Services,WEST MIDLANDS SUPPORT HOMES LTD,Childrens Services,560.00,Rents,2324P11_CR00257,167338
Sandwell Metropolitan Borough Council,http://www.sandwell.gov.uk/info/200202/performance_and_spending/1079/payments_over_500,01-Feb-2024,Childrens Services,WEST MIDLANDS SUPPORT HOMES LTD,Childrens Services,560.00,Rents,2324P11_CR00258,167338
Sandwell Metropolitan Borough Council,http://www.sandwell.gov.uk/info/200202/performance_and_spending/1079/payments_over_500,01-Feb-2024,Childrens Services,WEST MIDLANDS SUPPORT HOMES LTD,Childrens Services,560.00,Rents,2324P11_CR00259,167338
Sandwell Metropolitan Borough Council,http://www.sandwell.gov.uk/info/200202/performance_and_spending/1079/payments_over_500,01-Feb-2024,Childrens Services,WEST MIDLANDS SUPPORT HOMES LTD,Childrens Services,560.00,Rents,2324P11_CR00260,167338
Sandwell Metropolitan Borough Council,http://www.sandwell.gov.uk/info/200202/performance_and_spending/1079/payments_over_500,01-Feb-2024,Childrens Services,WEST MIDLANDS SUPPORT HOMES LTD,Childrens Services,560.00,Rents,2324P11_CR00261,167338
Sandwell Metropolitan Borough Council,http://www.sandwell.gov.uk/info/200202/performance_and_spending/1079/payments_over_500,01-Feb-2024,Childrens Services,WEST MIDLANDS TRAVEL LIMITED,Childrens Services,5886.00,Public Transport,2324P11_CR00262,01736688
Sandwell Metropolitan Borough Council,http://www.sandwell.gov.uk/info/200202/performance_and_spending/1079/payments_over_500,01-Feb-2024,Childrens Services,WEST MIDLANDS TRAVEL LIMITED,Childrens Services,5319.00,Public Transport,2324P11_CR00263,01736688
Sandwell Metropolitan Borough Council,http://www.sandwell.gov.uk/info/200202/performance_and_spending/1079/payments_over_500,01-Feb-2024,Childrens Services,WEST MIDLANDS TRAVEL LIMITED,Childrens Services,5859.00,Public Transport,2324P11_CR00264,01736688
Sandwell Metropolitan Borough Council,http://www.sandwell.gov.uk/info/200202/performance_and_spending/1079/payments_over_500,01-Feb-2024,Childrens Services,WONDE LTD,Childrens Services,10549.50,Licences,2324P11_CR00265,149233
Sandwell Metropolitan Borough Council,http://www.sandwell.gov.uk/info/200202/performance_and_spending/1079/payments_over_500,01-Feb-2024,Childrens Services,DANIELLE LYNCH,Childrens Services,822.00,Externally Purchased Professional Services ,2324P11_CR00266,165778
Sandwell Metropolitan Borough Council,http://www.sandwell.gov.uk/info/200202/performance_and_spending/1079/payments_over_500,01-Feb-2024,Childrens Services,DR SIAN ALLEN,Childrens Services,605.00,Externally Purchased Professional Services ,2324P11_CR00267,165101
Sandwell Metropolitan Borough Council,http://www.sandwell.gov.uk/info/200202/performance_and_spending/1079/payments_over_500,01-Feb-2024,Childrens Services,REDACTED PERSONAL DATA,Childrens Services,1007.20,Rents,2324P11_CR00268,REDACTED PERSONAL DATA
Sandwell Metropolitan Borough Council,http://www.sandwell.gov.uk/info/200202/performance_and_spending/1079/payments_over_500,01-Feb-2024,Childrens Services,HAMSTEAD JUNIOR SCHOOL ,Childrens Services,3299.00,Discretionary Awards,2324P11_CR00269,60998
Sandwell Metropolitan Borough Council,http://www.sandwell.gov.uk/info/200202/performance_and_spending/1079/payments_over_500,01-Feb-2024,Childrens Services,JUBILEE PARK ACADEMY TRUST,Childrens Services,1621.00,Discretionary Awards,2324P11_CR00270,113377
Sandwell Metropolitan Borough Council,http://www.sandwell.gov.uk/info/200202/performance_and_spending/1079/payments_over_500,01-Feb-2024,Childrens Services,LIGHTWOODS PRIMARY ACADEMY .,Childrens Services,7229.00,Discretionary Awards,2324P11_CR00271,61012
Sandwell Metropolitan Borough Council,http://www.sandwell.gov.uk/info/200202/performance_and_spending/1079/payments_over_500,01-Feb-2024,Childrens Services,ORMISTON SANDWELL COMMUNITY ACADEMY      ,Childrens Services,3303.00,Discretionary Awards,2324P11_CR00272,60950
Sandwell Metropolitan Borough Council,http://www.sandwell.gov.uk/info/200202/performance_and_spending/1079/payments_over_500,01-Feb-2024,Childrens Services,PERRYFIELDS HIGH SCHOOL         ,Childrens Services,10106.00,Discretionary Awards,2324P11_CR00273,60946
Sandwell Metropolitan Borough Council,http://www.sandwell.gov.uk/info/200202/performance_and_spending/1079/payments_over_500,01-Feb-2024,Childrens Services,PERRYFIELDS PRIMARY SCHOOL      ,Childrens Services,6030.00,Discretionary Awards,2324P11_CR00274,61042
Sandwell Metropolitan Borough Council,http://www.sandwell.gov.uk/info/200202/performance_and_spending/1079/payments_over_500,01-Feb-2024,Childrens Services,PHOENIX COLLEGIATE COLLEGE,Childrens Services,650.00,Schools Support Services,2324P11_CR00275,95444
Sandwell Metropolitan Borough Council,http://www.sandwell.gov.uk/info/200202/performance_and_spending/1079/payments_over_500,01-Feb-2024,Childrens Services,Q3 ACADEMY TIPTON - THE MERCIAN TRUST,Childrens Services,3304.00,Discretionary Awards,2324P11_CR00276,112047
Sandwell Metropolitan Borough Council,http://www.sandwell.gov.uk/info/200202/performance_and_spending/1079/payments_over_500,01-Feb-2024,Childrens Services,SACRED HEART PRIMARY SCHOOL    ,Childrens Services,2432.00,Discretionary Awards,2324P11_CR00277,61048
Sandwell Metropolitan Borough Council,http://www.sandwell.gov.uk/info/200202/performance_and_spending/1079/payments_over_500,01-Feb-2024,Childrens Services,THE RIVERS MULTI ACADEMY TRUST,Childrens Services,6752.00,Discretionary Awards,2324P11_CR00278,61014
Sandwell Metropolitan Borough Council,http://www.sandwell.gov.uk/info/200202/performance_and_spending/1079/payments_over_500,01-Feb-2024,Childrens Services,TIPTON GREEN JUNIOR SCHOOL ACADEMY,Childrens Services,811.00,Discretionary Awards,2324P11_CR00279,61068
Sandwell Metropolitan Borough Council,http://www.sandwell.gov.uk/info/200202/performance_and_spending/1079/payments_over_500,01-Feb-2024,Childrens Services,WODENSBOROUGH ORMISTON ACADEMY,Childrens Services,8392.00,Discretionary Awards,2324P11_CR00280,115040
Sandwell Metropolitan Borough Council,http://www.sandwell.gov.uk/info/200202/performance_and_spending/1079/payments_over_500,01-Feb-2024,Childrens Services,WOOD GREEN JUNIOR SCHOOL        ,Childrens Services,2465.00,Discretionary Awards,2324P11_CR00281,61076
Sandwell Metropolitan Borough Council,http://www.sandwell.gov.uk/info/200202/performance_and_spending/1079/payments_over_500,12-Feb-2024,Childrens Services,REDACTED PERSONAL DATA,Childrens Services,727.27,External Contract Hire,2324P11_CR00282,REDACTED PERSONAL DATA
Sandwell Metropolitan Borough Council,http://www.sandwell.gov.uk/info/200202/performance_and_spending/1079/payments_over_500,12-Feb-2024,Childrens Services,REDACTED PERSONAL DATA,Childrens Services,545.45,External Contract Hire,2324P11_CR00283,REDACTED PERSONAL DATA
Sandwell Metropolitan Borough Council,http://www.sandwell.gov.uk/info/200202/performance_and_spending/1079/payments_over_500,12-Feb-2024,Childrens Services,REDACTED PERSONAL DATA,Childrens Services,545.45,External Contract Hire,2324P11_CR00284,REDACTED PERSONAL DATA
Sandwell Metropolitan Borough Council,http://www.sandwell.gov.uk/info/200202/performance_and_spending/1079/payments_over_500,12-Feb-2024,Childrens Services,REDACTED PERSONAL DATA,Childrens Services,545.45,External Contract Hire,2324P11_CR00285,REDACTED PERSONAL DATA
Sandwell Metropolitan Borough Council,http://www.sandwell.gov.uk/info/200202/performance_and_spending/1079/payments_over_500,12-Feb-2024,Childrens Services,REDACTED PERSONAL DATA,Childrens Services,545.45,External Contract Hire,2324P11_CR00286,REDACTED PERSONAL DATA
Sandwell Metropolitan Borough Council,http://www.sandwell.gov.uk/info/200202/performance_and_spending/1079/payments_over_500,12-Feb-2024,Childrens Services,REDACTED PERSONAL DATA,Childrens Services,1090.90,External Contract Hire,2324P11_CR00287,REDACTED PERSONAL DATA
Sandwell Metropolitan Borough Council,http://www.sandwell.gov.uk/info/200202/performance_and_spending/1079/payments_over_500,12-Feb-2024,Childrens Services,REDACTED PERSONAL DATA,Childrens Services,545.45,External Contract Hire,2324P11_CR00288,REDACTED PERSONAL DATA
Sandwell Metropolitan Borough Council,http://www.sandwell.gov.uk/info/200202/performance_and_spending/1079/payments_over_500,12-Feb-2024,Childrens Services,REDACTED PERSONAL DATA,Childrens Services,545.45,External Contract Hire,2324P11_CR00289,REDACTED PERSONAL DATA
Sandwell Metropolitan Borough Council,http://www.sandwell.gov.uk/info/200202/performance_and_spending/1079/payments_over_500,12-Feb-2024,Childrens Services,REDACTED PERSONAL DATA    ,Childrens Services,545.45,External Contract Hire,2324P11_CR00290,REDACTED PERSONAL DATA
Sandwell Metropolitan Borough Council,http://www.sandwell.gov.uk/info/200202/performance_and_spending/1079/payments_over_500,12-Feb-2024,Childrens Services,REDACTED PERSONAL DATA,Childrens Services,545.45,External Contract Hire,2324P11_CR00291,REDACTED PERSONAL DATA
Sandwell Metropolitan Borough Council,http://www.sandwell.gov.uk/info/200202/performance_and_spending/1079/payments_over_500,12-Feb-2024,Childrens Services,REDACTED PERSONAL DATA,Childrens Services,545.45,External Contract Hire,2324P11_CR00292,REDACTED PERSONAL DATA
Sandwell Metropolitan Borough Council,http://www.sandwell.gov.uk/info/200202/performance_and_spending/1079/payments_over_500,12-Feb-2024,Childrens Services,REDACTED PERSONAL DATA,Childrens Services,545.45,External Contract Hire,2324P11_CR00293,REDACTED PERSONAL DATA
Sandwell Metropolitan Borough Council,http://www.sandwell.gov.uk/info/200202/performance_and_spending/1079/payments_over_500,12-Feb-2024,Childrens Services,REDACTED PERSONAL DATA,Childrens Services,727.28,External Contract Hire,2324P11_CR00294,REDACTED PERSONAL DATA
Sandwell Metropolitan Borough Council,http://www.sandwell.gov.uk/info/200202/performance_and_spending/1079/payments_over_500,12-Feb-2024,Childrens Services,REDACTED PERSONAL DATA,Childrens Services,727.27,External Contract Hire,2324P11_CR00295,REDACTED PERSONAL DATA
Sandwell Metropolitan Borough Council,http://www.sandwell.gov.uk/info/200202/performance_and_spending/1079/payments_over_500,12-Feb-2024,Childrens Services,REDACTED PERSONAL DATA,Childrens Services,545.45,External Contract Hire,2324P11_CR00296,REDACTED PERSONAL DATA
Sandwell Metropolitan Borough Council,http://www.sandwell.gov.uk/info/200202/performance_and_spending/1079/payments_over_500,12-Feb-2024,Childrens Services,REDACTED PERSONAL DATA,Childrens Services,545.45,External Contract Hire,2324P11_CR00297,REDACTED PERSONAL DATA
Sandwell Metropolitan Borough Council,http://www.sandwell.gov.uk/info/200202/performance_and_spending/1079/payments_over_500,12-Feb-2024,Childrens Services,REDACTED PERSONAL DATA,Childrens Services,545.45,External Contract Hire,2324P11_CR00298,REDACTED PERSONAL DATA
Sandwell Metropolitan Borough Council,http://www.sandwell.gov.uk/info/200202/performance_and_spending/1079/payments_over_500,12-Feb-2024,Childrens Services,REDACTED PERSONAL DATA,Childrens Services,727.27,External Contract Hire,2324P11_CR00299,REDACTED PERSONAL DATA
Sandwell Metropolitan Borough Council,http://www.sandwell.gov.uk/info/200202/performance_and_spending/1079/payments_over_500,12-Feb-2024,Childrens Services,REDACTED PERSONAL DATA,Childrens Services,727.27,External Contract Hire,2324P11_CR00300,REDACTED PERSONAL DATA
Sandwell Metropolitan Borough Council,http://www.sandwell.gov.uk/info/200202/performance_and_spending/1079/payments_over_500,12-Feb-2024,Childrens Services,REDACTED PERSONAL DATA,Childrens Services,545.45,External Contract Hire,2324P11_CR00301,REDACTED PERSONAL DATA
Sandwell Metropolitan Borough Council,http://www.sandwell.gov.uk/info/200202/performance_and_spending/1079/payments_over_500,12-Feb-2024,Childrens Services,REDACTED PERSONAL DATA,Childrens Services,727.27,External Contract Hire,2324P11_CR00302,REDACTED PERSONAL DATA
Sandwell Metropolitan Borough Council,http://www.sandwell.gov.uk/info/200202/performance_and_spending/1079/payments_over_500,12-Feb-2024,Childrens Services,REDACTED PERSONAL DATA,Childrens Services,545.45,External Contract Hire,2324P11_CR00303,REDACTED PERSONAL DATA
Sandwell Metropolitan Borough Council,http://www.sandwell.gov.uk/info/200202/performance_and_spending/1079/payments_over_500,12-Feb-2024,Childrens Services,REDACTED PERSONAL DATA,Childrens Services,545.45,External Contract Hire,2324P11_CR00304,REDACTED PERSONAL DATA
Sandwell Metropolitan Borough Council,http://www.sandwell.gov.uk/info/200202/performance_and_spending/1079/payments_over_500,12-Feb-2024,Childrens Services,REDACTED PERSONAL DATA,Childrens Services,545.45,External Contract Hire,2324P11_CR00305,REDACTED PERSONAL DATA
Sandwell Metropolitan Borough Council,http://www.sandwell.gov.uk/info/200202/performance_and_spending/1079/payments_over_500,12-Feb-2024,Childrens Services,REDACTED PERSONAL DATA,Childrens Services,727.27,External Contract Hire,2324P11_CR00306,REDACTED PERSONAL DATA
Sandwell Metropolitan Borough Council,http://www.sandwell.gov.uk/info/200202/performance_and_spending/1079/payments_over_500,12-Feb-2024,Childrens Services,REDACTED PERSONAL DATA,Childrens Services,545.45,External Contract Hire,2324P11_CR00307,REDACTED PERSONAL DATA
Sandwell Metropolitan Borough Council,http://www.sandwell.gov.uk/info/200202/performance_and_spending/1079/payments_over_500,20-Feb-2024,Childrens Services,REDACTED PERSONAL DATA,Childrens Services,885.60,External Contract Hire,2324P11_CR00308,REDACTED PERSONAL DATA
Sandwell Metropolitan Borough Council,http://www.sandwell.gov.uk/info/200202/performance_and_spending/1079/payments_over_500,20-Feb-2024,Childrens Services,REDACTED PERSONAL DATA,Childrens Services,665.28,External Contract Hire,2324P11_CR00309,REDACTED PERSONAL DATA
Sandwell Metropolitan Borough Council,http://www.sandwell.gov.uk/info/200202/performance_and_spending/1079/payments_over_500,20-Feb-2024,Childrens Services,REDACTED PERSONAL DATA,Childrens Services,688.50,External Contract Hire,2324P11_CR00310,REDACTED PERSONAL DATA
Sandwell Metropolitan Borough Council,http://www.sandwell.gov.uk/info/200202/performance_and_spending/1079/payments_over_500,01-Feb-2024,Childrens Services Capital,BLOOM PROCUREMENT SERVICES LTD,Childrens Services Capital,26238.42,"CIP - New Construction,Conversion, Enhancement & Reno",2324P11_CR00311,141813
Sandwell Metropolitan Borough Council,http://www.sandwell.gov.uk/info/200202/performance_and_spending/1079/payments_over_500,22-Feb-2024,Childrens Services Capital,BLOOM PROCUREMENT SERVICES LTD,Childrens Services Capital,17815.94,"CIP - New Construction,Conversion, Enhancement & Reno",2324P11_CR00312,141813
Sandwell Metropolitan Borough Council,http://www.sandwell.gov.uk/info/200202/performance_and_spending/1079/payments_over_500,01-Feb-2024,Childrens Services Capital,GM BUILDING AND PROPERTY SERVICES LTD,Childrens Services Capital,19207.50,"CIP - New Construction,Conversion, Enhancement & Reno",2324P11_CR00313,141782
Sandwell Metropolitan Borough Council,http://www.sandwell.gov.uk/info/200202/performance_and_spending/1079/payments_over_500,01-Feb-2024,Childrens Services Capital,SEATED FURNITURE LTD,Childrens Services Capital,769.48,CIP - Fixtures & Fittings,2324P11_CR00314,167393
Sandwell Metropolitan Borough Council,http://www.sandwell.gov.uk/info/200202/performance_and_spending/1079/payments_over_500,01-Feb-2024,Corporate Management,TILE HILL INTERIM & EXECUTIVE LTD,Corporate Management,12510.00,Consultancy,2324P11_CR00315,167439
Sandwell Metropolitan Borough Council,http://www.sandwell.gov.uk/info/200202/performance_and_spending/1079/payments_over_500,01-Feb-2024,Regeneration And The Economy Capital,EGINOL ENVIRONMENTAL LTD,Regeneration And The Economy Capital,1680.00,"CIP - New Construction,Conversion, Enhancement & Reno",2324P11_CR00316,138725
Sandwell Metropolitan Borough Council,http://www.sandwell.gov.uk/info/200202/performance_and_spending/1079/payments_over_500,02-Feb-2024,Regeneration And The Economy Capital,STOURBRIDGE PAVING COMPANY LIMITED,Regeneration And The Economy Capital,40000.00,CIP - Infrastructure,2324P11_CR00317,77003641
Sandwell Metropolitan Borough Council,http://www.sandwell.gov.uk/info/200202/performance_and_spending/1079/payments_over_500,15-Feb-2024,FINANCE (Inc SIU),BROWNE JACOBSON LLP,Assistant Chief Executive (Excl SIU),591.50,Externally Purchased Professional Services ,2324P11_CR00318,109574
Sandwell Metropolitan Borough Council,http://www.sandwell.gov.uk/info/200202/performance_and_spending/1079/payments_over_500,01-Feb-2024,FINANCE (Inc SIU),BROWNE JACOBSON LLP,Assistant Chief Executive (Excl SIU),692.90,Externally Purchased Professional Services ,2324P11_CR00319,109574
Sandwell Metropolitan Borough Council,http://www.sandwell.gov.uk/info/200202/performance_and_spending/1079/payments_over_500,07-Feb-2024,FINANCE (Inc SIU),BROWNE JACOBSON LLP,Assistant Chief Executive (Excl SIU),2177.80,Externally Purchased Professional Services ,2324P11_CR00320,109574
Sandwell Metropolitan Borough Council,http://www.sandwell.gov.uk/info/200202/performance_and_spending/1079/payments_over_500,01-Feb-2024,FINANCE (Inc SIU),BROWNE JACOBSON LLP,Assistant Chief Executive (Excl SIU),537.60,Externally Purchased Professional Services ,2324P11_CR00321,109574
Sandwell Metropolitan Borough Council,http://www.sandwell.gov.uk/info/200202/performance_and_spending/1079/payments_over_500,08-Feb-2024,FINANCE (Inc SIU),BROWNE JACOBSON LLP,Assistant Chief Executive (Excl SIU),2331.00,Externally Purchased Professional Services ,2324P11_CR00322,109574
Sandwell Metropolitan Borough Council,http://www.sandwell.gov.uk/info/200202/performance_and_spending/1079/payments_over_500,13-Feb-2024,FINANCE (Inc SIU),BROWNE JACOBSON LLP,Assistant Chief Executive (Excl SIU),2534.50,Externally Purchased Professional Services ,2324P11_CR00323,109574
Sandwell Metropolitan Borough Council,http://www.sandwell.gov.uk/info/200202/performance_and_spending/1079/payments_over_500,02-Feb-2024,FINANCE (Inc SIU),BROWNE JACOBSON LLP,Assistant Chief Executive (Excl SIU),2161.10,Externally Purchased Professional Services ,2324P11_CR00324,109574
Sandwell Metropolitan Borough Council,http://www.sandwell.gov.uk/info/200202/performance_and_spending/1079/payments_over_500,15-Feb-2024,FINANCE (Inc SIU),BROWNE JACOBSON LLP,Assistant Chief Executive (Excl SIU),1184.50,Externally Purchased Professional Services ,2324P11_CR00325,109574
Sandwell Metropolitan Borough Council,http://www.sandwell.gov.uk/info/200202/performance_and_spending/1079/payments_over_500,16-Feb-2024,FINANCE (Inc SIU),DWP,Assistant Chief Executive (Excl SIU),806.00,Insurance,2324P11_CR00326,01753867
Sandwell Metropolitan Borough Council,http://www.sandwell.gov.uk/info/200202/performance_and_spending/1079/payments_over_500,23-Feb-2024,FINANCE (Inc SIU),DWP,Assistant Chief Executive (Excl SIU),2050.00,Insurance,2324P11_CR00327,01753867
Sandwell Metropolitan Borough Council,http://www.sandwell.gov.uk/info/200202/performance_and_spending/1079/payments_over_500,12-Feb-2024,FINANCE (Inc SIU),DWP,Assistant Chief Executive (Excl SIU),766.00,Insurance,2324P11_CR00328,01753867
Sandwell Metropolitan Borough Council,http://www.sandwell.gov.uk/info/200202/performance_and_spending/1079/payments_over_500,21-Feb-2024,FINANCE (Inc SIU),GOWING LAW SOLICITORS,Assistant Chief Executive (Excl SIU),6300.00,Insurance,2324P11_CR00329,163069
Sandwell Metropolitan Borough Council,http://www.sandwell.gov.uk/info/200202/performance_and_spending/1079/payments_over_500,02-Feb-2024,FINANCE (Inc SIU),GOWING LAW SOLICITORS,Assistant Chief Executive (Excl SIU),1500.00,Insurance,2324P11_CR00330,163069
Sandwell Metropolitan Borough Council,http://www.sandwell.gov.uk/info/200202/performance_and_spending/1079/payments_over_500,16-Feb-2024,FINANCE (Inc SIU),KINETICS LAW LTD,Assistant Chief Executive (Excl SIU),6407.70,Insurance,2324P11_CR00331,164181
Sandwell Metropolitan Borough Council,http://www.sandwell.gov.uk/info/200202/performance_and_spending/1079/payments_over_500,16-Feb-2024,FINANCE (Inc SIU),KINETICS LAW LTD,Assistant Chief Executive (Excl SIU),2549.30,Insurance,2324P11_CR00332,164181
Sandwell Metropolitan Borough Council,http://www.sandwell.gov.uk/info/200202/performance_and_spending/1079/payments_over_500,28-Feb-2024,FINANCE (Inc SIU),MJV & CO SOLICITORS LTD T/A MJV SOLICITORS,Assistant Chief Executive (Excl SIU),9500.00,Insurance,2324P11_CR00333,147969
Sandwell Metropolitan Borough Council,http://www.sandwell.gov.uk/info/200202/performance_and_spending/1079/payments_over_500,15-Feb-2024,FINANCE (Inc SIU),NEWLAW SOLICITORS ,Assistant Chief Executive (Excl SIU),2186.00,Insurance,2324P11_CR00334,118813
Sandwell Metropolitan Borough Council,http://www.sandwell.gov.uk/info/200202/performance_and_spending/1079/payments_over_500,15-Feb-2024,FINANCE (Inc SIU),NEWLAW SOLICITORS ,Assistant Chief Executive (Excl SIU),5500.00,Insurance,2324P11_CR00335,118813
Sandwell Metropolitan Borough Council,http://www.sandwell.gov.uk/info/200202/performance_and_spending/1079/payments_over_500,26-Feb-2024,FINANCE (Inc SIU),RYANS SOLICITORS,Assistant Chief Executive (Excl SIU),9000.00,Insurance,2324P11_CR00336,168125
Sandwell Metropolitan Borough Council,http://www.sandwell.gov.uk/info/200202/performance_and_spending/1079/payments_over_500,08-Feb-2024,FINANCE (Inc SIU),SEDGWICK INTERNATIONAL UK,Assistant Chief Executive (Excl SIU),525.00,Externally Purchased Professional Services ,2324P11_CR00337,136510
Sandwell Metropolitan Borough Council,http://www.sandwell.gov.uk/info/200202/performance_and_spending/1079/payments_over_500,12-Feb-2024,FINANCE (Inc SIU),SIMPSON MILLAR LLP SOLICITORS.,Assistant Chief Executive (Excl SIU),7500.00,Insurance,2324P11_CR00338,94416
Sandwell Metropolitan Borough Council,http://www.sandwell.gov.uk/info/200202/performance_and_spending/1079/payments_over_500,12-Feb-2024,FINANCE (Inc SIU),SIMPSON MILLAR LLP SOLICITORS.,Assistant Chief Executive (Excl SIU),1488.00,Insurance,2324P11_CR00339,94416
Sandwell Metropolitan Borough Council,http://www.sandwell.gov.uk/info/200202/performance_and_spending/1079/payments_over_500,13-Feb-2024,FINANCE (Inc SIU),SNK SOLICITORS - HSBC CLIENT ACCOUNT,Assistant Chief Executive (Excl SIU),1600.00,Insurance,2324P11_CR00340,153730
Sandwell Metropolitan Borough Council,http://www.sandwell.gov.uk/info/200202/performance_and_spending/1079/payments_over_500,05-Feb-2024,FINANCE (Inc SIU),THE ACCOUNTANT GENERAL OF THE SENIOR COURTS,Assistant Chief Executive (Excl SIU),7000.00,Insurance,2324P11_CR00341,5091
Sandwell Metropolitan Borough Council,http://www.sandwell.gov.uk/info/200202/performance_and_spending/1079/payments_over_500,26-Feb-2024,FINANCE (Inc SIU),VERITAS SOLICITORS,Assistant Chief Executive (Excl SIU),14500.00,Insurance,2324P11_CR00342,163336
Sandwell Metropolitan Borough Council,http://www.sandwell.gov.uk/info/200202/performance_and_spending/1079/payments_over_500,26-Feb-2024,FINANCE (Inc SIU),BOND TURNER,Assistant Chief Executive (Excl SIU),1900.00,Insurance,2324P11_CR00343,152400
Sandwell Metropolitan Borough Council,http://www.sandwell.gov.uk/info/200202/performance_and_spending/1079/payments_over_500,15-Feb-2024,FINANCE (Inc SIU),REDACTED PERSONAL DATA,Assistant Chief Executive (Excl SIU),1500.00,Insurance,2324P11_CR00344,REDACTED PERSONAL DATA
Sandwell Metropolitan Borough Council,http://www.sandwell.gov.uk/info/200202/performance_and_spending/1079/payments_over_500,05-Feb-2024,FINANCE (Inc SIU),REDACTED PERSONAL DATA,Assistant Chief Executive (Excl SIU),1363.63,Insurance,2324P11_CR00345,REDACTED PERSONAL DATA
Sandwell Metropolitan Borough Council,http://www.sandwell.gov.uk/info/200202/performance_and_spending/1079/payments_over_500,09-Feb-2024,FINANCE (Inc SIU),HAYS SPECIALIST RECRUITMENT LTD,Assistant Chief Executive (Excl SIU),-25397.96,Agency Staff,2324P11_CR00346,80349
Sandwell Metropolitan Borough Council,http://www.sandwell.gov.uk/info/200202/performance_and_spending/1079/payments_over_500,01-Feb-2024,FINANCE (Inc SIU),ALLPAY LIMITED,Total Adult Social Care,1002.92,Externally Purchased Professional Services ,2324P11_CR00347,111177
Sandwell Metropolitan Borough Council,http://www.sandwell.gov.uk/info/200202/performance_and_spending/1079/payments_over_500,01-Feb-2024,FINANCE (Inc SIU),ALLPAY LIMITED,Total Adult Social Care,975.66,Externally Purchased Professional Services ,2324P11_CR00348,111177
Sandwell Metropolitan Borough Council,http://www.sandwell.gov.uk/info/200202/performance_and_spending/1079/payments_over_500,01-Feb-2024,FINANCE (Inc SIU),ALLPAY LIMITED,Total Adult Social Care,973.82,Externally Purchased Professional Services ,2324P11_CR00349,111177
Sandwell Metropolitan Borough Council,http://www.sandwell.gov.uk/info/200202/performance_and_spending/1079/payments_over_500,01-Feb-2024,FINANCE (Inc SIU),ALLPAY LIMITED,Total Adult Social Care,986.48,Externally Purchased Professional Services ,2324P11_CR00350,111177
Sandwell Metropolitan Borough Council,http://www.sandwell.gov.uk/info/200202/performance_and_spending/1079/payments_over_500,01-Feb-2024,FINANCE (Inc SIU),AMBIENT PEOPLE LTD,Assistant Chief Executive (Excl SIU),3450.00,Agency Staff,2324P11_CR00351,165446
Sandwell Metropolitan Borough Council,http://www.sandwell.gov.uk/info/200202/performance_and_spending/1079/payments_over_500,14-Feb-2024,FINANCE (Inc SIU),AMBIENT PEOPLE LTD,Assistant Chief Executive (Excl SIU),2070.00,Agency Staff,2324P11_CR00352,165446
Sandwell Metropolitan Borough Council,http://www.sandwell.gov.uk/info/200202/performance_and_spending/1079/payments_over_500,07-Feb-2024,FINANCE (Inc SIU),AMBIENT PEOPLE LTD,Assistant Chief Executive (Excl SIU),3450.00,Agency Staff,2324P11_CR00353,165446
Sandwell Metropolitan Borough Council,http://www.sandwell.gov.uk/info/200202/performance_and_spending/1079/payments_over_500,09-Feb-2024,FINANCE (Inc SIU),DEPARTMENT FOR LEVELLING UP,FINANCE (Inc SIU),146850.00,Government Grants & Subsidies,2324P11_CR00354,168030
Sandwell Metropolitan Borough Council,http://www.sandwell.gov.uk/info/200202/performance_and_spending/1079/payments_over_500,01-Feb-2024,FINANCE (Inc SIU),EKAL SOLUTIONS LIMITED,Assistant Chief Executive (Excl SIU),2925.00,Agency Staff,2324P11_CR00355,166571
Sandwell Metropolitan Borough Council,http://www.sandwell.gov.uk/info/200202/performance_and_spending/1079/payments_over_500,01-Feb-2024,FINANCE (Inc SIU),EKAL SOLUTIONS LIMITED,Assistant Chief Executive (Excl SIU),2925.00,Agency Staff,2324P11_CR00356,166571
Sandwell Metropolitan Borough Council,http://www.sandwell.gov.uk/info/200202/performance_and_spending/1079/payments_over_500,01-Feb-2024,FINANCE (Inc SIU),EKAL SOLUTIONS LIMITED,Assistant Chief Executive (Excl SIU),2925.00,Agency Staff,2324P11_CR00357,166571
Sandwell Metropolitan Borough Council,http://www.sandwell.gov.uk/info/200202/performance_and_spending/1079/payments_over_500,01-Feb-2024,FINANCE (Inc SIU),EKAL SOLUTIONS LIMITED,Assistant Chief Executive (Excl SIU),2925.00,Agency Staff,2324P11_CR00358,166571
Sandwell Metropolitan Borough Council,http://www.sandwell.gov.uk/info/200202/performance_and_spending/1079/payments_over_500,11-Feb-2024,FINANCE (Inc SIU),EKAL SOLUTIONS LIMITED,Assistant Chief Executive (Excl SIU),2925.00,Agency Staff,2324P11_CR00359,166571
Sandwell Metropolitan Borough Council,http://www.sandwell.gov.uk/info/200202/performance_and_spending/1079/payments_over_500,01-Feb-2024,FINANCE (Inc SIU),EKAL SOLUTIONS LIMITED,Assistant Chief Executive (Excl SIU),2925.00,Agency Staff,2324P11_CR00360,166571
Sandwell Metropolitan Borough Council,http://www.sandwell.gov.uk/info/200202/performance_and_spending/1079/payments_over_500,01-Feb-2024,FINANCE (Inc SIU),EKAL SOLUTIONS LIMITED,Assistant Chief Executive (Excl SIU),2632.50,Agency Staff,2324P11_CR00361,166571
Sandwell Metropolitan Borough Council,http://www.sandwell.gov.uk/info/200202/performance_and_spending/1079/payments_over_500,17-Feb-2024,FINANCE (Inc SIU),EKAL SOLUTIONS LIMITED,Assistant Chief Executive (Excl SIU),2925.00,Agency Staff,2324P11_CR00362,166571
Sandwell Metropolitan Borough Council,http://www.sandwell.gov.uk/info/200202/performance_and_spending/1079/payments_over_500,17-Feb-2024,FINANCE (Inc SIU),EKAL SOLUTIONS LIMITED,Assistant Chief Executive (Excl SIU),2925.00,Agency Staff,2324P11_CR00363,166571
Sandwell Metropolitan Borough Council,http://www.sandwell.gov.uk/info/200202/performance_and_spending/1079/payments_over_500,01-Feb-2024,FINANCE (Inc SIU),G4S CASH SOLUTIONS (UK) LTD,Assistant Chief Executive (Excl SIU),657.46,Cash Collections,2324P11_CR00364,01606348
Sandwell Metropolitan Borough Council,http://www.sandwell.gov.uk/info/200202/performance_and_spending/1079/payments_over_500,01-Feb-2024,FINANCE (Inc SIU),G4S CASH SOLUTIONS (UK) LTD,Assistant Chief Executive (Excl SIU),670.86,Cash Collections,2324P11_CR00365,01606348
Sandwell Metropolitan Borough Council,http://www.sandwell.gov.uk/info/200202/performance_and_spending/1079/payments_over_500,07-Feb-2024,FINANCE (Inc SIU),GATENBYSANDERSON LTD,Assistant Chief Executive (Excl SIU),18975.00,Agency Staff,2324P11_CR00366,50038
Sandwell Metropolitan Borough Council,http://www.sandwell.gov.uk/info/200202/performance_and_spending/1079/payments_over_500,11-Feb-2024,FINANCE (Inc SIU),GATENBYSANDERSON LTD,Assistant Chief Executive (Excl SIU),12650.00,Agency Staff,2324P11_CR00367,50038
Sandwell Metropolitan Borough Council,http://www.sandwell.gov.uk/info/200202/performance_and_spending/1079/payments_over_500,01-Feb-2024,FINANCE (Inc SIU),GRANT THORNTON UK LLP,Assistant Chief Executive (Excl SIU),141864.00,Externally Purchased Professional Services ,2324P11_CR00368,74713
Sandwell Metropolitan Borough Council,http://www.sandwell.gov.uk/info/200202/performance_and_spending/1079/payments_over_500,01-Feb-2024,FINANCE (Inc SIU),HAWK INCENTIVES LTD,Assistant Chief Executive (Excl SIU),6200.00,Catering Provisions,2324P11_CR00369,148982
Sandwell Metropolitan Borough Council,http://www.sandwell.gov.uk/info/200202/performance_and_spending/1079/payments_over_500,07-Feb-2024,FINANCE (Inc SIU),HAYS SPECIALIST RECRUITMENT LTD,Total Adult Social Care,136501.58,Agency Staff,2324P11_CR00370,80349
Sandwell Metropolitan Borough Council,http://www.sandwell.gov.uk/info/200202/performance_and_spending/1079/payments_over_500,01-Feb-2024,FINANCE (Inc SIU),INFORM CPI LTD,Assistant Chief Executive (Excl SIU),775.00,Externally Purchased Professional Services ,2324P11_CR00371,123986
Sandwell Metropolitan Borough Council,http://www.sandwell.gov.uk/info/200202/performance_and_spending/1079/payments_over_500,01-Feb-2024,FINANCE (Inc SIU),INFOSYS LIMITED,Assistant Chief Executive (Excl SIU),15050.00,Externally Purchased Professional Services ,2324P11_CR00372,164052
Sandwell Metropolitan Borough Council,http://www.sandwell.gov.uk/info/200202/performance_and_spending/1079/payments_over_500,01-Feb-2024,FINANCE (Inc SIU),INFOSYS LIMITED,Assistant Chief Executive (Excl SIU),379994.75,Consultancy,2324P11_CR00373,164052
Sandwell Metropolitan Borough Council,http://www.sandwell.gov.uk/info/200202/performance_and_spending/1079/payments_over_500,01-Feb-2024,FINANCE (Inc SIU),INOAPPS LIMITED,Assistant Chief Executive (Excl SIU),7700.00,Externally Purchased Professional Services ,2324P11_CR00374,122364
Sandwell Metropolitan Borough Council,http://www.sandwell.gov.uk/info/200202/performance_and_spending/1079/payments_over_500,01-Feb-2024,FINANCE (Inc SIU),MACILDOWIE ASSOCIATES LTD,Assistant Chief Executive (Excl SIU),3074.40,Agency Staff,2324P11_CR00375,164797
Sandwell Metropolitan Borough Council,http://www.sandwell.gov.uk/info/200202/performance_and_spending/1079/payments_over_500,01-Feb-2024,FINANCE (Inc SIU),MACILDOWIE ASSOCIATES LTD,Assistant Chief Executive (Excl SIU),2211.30,Agency Staff,2324P11_CR00376,164797
Sandwell Metropolitan Borough Council,http://www.sandwell.gov.uk/info/200202/performance_and_spending/1079/payments_over_500,01-Feb-2024,FINANCE (Inc SIU),MACILDOWIE ASSOCIATES LTD,Assistant Chief Executive (Excl SIU),3074.40,Agency Staff,2324P11_CR00377,164797
Sandwell Metropolitan Borough Council,http://www.sandwell.gov.uk/info/200202/performance_and_spending/1079/payments_over_500,01-Feb-2024,FINANCE (Inc SIU),MACILDOWIE ASSOCIATES LTD,Assistant Chief Executive (Excl SIU),2211.30,Agency Staff,2324P11_CR00378,164797
Sandwell Metropolitan Borough Council,http://www.sandwell.gov.uk/info/200202/performance_and_spending/1079/payments_over_500,04-Feb-2024,FINANCE (Inc SIU),MACILDOWIE ASSOCIATES LTD,Assistant Chief Executive (Excl SIU),2211.30,Agency Staff,2324P11_CR00379,164797
Sandwell Metropolitan Borough Council,http://www.sandwell.gov.uk/info/200202/performance_and_spending/1079/payments_over_500,04-Feb-2024,FINANCE (Inc SIU),MACILDOWIE ASSOCIATES LTD,Assistant Chief Executive (Excl SIU),2928.00,Agency Staff,2324P11_CR00380,164797
Sandwell Metropolitan Borough Council,http://www.sandwell.gov.uk/info/200202/performance_and_spending/1079/payments_over_500,15-Feb-2024,FINANCE (Inc SIU),MACILDOWIE ASSOCIATES LTD,Assistant Chief Executive (Excl SIU),3685.50,Agency Staff,2324P11_CR00381,164797
Sandwell Metropolitan Borough Council,http://www.sandwell.gov.uk/info/200202/performance_and_spending/1079/payments_over_500,15-Feb-2024,FINANCE (Inc SIU),MACILDOWIE ASSOCIATES LTD,Assistant Chief Executive (Excl SIU),3147.60,Agency Staff,2324P11_CR00382,164797
Sandwell Metropolitan Borough Council,http://www.sandwell.gov.uk/info/200202/performance_and_spending/1079/payments_over_500,17-Feb-2024,FINANCE (Inc SIU),MACILDOWIE ASSOCIATES LTD,Assistant Chief Executive (Excl SIU),3685.50,Agency Staff,2324P11_CR00383,164797
Sandwell Metropolitan Borough Council,http://www.sandwell.gov.uk/info/200202/performance_and_spending/1079/payments_over_500,01-Feb-2024,FINANCE (Inc SIU),MARSH LIMITED,Assistant Chief Executive (Excl SIU),1394.62,Insurance,2324P11_CR00384,01165486
Sandwell Metropolitan Borough Council,http://www.sandwell.gov.uk/info/200202/performance_and_spending/1079/payments_over_500,01-Feb-2024,FINANCE (Inc SIU),NEC SOFTWARE SOLUTIONS UK LTD,Assistant Chief Executive (Excl SIU),6531.81,Private Contractors,2324P11_CR00385,56043
Sandwell Metropolitan Borough Council,http://www.sandwell.gov.uk/info/200202/performance_and_spending/1079/payments_over_500,01-Feb-2024,FINANCE (Inc SIU),NEC SOFTWARE SOLUTIONS UK LTD,Assistant Chief Executive (Excl SIU),1280.00,Private Contractors,2324P11_CR00386,56043
Sandwell Metropolitan Borough Council,http://www.sandwell.gov.uk/info/200202/performance_and_spending/1079/payments_over_500,01-Feb-2024,FINANCE (Inc SIU),NEC SOFTWARE SOLUTIONS UK LTD,Assistant Chief Executive (Excl SIU),550.00,Private Contractors,2324P11_CR00387,56043
Sandwell Metropolitan Borough Council,http://www.sandwell.gov.uk/info/200202/performance_and_spending/1079/payments_over_500,01-Feb-2024,FINANCE (Inc SIU),ORACLE CORPORATION UK LTD,Assistant Chief Executive (Excl SIU),8559.00,Externally Purchased Professional Services ,2324P11_CR00388,01539742
Sandwell Metropolitan Borough Council,http://www.sandwell.gov.uk/info/200202/performance_and_spending/1079/payments_over_500,01-Feb-2024,FINANCE (Inc SIU),ORACLE CORPORATION UK LTD,Assistant Chief Executive (Excl SIU),2361.00,Externally Purchased Professional Services ,2324P11_CR00389,01539742
Sandwell Metropolitan Borough Council,http://www.sandwell.gov.uk/info/200202/performance_and_spending/1079/payments_over_500,01-Feb-2024,FINANCE (Inc SIU),PERMANENT FUTURES LTD,Assistant Chief Executive (Excl SIU),3375.00,Agency Staff,2324P11_CR00390,45209
Sandwell Metropolitan Borough Council,http://www.sandwell.gov.uk/info/200202/performance_and_spending/1079/payments_over_500,01-Feb-2024,FINANCE (Inc SIU),PERMANENT FUTURES LTD,Assistant Chief Executive (Excl SIU),3375.00,Agency Staff,2324P11_CR00391,45209
Sandwell Metropolitan Borough Council,http://www.sandwell.gov.uk/info/200202/performance_and_spending/1079/payments_over_500,04-Feb-2024,FINANCE (Inc SIU),PERMANENT FUTURES LTD,Assistant Chief Executive (Excl SIU),3375.00,Agency Staff,2324P11_CR00392,45209
Sandwell Metropolitan Borough Council,http://www.sandwell.gov.uk/info/200202/performance_and_spending/1079/payments_over_500,14-Feb-2024,FINANCE (Inc SIU),PERMANENT FUTURES LTD,Assistant Chief Executive (Excl SIU),3375.00,Agency Staff,2324P11_CR00393,45209
Sandwell Metropolitan Borough Council,http://www.sandwell.gov.uk/info/200202/performance_and_spending/1079/payments_over_500,01-Feb-2024,FINANCE (Inc SIU),PERMANENT FUTURES LTD,Assistant Chief Executive (Excl SIU),3375.00,Agency Staff,2324P11_CR00394,45209
Sandwell Metropolitan Borough Council,http://www.sandwell.gov.uk/info/200202/performance_and_spending/1079/payments_over_500,01-Feb-2024,FINANCE (Inc SIU),PERMANENT FUTURES LTD,Assistant Chief Executive (Excl SIU),3375.00,Agency Staff,2324P11_CR00395,45209
Sandwell Metropolitan Borough Council,http://www.sandwell.gov.uk/info/200202/performance_and_spending/1079/payments_over_500,22-Feb-2024,FINANCE (Inc SIU),PERMANENT FUTURES LTD,Assistant Chief Executive (Excl SIU),3375.00,Agency Staff,2324P11_CR00396,45209
Sandwell Metropolitan Borough Council,http://www.sandwell.gov.uk/info/200202/performance_and_spending/1079/payments_over_500,01-Feb-2024,FINANCE (Inc SIU),PORTFOLIO PAYROLL LTD,Assistant Chief Executive (Excl SIU),1140.00,Agency Staff,2324P11_CR00397,167281
Sandwell Metropolitan Borough Council,http://www.sandwell.gov.uk/info/200202/performance_and_spending/1079/payments_over_500,01-Feb-2024,FINANCE (Inc SIU),PORTFOLIO PAYROLL LTD,Assistant Chief Executive (Excl SIU),1140.00,Agency Staff,2324P11_CR00398,167281
Sandwell Metropolitan Borough Council,http://www.sandwell.gov.uk/info/200202/performance_and_spending/1079/payments_over_500,04-Feb-2024,FINANCE (Inc SIU),PORTFOLIO PAYROLL LTD,Assistant Chief Executive (Excl SIU),1140.00,Agency Staff,2324P11_CR00399,167281
Sandwell Metropolitan Borough Council,http://www.sandwell.gov.uk/info/200202/performance_and_spending/1079/payments_over_500,15-Feb-2024,FINANCE (Inc SIU),PORTFOLIO PAYROLL LTD,Assistant Chief Executive (Excl SIU),1140.00,Agency Staff,2324P11_CR00400,167281
Sandwell Metropolitan Borough Council,http://www.sandwell.gov.uk/info/200202/performance_and_spending/1079/payments_over_500,16-Feb-2024,FINANCE (Inc SIU),SOCITM ADVISORY LTD,Assistant Chief Executive (Excl SIU),17874.50,Externally Purchased Professional Services ,2324P11_CR00401,162370
Sandwell Metropolitan Borough Council,http://www.sandwell.gov.uk/info/200202/performance_and_spending/1079/payments_over_500,01-Feb-2024,FINANCE (Inc SIU),THE OYSTER PARTNERSHIP LTD,Assistant Chief Executive (Excl SIU),2450.00,Agency Staff,2324P11_CR00402,148917
Sandwell Metropolitan Borough Council,http://www.sandwell.gov.uk/info/200202/performance_and_spending/1079/payments_over_500,01-Feb-2024,FINANCE (Inc SIU),THE OYSTER PARTNERSHIP LTD,Assistant Chief Executive (Excl SIU),2100.00,Agency Staff,2324P11_CR00403,148917
Sandwell Metropolitan Borough Council,http://www.sandwell.gov.uk/info/200202/performance_and_spending/1079/payments_over_500,07-Feb-2024,FINANCE (Inc SIU),THE OYSTER PARTNERSHIP LTD,Assistant Chief Executive (Excl SIU),2800.00,Agency Staff,2324P11_CR00404,148917
Sandwell Metropolitan Borough Council,http://www.sandwell.gov.uk/info/200202/performance_and_spending/1079/payments_over_500,14-Feb-2024,FINANCE (Inc SIU),THE OYSTER PARTNERSHIP LTD,Assistant Chief Executive (Excl SIU),3500.00,Agency Staff,2324P11_CR00405,148917
Sandwell Metropolitan Borough Council,http://www.sandwell.gov.uk/info/200202/performance_and_spending/1079/payments_over_500,22-Feb-2024,FINANCE (Inc SIU),THE OYSTER PARTNERSHIP LTD,Assistant Chief Executive (Excl SIU),3500.00,Agency Staff,2324P11_CR00406,148917
Sandwell Metropolitan Borough Council,http://www.sandwell.gov.uk/info/200202/performance_and_spending/1079/payments_over_500,01-Feb-2024,FINANCE (Inc SIU),WEST MIDLANDS COMBINED AUTHORITY,Corporate Management,1264400.00,Business Rates,2324P11_CR00407,126646
Sandwell Metropolitan Borough Council,http://www.sandwell.gov.uk/info/200202/performance_and_spending/1079/payments_over_500,01-Feb-2024,FINANCE (Inc SIU),ZURICH INSURANCE PLC,Assistant Chief Executive (Excl SIU),27763.91,Insurance,2324P11_CR00408,01749452
Sandwell Metropolitan Borough Council,http://www.sandwell.gov.uk/info/200202/performance_and_spending/1079/payments_over_500,02-Feb-2024,FINANCE (Inc SIU),ABBEY INFANT SCHOOL     ,Assistant Chief Executive (Excl SIU),630.00,Schools Support Services,2324P11_CR00409,60959
Sandwell Metropolitan Borough Council,http://www.sandwell.gov.uk/info/200202/performance_and_spending/1079/payments_over_500,02-Feb-2024,FINANCE (Inc SIU),ABBEY JUNIOR SCHOOL  ,Assistant Chief Executive (Excl SIU),1260.00,Schools Support Services,2324P11_CR00410,60961
Sandwell Metropolitan Borough Council,http://www.sandwell.gov.uk/info/200202/performance_and_spending/1079/payments_over_500,02-Feb-2024,FINANCE (Inc SIU),ALBERT PRITCHARD INFANT SCHOOL   ,Assistant Chief Executive (Excl SIU),1050.00,Schools Support Services,2324P11_CR00411,60962
Sandwell Metropolitan Borough Council,http://www.sandwell.gov.uk/info/200202/performance_and_spending/1079/payments_over_500,02-Feb-2024,FINANCE (Inc SIU),ALL SAINTS CE PRIMARY SCHOOL  ,Assistant Chief Executive (Excl SIU),1745.00,Schools Support Services,2324P11_CR00412,60964
Sandwell Metropolitan Borough Council,http://www.sandwell.gov.uk/info/200202/performance_and_spending/1079/payments_over_500,02-Feb-2024,FINANCE (Inc SIU),ANNIE LENNARD INFANT SCHOOL,Assistant Chief Executive (Excl SIU),1110.00,Schools Support Services,2324P11_CR00413,60966
Sandwell Metropolitan Borough Council,http://www.sandwell.gov.uk/info/200202/performance_and_spending/1079/payments_over_500,02-Feb-2024,FINANCE (Inc SIU),BEARWOOD PRIMARY SCHOOL    ,Assistant Chief Executive (Excl SIU),2750.00,Schools Support Services,2324P11_CR00414,60967
Sandwell Metropolitan Borough Council,http://www.sandwell.gov.uk/info/200202/performance_and_spending/1079/payments_over_500,02-Feb-2024,FINANCE (Inc SIU),BLACKHEATH PRIMARY SCHOOL    ,Assistant Chief Executive (Excl SIU),2450.00,Schools Support Services,2324P11_CR00415,60968
Sandwell Metropolitan Borough Council,http://www.sandwell.gov.uk/info/200202/performance_and_spending/1079/payments_over_500,02-Feb-2024,FINANCE (Inc SIU),BLEAKHOUSE PRIMARY SCHOOL.,Assistant Chief Executive (Excl SIU),1865.00,Schools Support Services,2324P11_CR00416,60969
Sandwell Metropolitan Borough Council,http://www.sandwell.gov.uk/info/200202/performance_and_spending/1079/payments_over_500,02-Feb-2024,FINANCE (Inc SIU),BRANDHALL PRIMARY SCHOOL ,Assistant Chief Executive (Excl SIU),2415.00,Schools Support Services,2324P11_CR00417,60971
Sandwell Metropolitan Borough Council,http://www.sandwell.gov.uk/info/200202/performance_and_spending/1079/payments_over_500,02-Feb-2024,FINANCE (Inc SIU),BRICKHOUSE PRIMARY SCHOOL ,Assistant Chief Executive (Excl SIU),1370.00,Schools Support Services,2324P11_CR00418,60973
Sandwell Metropolitan Borough Council,http://www.sandwell.gov.uk/info/200202/performance_and_spending/1079/payments_over_500,02-Feb-2024,FINANCE (Inc SIU),BRISTNALL HALL ACADEMY,Assistant Chief Executive (Excl SIU),5985.00,Grant Payments,2324P11_CR00419,107471
Sandwell Metropolitan Borough Council,http://www.sandwell.gov.uk/info/200202/performance_and_spending/1079/payments_over_500,02-Feb-2024,FINANCE (Inc SIU),BURNT TREE PRIMARY SCHOOL    ,Assistant Chief Executive (Excl SIU),2165.00,Schools Support Services,2324P11_CR00420,60974
Sandwell Metropolitan Borough Council,http://www.sandwell.gov.uk/info/200202/performance_and_spending/1079/payments_over_500,02-Feb-2024,FINANCE (Inc SIU),CAPE PRIMARY SCHOOL,Assistant Chief Executive (Excl SIU),3810.00,Schools Support Services,2324P11_CR00421,01672537
Sandwell Metropolitan Borough Council,http://www.sandwell.gov.uk/info/200202/performance_and_spending/1079/payments_over_500,02-Feb-2024,FINANCE (Inc SIU),CAUSEWAY GREEN PRIMARY SCHOOL ,Assistant Chief Executive (Excl SIU),1740.00,Schools Support Services,2324P11_CR00422,60976
Sandwell Metropolitan Borough Council,http://www.sandwell.gov.uk/info/200202/performance_and_spending/1079/payments_over_500,02-Feb-2024,FINANCE (Inc SIU),CHRIST CHURCH CE PRIMARY    ,Assistant Chief Executive (Excl SIU),1740.00,Schools Support Services,2324P11_CR00423,60978
Sandwell Metropolitan Borough Council,http://www.sandwell.gov.uk/info/200202/performance_and_spending/1079/payments_over_500,02-Feb-2024,FINANCE (Inc SIU),CORNGREAVES ACADEMY,Assistant Chief Executive (Excl SIU),945.00,Grant Payments,2324P11_CR00424,112862
Sandwell Metropolitan Borough Council,http://www.sandwell.gov.uk/info/200202/performance_and_spending/1079/payments_over_500,02-Feb-2024,FINANCE (Inc SIU),CROCKETTS LANE COMMUNITY PRIMARY SCHOOL ,Assistant Chief Executive (Excl SIU),2290.00,Schools Support Services,2324P11_CR00425,60980
Sandwell Metropolitan Borough Council,http://www.sandwell.gov.uk/info/200202/performance_and_spending/1079/payments_over_500,02-Feb-2024,FINANCE (Inc SIU),DEVONSHIRE INFANTS ACADEMY,Assistant Chief Executive (Excl SIU),1145.00,Grant Payments,2324P11_CR00426,118366
Sandwell Metropolitan Borough Council,http://www.sandwell.gov.uk/info/200202/performance_and_spending/1079/payments_over_500,02-Feb-2024,FINANCE (Inc SIU),DEVONSHIRE JUNIOR ACADEMY,Assistant Chief Executive (Excl SIU),1545.00,Grant Payments,2324P11_CR00427,118367
Sandwell Metropolitan Borough Council,http://www.sandwell.gov.uk/info/200202/performance_and_spending/1079/payments_over_500,02-Feb-2024,FINANCE (Inc SIU),EATON VALLEY PRIMARY SCHOOL,Assistant Chief Executive (Excl SIU),1975.00,Schools Support Services,2324P11_CR00428,60981
Sandwell Metropolitan Borough Council,http://www.sandwell.gov.uk/info/200202/performance_and_spending/1079/payments_over_500,02-Feb-2024,FINANCE (Inc SIU),FERNDALE PRIMARY SCHOOL  ,Assistant Chief Executive (Excl SIU),2375.00,Schools Support Services,2324P11_CR00429,60987
Sandwell Metropolitan Borough Council,http://www.sandwell.gov.uk/info/200202/performance_and_spending/1079/payments_over_500,02-Feb-2024,FINANCE (Inc SIU),GALTON VALLEY PRIMARY SCHOOL  ,Assistant Chief Executive (Excl SIU),2395.00,Schools Support Services,2324P11_CR00430,73124
Sandwell Metropolitan Borough Council,http://www.sandwell.gov.uk/info/200202/performance_and_spending/1079/payments_over_500,02-Feb-2024,FINANCE (Inc SIU),GEORGE BETTS PRIMARY ACADEMY,Assistant Chief Executive (Excl SIU),2145.00,Grant Payments,2324P11_CR00431,113420
Sandwell Metropolitan Borough Council,http://www.sandwell.gov.uk/info/200202/performance_and_spending/1079/payments_over_500,02-Feb-2024,FINANCE (Inc SIU),GEORGE SALTER COLLEGIATE ACADEMY ORMISTON ACADEMIES TRUST,Assistant Chief Executive (Excl SIU),7495.00,Grant Payments,2324P11_CR00432,01217798
Sandwell Metropolitan Borough Council,http://www.sandwell.gov.uk/info/200202/performance_and_spending/1079/payments_over_500,02-Feb-2024,FINANCE (Inc SIU),GLEBEFIELDS PRIMARY SCHOOL       ,Assistant Chief Executive (Excl SIU),3260.00,Schools Support Services,2324P11_CR00433,60989
Sandwell Metropolitan Borough Council,http://www.sandwell.gov.uk/info/200202/performance_and_spending/1079/payments_over_500,02-Feb-2024,FINANCE (Inc SIU),GOSPEL OAK SCHOOL,Assistant Chief Executive (Excl SIU),7325.00,Grant Payments,2324P11_CR00434,60952
Sandwell Metropolitan Borough Council,http://www.sandwell.gov.uk/info/200202/performance_and_spending/1079/payments_over_500,02-Feb-2024,FINANCE (Inc SIU),GRACE MARY PRIMARY SCHOOL,Assistant Chief Executive (Excl SIU),1400.00,Schools Support Services,2324P11_CR00435,60991
Sandwell Metropolitan Borough Council,http://www.sandwell.gov.uk/info/200202/performance_and_spending/1079/payments_over_500,02-Feb-2024,FINANCE (Inc SIU),GREAT BRIDGE PRIMARY SCHOOL     ,Assistant Chief Executive (Excl SIU),2315.00,Schools Support Services,2324P11_CR00436,42484
Sandwell Metropolitan Borough Council,http://www.sandwell.gov.uk/info/200202/performance_and_spending/1079/payments_over_500,02-Feb-2024,FINANCE (Inc SIU),GROVE VALE PRIMARY SCHOOL,Assistant Chief Executive (Excl SIU),735.00,Schools Support Services,2324P11_CR00437,60993
Sandwell Metropolitan Borough Council,http://www.sandwell.gov.uk/info/200202/performance_and_spending/1079/payments_over_500,02-Feb-2024,FINANCE (Inc SIU),HALL GREEN PRIMARY SCHOOL   ,Assistant Chief Executive (Excl SIU),2435.00,Schools Support Services,2324P11_CR00438,60996
Sandwell Metropolitan Borough Council,http://www.sandwell.gov.uk/info/200202/performance_and_spending/1079/payments_over_500,02-Feb-2024,FINANCE (Inc SIU),HAMSTEAD PRMIARY SCHOOL,Assistant Chief Executive (Excl SIU),2010.00,Schools Support Services,2324P11_CR00439,60997
Sandwell Metropolitan Borough Council,http://www.sandwell.gov.uk/info/200202/performance_and_spending/1079/payments_over_500,02-Feb-2024,FINANCE (Inc SIU),HANBURY PRIMARY SCHOOL   ,Assistant Chief Executive (Excl SIU),2185.00,Schools Support Services,2324P11_CR00440,60995
Sandwell Metropolitan Borough Council,http://www.sandwell.gov.uk/info/200202/performance_and_spending/1079/payments_over_500,02-Feb-2024,FINANCE (Inc SIU),HARGATE PRIMARY SCHOOL         ,Assistant Chief Executive (Excl SIU),2230.00,Schools Support Services,2324P11_CR00441,60999
Sandwell Metropolitan Borough Council,http://www.sandwell.gov.uk/info/200202/performance_and_spending/1079/payments_over_500,02-Feb-2024,FINANCE (Inc SIU),HARVILLS HAWTHORN PRIMARY SCHOOL       ,Assistant Chief Executive (Excl SIU),1980.00,Schools Support Services,2324P11_CR00442,01782074
Sandwell Metropolitan Borough Council,http://www.sandwell.gov.uk/info/200202/performance_and_spending/1079/payments_over_500,02-Feb-2024,FINANCE (Inc SIU),HATELEY HEATH PRIMARY ACADEMY  ,Assistant Chief Executive (Excl SIU),2295.00,Grant Payments,2324P11_CR00443,61000
Sandwell Metropolitan Borough Council,http://www.sandwell.gov.uk/info/200202/performance_and_spending/1079/payments_over_500,02-Feb-2024,FINANCE (Inc SIU),HIGH POINT ACADEMY,Assistant Chief Executive (Excl SIU),555.00,Grant Payments,2324P11_CR00444,152394
Sandwell Metropolitan Borough Council,http://www.sandwell.gov.uk/info/200202/performance_and_spending/1079/payments_over_500,02-Feb-2024,FINANCE (Inc SIU),HIGHFIELDS PRIMARY SCHOOL      ,Assistant Chief Executive (Excl SIU),1910.00,Schools Support Services,2324P11_CR00445,01782118
Sandwell Metropolitan Borough Council,http://www.sandwell.gov.uk/info/200202/performance_and_spending/1079/payments_over_500,02-Feb-2024,FINANCE (Inc SIU),HOLLY LODGE FOUNDATION HIGH SCHOOL,Assistant Chief Executive (Excl SIU),9255.00,Schools Support Services,2324P11_CR00446,60942
Sandwell Metropolitan Borough Council,http://www.sandwell.gov.uk/info/200202/performance_and_spending/1079/payments_over_500,02-Feb-2024,FINANCE (Inc SIU),HOLY NAME CATHOLIC PRIMARY,Assistant Chief Executive (Excl SIU),700.00,Schools Support Services,2324P11_CR00447,92683
Sandwell Metropolitan Borough Council,http://www.sandwell.gov.uk/info/200202/performance_and_spending/1079/payments_over_500,02-Feb-2024,FINANCE (Inc SIU),HOLY TRINITY CE PRIMARY    ,Assistant Chief Executive (Excl SIU),2330.00,Schools Support Services,2324P11_CR00448,61004
Sandwell Metropolitan Borough Council,http://www.sandwell.gov.uk/info/200202/performance_and_spending/1079/payments_over_500,02-Feb-2024,FINANCE (Inc SIU),HOLYHEAD PRIMARY ACADEMY  ,Assistant Chief Executive (Excl SIU),1410.00,Grant Payments,2324P11_CR00449,61005
Sandwell Metropolitan Borough Council,http://www.sandwell.gov.uk/info/200202/performance_and_spending/1079/payments_over_500,02-Feb-2024,FINANCE (Inc SIU),JOSEPH TURNER PRIMARY SCHOOL  ,Assistant Chief Executive (Excl SIU),2865.00,Schools Support Services,2324P11_CR00450,61006
Sandwell Metropolitan Borough Council,http://www.sandwell.gov.uk/info/200202/performance_and_spending/1079/payments_over_500,02-Feb-2024,FINANCE (Inc SIU),JUBILEE PARK ACADEMY TRUST,Assistant Chief Executive (Excl SIU),1725.00,Grant Payments,2324P11_CR00451,113377
Sandwell Metropolitan Borough Council,http://www.sandwell.gov.uk/info/200202/performance_and_spending/1079/payments_over_500,02-Feb-2024,FINANCE (Inc SIU),KING GEORGE V PRIMARY SCHOOL    ,Assistant Chief Executive (Excl SIU),1530.00,Schools Support Services,2324P11_CR00452,61009
Sandwell Metropolitan Borough Council,http://www.sandwell.gov.uk/info/200202/performance_and_spending/1079/payments_over_500,02-Feb-2024,FINANCE (Inc SIU),LANGLEY PRIMARY SCHOOL      ,Assistant Chief Executive (Excl SIU),2885.00,Schools Support Services,2324P11_CR00453,61011
Sandwell Metropolitan Borough Council,http://www.sandwell.gov.uk/info/200202/performance_and_spending/1079/payments_over_500,02-Feb-2024,FINANCE (Inc SIU),LIGHTWOODS PRIMARY ACADEMY .,Assistant Chief Executive (Excl SIU),1185.00,Grant Payments,2324P11_CR00454,61012
Sandwell Metropolitan Borough Council,http://www.sandwell.gov.uk/info/200202/performance_and_spending/1079/payments_over_500,02-Feb-2024,FINANCE (Inc SIU),LODGE PRIMARY SCHOOL  ,Assistant Chief Executive (Excl SIU),2145.00,Schools Support Services,2324P11_CR00455,61015
Sandwell Metropolitan Borough Council,http://www.sandwell.gov.uk/info/200202/performance_and_spending/1079/payments_over_500,02-Feb-2024,FINANCE (Inc SIU),LYNG PRIMARY SCHOOL ,Assistant Chief Executive (Excl SIU),1845.00,Schools Support Services,2324P11_CR00456,61026
Sandwell Metropolitan Borough Council,http://www.sandwell.gov.uk/info/200202/performance_and_spending/1079/payments_over_500,02-Feb-2024,FINANCE (Inc SIU),MEADOWS SCHOOL,Assistant Chief Executive (Excl SIU),1715.00,Schools Support Services,2324P11_CR00457,60955
Sandwell Metropolitan Borough Council,http://www.sandwell.gov.uk/info/200202/performance_and_spending/1079/payments_over_500,02-Feb-2024,FINANCE (Inc SIU),MESTY CROFT ACADEMY,Assistant Chief Executive (Excl SIU),2460.00,Grant Payments,2324P11_CR00458,106208
Sandwell Metropolitan Borough Council,http://www.sandwell.gov.uk/info/200202/performance_and_spending/1079/payments_over_500,02-Feb-2024,FINANCE (Inc SIU),MOAT FARM INFANTS SCHOOL   ,Assistant Chief Executive (Excl SIU),1605.00,Schools Support Services,2324P11_CR00459,61031
Sandwell Metropolitan Borough Council,http://www.sandwell.gov.uk/info/200202/performance_and_spending/1079/payments_over_500,02-Feb-2024,FINANCE (Inc SIU),MOAT FARM JUNIOR SCHOOL     ,Assistant Chief Executive (Excl SIU),2480.00,Grant Payments,2324P11_CR00460,61032
Sandwell Metropolitan Borough Council,http://www.sandwell.gov.uk/info/200202/performance_and_spending/1079/payments_over_500,02-Feb-2024,FINANCE (Inc SIU),MOORLANDS PRIMARY SCHOOL      ,Assistant Chief Executive (Excl SIU),1315.00,Schools Support Services,2324P11_CR00461,04036544
Sandwell Metropolitan Borough Council,http://www.sandwell.gov.uk/info/200202/performance_and_spending/1079/payments_over_500,02-Feb-2024,FINANCE (Inc SIU),NEWTOWN PRIMARY ACADEMY    ,Assistant Chief Executive (Excl SIU),1490.00,Grant Payments,2324P11_CR00462,61034
Sandwell Metropolitan Borough Council,http://www.sandwell.gov.uk/info/200202/performance_and_spending/1079/payments_over_500,02-Feb-2024,FINANCE (Inc SIU),OAKHAM PRIMARY SCHOOL    ,Assistant Chief Executive (Excl SIU),1485.00,Schools Support Services,2324P11_CR00463,61035
Sandwell Metropolitan Borough Council,http://www.sandwell.gov.uk/info/200202/performance_and_spending/1079/payments_over_500,02-Feb-2024,FINANCE (Inc SIU),OCKER HILL ACADEMY,Assistant Chief Executive (Excl SIU),1170.00,Grant Payments,2324P11_CR00464,113691
Sandwell Metropolitan Borough Council,http://www.sandwell.gov.uk/info/200202/performance_and_spending/1079/payments_over_500,02-Feb-2024,FINANCE (Inc SIU),OCKER HILL INFANT SCHOOL    ,Assistant Chief Executive (Excl SIU),810.00,Schools Support Services,2324P11_CR00465,61036
Sandwell Metropolitan Borough Council,http://www.sandwell.gov.uk/info/200202/performance_and_spending/1079/payments_over_500,02-Feb-2024,FINANCE (Inc SIU),OLD HILL PRIMARY SCHOOL  ,Assistant Chief Executive (Excl SIU),1345.00,Schools Support Services,2324P11_CR00466,61038
Sandwell Metropolitan Borough Council,http://www.sandwell.gov.uk/info/200202/performance_and_spending/1079/payments_over_500,02-Feb-2024,FINANCE (Inc SIU),OLD PARK PRIMARY SCHOOL        ,Assistant Chief Executive (Excl SIU),1695.00,Schools Support Services,2324P11_CR00467,61039
Sandwell Metropolitan Borough Council,http://www.sandwell.gov.uk/info/200202/performance_and_spending/1079/payments_over_500,02-Feb-2024,FINANCE (Inc SIU),OLDBURY ACADEMY,Assistant Chief Executive (Excl SIU),9135.00,Grant Payments,2324P11_CR00468,69241
Sandwell Metropolitan Borough Council,http://www.sandwell.gov.uk/info/200202/performance_and_spending/1079/payments_over_500,02-Feb-2024,FINANCE (Inc SIU),ORCHARD SCHOOL     ,Assistant Chief Executive (Excl SIU),1065.00,Schools Support Services,2324P11_CR00469,60956
Sandwell Metropolitan Borough Council,http://www.sandwell.gov.uk/info/200202/performance_and_spending/1079/payments_over_500,02-Feb-2024,FINANCE (Inc SIU),ORMISTON FORGE ACADEMY,Assistant Chief Executive (Excl SIU),8760.00,Grant Payments,2324P11_CR00470,60941
Sandwell Metropolitan Borough Council,http://www.sandwell.gov.uk/info/200202/performance_and_spending/1079/payments_over_500,02-Feb-2024,FINANCE (Inc SIU),ORMISTON SANDWELL COMMUNITY ACADEMY,Assistant Chief Executive (Excl SIU),5340.00,Grant Payments,2324P11_CR00471,60950
Sandwell Metropolitan Borough Council,http://www.sandwell.gov.uk/info/200202/performance_and_spending/1079/payments_over_500,02-Feb-2024,FINANCE (Inc SIU),OUR LADY AND ST HUBERTS CATHOLIC PRIMARY SCHOOL     ,Assistant Chief Executive (Excl SIU),1110.00,Grant Payments,2324P11_CR00472,61053
Sandwell Metropolitan Borough Council,http://www.sandwell.gov.uk/info/200202/performance_and_spending/1079/payments_over_500,02-Feb-2024,FINANCE (Inc SIU),PARK HILL PRIMARY SCHOOL     ,Assistant Chief Executive (Excl SIU),1035.00,Schools Support Services,2324P11_CR00473,61040
Sandwell Metropolitan Borough Council,http://www.sandwell.gov.uk/info/200202/performance_and_spending/1079/payments_over_500,02-Feb-2024,FINANCE (Inc SIU),PENNYHILL PRIMARY,Assistant Chief Executive (Excl SIU),4225.00,Schools Support Services,2324P11_CR00474,73125
Sandwell Metropolitan Borough Council,http://www.sandwell.gov.uk/info/200202/performance_and_spending/1079/payments_over_500,02-Feb-2024,FINANCE (Inc SIU),PERRYFIELDS HIGH SCHOOL          ,Assistant Chief Executive (Excl SIU),5065.00,Grant Payments,2324P11_CR00475,60946
Sandwell Metropolitan Borough Council,http://www.sandwell.gov.uk/info/200202/performance_and_spending/1079/payments_over_500,02-Feb-2024,FINANCE (Inc SIU),PERRYFIELDS PRIMARY SCHOOL       ,Assistant Chief Executive (Excl SIU),1410.00,Schools Support Services,2324P11_CR00476,61042
Sandwell Metropolitan Borough Council,http://www.sandwell.gov.uk/info/200202/performance_and_spending/1079/payments_over_500,02-Feb-2024,FINANCE (Inc SIU),PHOENIX COLLEGIATE COLLEGE,Assistant Chief Executive (Excl SIU),11130.00,Schools Support Services,2324P11_CR00477,95444
Sandwell Metropolitan Borough Council,http://www.sandwell.gov.uk/info/200202/performance_and_spending/1079/payments_over_500,02-Feb-2024,FINANCE (Inc SIU),Q3 ACADEMY LANGLEY,Assistant Chief Executive (Excl SIU),5805.00,Grant Payments,2324P11_CR00478,128009
Sandwell Metropolitan Borough Council,http://www.sandwell.gov.uk/info/200202/performance_and_spending/1079/payments_over_500,02-Feb-2024,FINANCE (Inc SIU),Q3 ACADEMY TIPTON - THE MERCIAN TRUST,Assistant Chief Executive (Excl SIU),10155.00,Grant Payments,2324P11_CR00479,112047
Sandwell Metropolitan Borough Council,http://www.sandwell.gov.uk/info/200202/performance_and_spending/1079/payments_over_500,02-Feb-2024,FINANCE (Inc SIU),QUAERERE ACADEMY TRUST      ,Assistant Chief Executive (Excl SIU),3750.00,Grant Payments,2324P11_CR00480,60939
Sandwell Metropolitan Borough Council,http://www.sandwell.gov.uk/info/200202/performance_and_spending/1079/payments_over_500,02-Feb-2024,FINANCE (Inc SIU),REDDAL HILL PRIMARY SCHOOL   ,Assistant Chief Executive (Excl SIU),2145.00,Schools Support Services,2324P11_CR00481,61043
Sandwell Metropolitan Borough Council,http://www.sandwell.gov.uk/info/200202/performance_and_spending/1079/payments_over_500,02-Feb-2024,FINANCE (Inc SIU),ROOD END PRIMARY SCHOOL       ,Assistant Chief Executive (Excl SIU),2705.00,Schools Support Services,2324P11_CR00482,61044
Sandwell Metropolitan Borough Council,http://www.sandwell.gov.uk/info/200202/performance_and_spending/1079/payments_over_500,02-Feb-2024,FINANCE (Inc SIU),ROUNDS GREEN PRIMARY ACADEMY ,Assistant Chief Executive (Excl SIU),1985.00,Grant Payments,2324P11_CR00483,61045
Sandwell Metropolitan Borough Council,http://www.sandwell.gov.uk/info/200202/performance_and_spending/1079/payments_over_500,02-Feb-2024,FINANCE (Inc SIU),ROWLEY HALL PRIMARY SCHOOL     ,Assistant Chief Executive (Excl SIU),3810.00,Schools Support Services,2324P11_CR00484,61046
Sandwell Metropolitan Borough Council,http://www.sandwell.gov.uk/info/200202/performance_and_spending/1079/payments_over_500,02-Feb-2024,FINANCE (Inc SIU),RYDERS GREEN PRIMARY SCHOOL     ,Assistant Chief Executive (Excl SIU),1990.00,Schools Support Services,2324P11_CR00485,61047
Sandwell Metropolitan Borough Council,http://www.sandwell.gov.uk/info/200202/performance_and_spending/1079/payments_over_500,02-Feb-2024,FINANCE (Inc SIU),SACRED HEART PRIMARY SCHOOL      ,Assistant Chief Executive (Excl SIU),2775.00,Schools Support Services,2324P11_CR00486,61048
Sandwell Metropolitan Borough Council,http://www.sandwell.gov.uk/info/200202/performance_and_spending/1079/payments_over_500,02-Feb-2024,FINANCE (Inc SIU),SANDWELL ACADEMY TRUST LTD.,Assistant Chief Executive (Excl SIU),4665.00,Grant Payments,2324P11_CR00487,126137
Sandwell Metropolitan Borough Council,http://www.sandwell.gov.uk/info/200202/performance_and_spending/1079/payments_over_500,02-Feb-2024,FINANCE (Inc SIU),SHENSTONE LODGE SCHOOL    ,Assistant Chief Executive (Excl SIU),1290.00,Grant Payments,2324P11_CR00488,22995
Sandwell Metropolitan Borough Council,http://www.sandwell.gov.uk/info/200202/performance_and_spending/1079/payments_over_500,02-Feb-2024,FINANCE (Inc SIU),SHIRELAND BIOMEDICAL UTC,Assistant Chief Executive (Excl SIU),1625.00,Grant Payments,2324P11_CR00489,128174
Sandwell Metropolitan Borough Council,http://www.sandwell.gov.uk/info/200202/performance_and_spending/1079/payments_over_500,02-Feb-2024,FINANCE (Inc SIU),SHIRELAND CBSO ACADEMY,Assistant Chief Executive (Excl SIU),1915.00,Grant Payments,2324P11_CR00490,167276
Sandwell Metropolitan Borough Council,http://www.sandwell.gov.uk/info/200202/performance_and_spending/1079/payments_over_500,02-Feb-2024,FINANCE (Inc SIU),SHIRELAND COLLEGIATE ACADEMY        ,Assistant Chief Executive (Excl SIU),8445.00,Grant Payments,2324P11_CR00491,60947
Sandwell Metropolitan Borough Council,http://www.sandwell.gov.uk/info/200202/performance_and_spending/1079/payments_over_500,02-Feb-2024,FINANCE (Inc SIU),SHIRELAND COLLEGIATE ACADEMY TRUST T/A TAMESIDE,Assistant Chief Executive (Excl SIU),3175.00,Grant Payments,2324P11_CR00492,61064
Sandwell Metropolitan Borough Council,http://www.sandwell.gov.uk/info/200202/performance_and_spending/1079/payments_over_500,02-Feb-2024,FINANCE (Inc SIU),SHIRELAND HALL PRIMARY ACADEMY,Assistant Chief Executive (Excl SIU),2800.00,Grant Payments,2324P11_CR00493,15209
Sandwell Metropolitan Borough Council,http://www.sandwell.gov.uk/info/200202/performance_and_spending/1079/payments_over_500,02-Feb-2024,FINANCE (Inc SIU),SHIRELAND TECHNOLOGY PRIMARY SCHOOL,Assistant Chief Executive (Excl SIU),1655.00,Grant Payments,2324P11_CR00494,148598
Sandwell Metropolitan Borough Council,http://www.sandwell.gov.uk/info/200202/performance_and_spending/1079/payments_over_500,02-Feb-2024,FINANCE (Inc SIU),SILVERTREES ACADEMY TRUST,Assistant Chief Executive (Excl SIU),1575.00,Grant Payments,2324P11_CR00495,113719
Sandwell Metropolitan Borough Council,http://www.sandwell.gov.uk/info/200202/performance_and_spending/1079/payments_over_500,02-Feb-2024,FINANCE (Inc SIU),SPRINGFIELD PRIMARY SCHOOL  ,Assistant Chief Executive (Excl SIU),2175.00,Schools Support Services,2324P11_CR00496,61050
Sandwell Metropolitan Borough Council,http://www.sandwell.gov.uk/info/200202/performance_and_spending/1079/payments_over_500,02-Feb-2024,FINANCE (Inc SIU),ST CATHERINE OF SIENA MULTI ACADEMY COMPANY  ,Assistant Chief Executive (Excl SIU),660.00,Grant Payments,2324P11_CR00497,61052
Sandwell Metropolitan Borough Council,http://www.sandwell.gov.uk/info/200202/performance_and_spending/1079/payments_over_500,02-Feb-2024,FINANCE (Inc SIU),ST FRANCIS XAVIER CATHOLIC PRIMARY,Assistant Chief Executive (Excl SIU),705.00,Grant Payments,2324P11_CR00498,61051
Sandwell Metropolitan Borough Council,http://www.sandwell.gov.uk/info/200202/performance_and_spending/1079/payments_over_500,02-Feb-2024,FINANCE (Inc SIU),ST JAMES C OF E PRIMARY SCHOOL,Assistant Chief Executive (Excl SIU),3200.00,Schools Support Services,2324P11_CR00499,61054
Sandwell Metropolitan Borough Council,http://www.sandwell.gov.uk/info/200202/performance_and_spending/1079/payments_over_500,02-Feb-2024,FINANCE (Inc SIU),ST JOHN BOSCO RC PRIMARY SCHOOL  ,Assistant Chief Executive (Excl SIU),935.00,Grant Payments,2324P11_CR00500,61055
Sandwell Metropolitan Borough Council,http://www.sandwell.gov.uk/info/200202/performance_and_spending/1079/payments_over_500,02-Feb-2024,FINANCE (Inc SIU),ST JOHNS C OF E PRIMARY ACADEMY,Assistant Chief Executive (Excl SIU),1155.00,Grant Payments,2324P11_CR00501,61056
Sandwell Metropolitan Borough Council,http://www.sandwell.gov.uk/info/200202/performance_and_spending/1079/payments_over_500,02-Feb-2024,FINANCE (Inc SIU),ST MARTINS CE PRIMARY SCHOOL,Assistant Chief Executive (Excl SIU),755.00,Schools Support Services,2324P11_CR00502,61058
Sandwell Metropolitan Borough Council,http://www.sandwell.gov.uk/info/200202/performance_and_spending/1079/payments_over_500,02-Feb-2024,FINANCE (Inc SIU),ST MARY MAGDALENE CE PRIMARY SCHOOL   ,Assistant Chief Executive (Excl SIU),935.00,Schools Support Services,2324P11_CR00503,61059
Sandwell Metropolitan Borough Council,http://www.sandwell.gov.uk/info/200202/performance_and_spending/1079/payments_over_500,02-Feb-2024,FINANCE (Inc SIU),ST MARYS RC PRIMARY SCHOOL ,Assistant Chief Executive (Excl SIU),710.00,Grant Payments,2324P11_CR00504,61060
Sandwell Metropolitan Borough Council,http://www.sandwell.gov.uk/info/200202/performance_and_spending/1079/payments_over_500,02-Feb-2024,FINANCE (Inc SIU),ST MATTHEWS CE PRIMARY SCHOOL        ,Assistant Chief Executive (Excl SIU),2670.00,Schools Support Services,2324P11_CR00505,61061
Sandwell Metropolitan Borough Council,http://www.sandwell.gov.uk/info/200202/performance_and_spending/1079/payments_over_500,02-Feb-2024,FINANCE (Inc SIU),ST MICHAELS CE HIGH SCHOOL,Assistant Chief Executive (Excl SIU),6390.00,Schools Support Services,2324P11_CR00506,60948
Sandwell Metropolitan Borough Council,http://www.sandwell.gov.uk/info/200202/performance_and_spending/1079/payments_over_500,02-Feb-2024,FINANCE (Inc SIU),ST PAULS C OF E ACADEMY,Assistant Chief Executive (Excl SIU),1100.00,Grant Payments,2324P11_CR00507,118126
Sandwell Metropolitan Borough Council,http://www.sandwell.gov.uk/info/200202/performance_and_spending/1079/payments_over_500,02-Feb-2024,FINANCE (Inc SIU),ST PHILIPS CATHOLIC PRIMARY     ,Assistant Chief Executive (Excl SIU),1255.00,Grant Payments,2324P11_CR00508,61063
Sandwell Metropolitan Borough Council,http://www.sandwell.gov.uk/info/200202/performance_and_spending/1079/payments_over_500,02-Feb-2024,FINANCE (Inc SIU),STUART BATHURST CATHOLIC HIGH SCHOOL  ,Assistant Chief Executive (Excl SIU),4680.00,Grant Payments,2324P11_CR00509,60949
Sandwell Metropolitan Borough Council,http://www.sandwell.gov.uk/info/200202/performance_and_spending/1079/payments_over_500,02-Feb-2024,FINANCE (Inc SIU),TEMPLE MEADOW PRIMARY SCHOOL  ,Assistant Chief Executive (Excl SIU),2455.00,Schools Support Services,2324P11_CR00510,61065
Sandwell Metropolitan Borough Council,http://www.sandwell.gov.uk/info/200202/performance_and_spending/1079/payments_over_500,02-Feb-2024,FINANCE (Inc SIU),THE PRIORY PRIMARY      ,Assistant Chief Executive (Excl SIU),3200.00,Schools Support Services,2324P11_CR00511,61066
Sandwell Metropolitan Borough Council,http://www.sandwell.gov.uk/info/200202/performance_and_spending/1079/payments_over_500,02-Feb-2024,FINANCE (Inc SIU),THE RIVERS MULTI ACADEMY TRUST,Assistant Chief Executive (Excl SIU),5750.00,Grant Payments,2324P11_CR00512,61014
Sandwell Metropolitan Borough Council,http://www.sandwell.gov.uk/info/200202/performance_and_spending/1079/payments_over_500,02-Feb-2024,FINANCE (Inc SIU),TIMBERTREE (ACADEMY) PRIMARY SCHOOL,Assistant Chief Executive (Excl SIU),1230.00,Grant Payments,2324P11_CR00513,112804
Sandwell Metropolitan Borough Council,http://www.sandwell.gov.uk/info/200202/performance_and_spending/1079/payments_over_500,02-Feb-2024,FINANCE (Inc SIU),TIPTON GREEN JUNIOR SCHOOL ACADEMY,Assistant Chief Executive (Excl SIU),2415.00,Grant Payments,2324P11_CR00514,61068
Sandwell Metropolitan Borough Council,http://www.sandwell.gov.uk/info/200202/performance_and_spending/1079/payments_over_500,02-Feb-2024,FINANCE (Inc SIU),TIVIDALE COMMUNITY PRIMARY      ,Assistant Chief Executive (Excl SIU),1530.00,Schools Support Services,2324P11_CR00515,61069
Sandwell Metropolitan Borough Council,http://www.sandwell.gov.uk/info/200202/performance_and_spending/1079/payments_over_500,02-Feb-2024,FINANCE (Inc SIU),TIVIDALE HALL PRIMARY SCHOOL       ,Assistant Chief Executive (Excl SIU),1475.00,Schools Support Services,2324P11_CR00516,61070
Sandwell Metropolitan Borough Council,http://www.sandwell.gov.uk/info/200202/performance_and_spending/1079/payments_over_500,02-Feb-2024,FINANCE (Inc SIU),UPLANDS MANOR PRIMARY   ,Assistant Chief Executive (Excl SIU),5160.00,Schools Support Services,2324P11_CR00517,61071
Sandwell Metropolitan Borough Council,http://www.sandwell.gov.uk/info/200202/performance_and_spending/1079/payments_over_500,02-Feb-2024,FINANCE (Inc SIU),VICTORIA PARK PRIMARY ACADEMY,Assistant Chief Executive (Excl SIU),3755.00,Grant Payments,2324P11_CR00518,106209
Sandwell Metropolitan Borough Council,http://www.sandwell.gov.uk/info/200202/performance_and_spending/1079/payments_over_500,02-Feb-2024,FINANCE (Inc SIU),WEDNESBURY OAK ACADEMY,Assistant Chief Executive (Excl SIU),2580.00,Grant Payments,2324P11_CR00519,116882
Sandwell Metropolitan Borough Council,http://www.sandwell.gov.uk/info/200202/performance_and_spending/1079/payments_over_500,02-Feb-2024,FINANCE (Inc SIU),WEST BROMWICH COLLEGIATE ACADEMY,Assistant Chief Executive (Excl SIU),4325.00,Grant Payments,2324P11_CR00520,137780
Sandwell Metropolitan Borough Council,http://www.sandwell.gov.uk/info/200202/performance_and_spending/1079/payments_over_500,02-Feb-2024,FINANCE (Inc SIU),WESTMINSTER SCHOOL  ,Assistant Chief Executive (Excl SIU),1980.00,Schools Support Services,2324P11_CR00521,60957
Sandwell Metropolitan Borough Council,http://www.sandwell.gov.uk/info/200202/performance_and_spending/1079/payments_over_500,02-Feb-2024,FINANCE (Inc SIU),WINDSOR ACADEMY TRUST,Assistant Chief Executive (Excl SIU),1870.00,Grant Payments,2324P11_CR00522,167258
Sandwell Metropolitan Borough Council,http://www.sandwell.gov.uk/info/200202/performance_and_spending/1079/payments_over_500,02-Feb-2024,FINANCE (Inc SIU),WODENSBOROUGH ORMISTON ACADEMY,Assistant Chief Executive (Excl SIU),8280.00,Grant Payments,2324P11_CR00523,115040
Sandwell Metropolitan Borough Council,http://www.sandwell.gov.uk/info/200202/performance_and_spending/1079/payments_over_500,02-Feb-2024,FINANCE (Inc SIU),WOOD GREEN ACADEMY      ,Assistant Chief Executive (Excl SIU),6270.00,Grant Payments,2324P11_CR00524,100125
Sandwell Metropolitan Borough Council,http://www.sandwell.gov.uk/info/200202/performance_and_spending/1079/payments_over_500,02-Feb-2024,FINANCE (Inc SIU),WOOD GREEN JUNIOR SCHOOL   ,Assistant Chief Executive (Excl SIU),2130.00,Schools Support Services,2324P11_CR00525,61076
Sandwell Metropolitan Borough Council,http://www.sandwell.gov.uk/info/200202/performance_and_spending/1079/payments_over_500,02-Feb-2024,FINANCE (Inc SIU),YEW TREE PRIMARY SCHOOL ,Assistant Chief Executive (Excl SIU),4045.00,Schools Support Services,2324P11_CR00526,61078
Sandwell Metropolitan Borough Council,http://www.sandwell.gov.uk/info/200202/performance_and_spending/1079/payments_over_500,22-Feb-2024,FINANCE (Inc SIU),BLACK COUNTRY FOODBANK LTD,Assistant Chief Executive (Excl SIU),10000.00,Grant Payments,2324P11_CR00527,164845
Sandwell Metropolitan Borough Council,http://www.sandwell.gov.uk/info/200202/performance_and_spending/1079/payments_over_500,22-Feb-2024,FINANCE (Inc SIU),BREAKING BREAD FOOD BANK,Assistant Chief Executive (Excl SIU),2500.00,Grant Payments,2324P11_CR00528,132988
Sandwell Metropolitan Borough Council,http://www.sandwell.gov.uk/info/200202/performance_and_spending/1079/payments_over_500,22-Feb-2024,FINANCE (Inc SIU),BRUSHSTROKES,Assistant Chief Executive (Excl SIU),4000.00,Grant Payments,2324P11_CR00529,21029374
Sandwell Metropolitan Borough Council,http://www.sandwell.gov.uk/info/200202/performance_and_spending/1079/payments_over_500,22-Feb-2024,FINANCE (Inc SIU),SMETHWICK CHURCH ACTION NETWORK,Assistant Chief Executive (Excl SIU),15000.00,Grant Payments,2324P11_CR00530,118380
Sandwell Metropolitan Borough Council,http://www.sandwell.gov.uk/info/200202/performance_and_spending/1079/payments_over_500,22-Feb-2024,FINANCE (Inc SIU),MAKING A DIFFERENCE,Assistant Chief Executive (Excl SIU),6000.00,Grant Payments,2324P11_CR00531,112007
Sandwell Metropolitan Borough Council,http://www.sandwell.gov.uk/info/200202/performance_and_spending/1079/payments_over_500,01-Feb-2024,Housing & Assets Total,BEECHWOOD TREES & LANDSCAPE LTD,Housing & Assets Total,573.44,Externally Purchased Professional Services ,2324P11_CR00532,93287
Sandwell Metropolitan Borough Council,http://www.sandwell.gov.uk/info/200202/performance_and_spending/1079/payments_over_500,01-Feb-2024,Housing & Assets Total,BEECHWOOD TREES & LANDSCAPE LTD,Housing & Assets Total,1478.16,Externally Purchased Professional Services ,2324P11_CR00533,93287
Sandwell Metropolitan Borough Council,http://www.sandwell.gov.uk/info/200202/performance_and_spending/1079/payments_over_500,01-Feb-2024,Housing & Assets Total,BEECHWOOD TREES & LANDSCAPE LTD,Housing & Assets Total,927.42,Externally Purchased Professional Services ,2324P11_CR00534,93287
Sandwell Metropolitan Borough Council,http://www.sandwell.gov.uk/info/200202/performance_and_spending/1079/payments_over_500,05-Feb-2024,Housing & Assets Total,BEECHWOOD TREES & LANDSCAPE LTD,Housing & Assets Total,2496.48,Externally Purchased Professional Services ,2324P11_CR00535,93287
Sandwell Metropolitan Borough Council,http://www.sandwell.gov.uk/info/200202/performance_and_spending/1079/payments_over_500,01-Feb-2024,Housing & Assets Total,BEECHWOOD TREES & LANDSCAPE LTD,Housing & Assets Total,1077.36,Externally Purchased Professional Services ,2324P11_CR00536,93287
Sandwell Metropolitan Borough Council,http://www.sandwell.gov.uk/info/200202/performance_and_spending/1079/payments_over_500,01-Feb-2024,Housing & Assets Total,BEECHWOOD TREES & LANDSCAPE LTD,Housing & Assets Total,765.03,Externally Purchased Professional Services ,2324P11_CR00537,93287
Sandwell Metropolitan Borough Council,http://www.sandwell.gov.uk/info/200202/performance_and_spending/1079/payments_over_500,01-Feb-2024,Housing & Assets Total,BEECHWOOD TREES & LANDSCAPE LTD,Housing & Assets Total,839.14,Externally Purchased Professional Services ,2324P11_CR00538,93287
Sandwell Metropolitan Borough Council,http://www.sandwell.gov.uk/info/200202/performance_and_spending/1079/payments_over_500,01-Feb-2024,Housing & Assets Total,BEECHWOOD TREES & LANDSCAPE LTD,Housing & Assets Total,4819.20,Externally Purchased Professional Services ,2324P11_CR00539,93287
Sandwell Metropolitan Borough Council,http://www.sandwell.gov.uk/info/200202/performance_and_spending/1079/payments_over_500,01-Feb-2024,Housing & Assets Total,BEECHWOOD TREES & LANDSCAPE LTD,Housing & Assets Total,3438.27,Externally Purchased Professional Services ,2324P11_CR00540,93287
Sandwell Metropolitan Borough Council,http://www.sandwell.gov.uk/info/200202/performance_and_spending/1079/payments_over_500,01-Feb-2024,Housing & Assets Total,BLACK COUNTRY TOURING,Housing & Assets Total,650.00,Civic Events,2324P11_CR00541,01661722
Sandwell Metropolitan Borough Council,http://www.sandwell.gov.uk/info/200202/performance_and_spending/1079/payments_over_500,01-Feb-2024,Housing & Assets Total,BLOORE KING AND KAVANAGH,Corporate Management,1100.00,Rents,2324P11_CR00542,167926
Sandwell Metropolitan Borough Council,http://www.sandwell.gov.uk/info/200202/performance_and_spending/1079/payments_over_500,01-Feb-2024,Housing & Assets Total,CERTAS ENERGY LIMITED,Corporate Management,1921.95,Oil,2324P11_CR00543,80421
Sandwell Metropolitan Borough Council,http://www.sandwell.gov.uk/info/200202/performance_and_spending/1079/payments_over_500,01-Feb-2024,Housing & Assets Total,CKP LTD T/A HAGLEY HOTEL,Corporate Management,2430.00,Rents,2324P11_CR00544,143677
Sandwell Metropolitan Borough Council,http://www.sandwell.gov.uk/info/200202/performance_and_spending/1079/payments_over_500,01-Feb-2024,Housing & Assets Total,COOKE RUDLING LIMITED,Assistant Chief Executive (Excl SIU),525.00,Externally Purchased Professional Services ,2324P11_CR00545,01577073
Sandwell Metropolitan Borough Council,http://www.sandwell.gov.uk/info/200202/performance_and_spending/1079/payments_over_500,01-Feb-2024,Housing & Assets Total,GILANI ENTERPRISES LIMITED,Corporate Management,2800.00,Rents,2324P11_CR00546,2696
Sandwell Metropolitan Borough Council,http://www.sandwell.gov.uk/info/200202/performance_and_spending/1079/payments_over_500,01-Feb-2024,Housing & Assets Total,GILANI ENTERPRISES LIMITED,Corporate Management,5600.00,Rents,2324P11_CR00547,2696
Sandwell Metropolitan Borough Council,http://www.sandwell.gov.uk/info/200202/performance_and_spending/1079/payments_over_500,01-Feb-2024,Housing & Assets Total,GILANI ENTERPRISES LIMITED,Corporate Management,875.00,Rents,2324P11_CR00548,2696
Sandwell Metropolitan Borough Council,http://www.sandwell.gov.uk/info/200202/performance_and_spending/1079/payments_over_500,01-Feb-2024,Housing & Assets Total,GILANI ENTERPRISES LIMITED,Corporate Management,1800.00,Rents,2324P11_CR00549,2696
Sandwell Metropolitan Borough Council,http://www.sandwell.gov.uk/info/200202/performance_and_spending/1079/payments_over_500,01-Feb-2024,Housing & Assets Total,GILANI ENTERPRISES LIMITED,Corporate Management,1866.67,Rents,2324P11_CR00550,2696
Sandwell Metropolitan Borough Council,http://www.sandwell.gov.uk/info/200202/performance_and_spending/1079/payments_over_500,01-Feb-2024,Housing & Assets Total,GILANI ENTERPRISES LIMITED,Corporate Management,900.00,Rents,2324P11_CR00551,2696
Sandwell Metropolitan Borough Council,http://www.sandwell.gov.uk/info/200202/performance_and_spending/1079/payments_over_500,01-Feb-2024,Housing & Assets Total,GILANI ENTERPRISES LIMITED,Corporate Management,1866.67,Rents,2324P11_CR00552,2696
Sandwell Metropolitan Borough Council,http://www.sandwell.gov.uk/info/200202/performance_and_spending/1079/payments_over_500,01-Feb-2024,Housing & Assets Total,GILANI ENTERPRISES LIMITED,Corporate Management,1400.00,Rents,2324P11_CR00553,2696
Sandwell Metropolitan Borough Council,http://www.sandwell.gov.uk/info/200202/performance_and_spending/1079/payments_over_500,01-Feb-2024,Housing & Assets Total,GILANI ENTERPRISES LIMITED,Corporate Management,1200.00,Rents,2324P11_CR00554,2696
Sandwell Metropolitan Borough Council,http://www.sandwell.gov.uk/info/200202/performance_and_spending/1079/payments_over_500,01-Feb-2024,Housing & Assets Total,GILANI ENTERPRISES LIMITED,Corporate Management,2875.00,Rents,2324P11_CR00555,2696
Sandwell Metropolitan Borough Council,http://www.sandwell.gov.uk/info/200202/performance_and_spending/1079/payments_over_500,01-Feb-2024,Housing & Assets Total,GILANI ENTERPRISES LIMITED,Corporate Management,2500.00,Rents,2324P11_CR00556,2696
Sandwell Metropolitan Borough Council,http://www.sandwell.gov.uk/info/200202/performance_and_spending/1079/payments_over_500,01-Feb-2024,Housing & Assets Total,"HIGHFIELD HOUSE HOTEL,",Corporate Management,1650.00,Rents,2324P11_CR00557,162756
Sandwell Metropolitan Borough Council,http://www.sandwell.gov.uk/info/200202/performance_and_spending/1079/payments_over_500,01-Feb-2024,Housing & Assets Total,"HIGHFIELD HOUSE HOTEL,",Corporate Management,1350.00,Rents,2324P11_CR00558,162756
Sandwell Metropolitan Borough Council,http://www.sandwell.gov.uk/info/200202/performance_and_spending/1079/payments_over_500,01-Feb-2024,Housing & Assets Total,"HIGHFIELD HOUSE HOTEL,",Corporate Management,1350.00,Rents,2324P11_CR00559,162756
Sandwell Metropolitan Borough Council,http://www.sandwell.gov.uk/info/200202/performance_and_spending/1079/payments_over_500,01-Feb-2024,Housing & Assets Total,"HIGHFIELD HOUSE HOTEL,",Corporate Management,1350.00,Rents,2324P11_CR00560,162756
Sandwell Metropolitan Borough Council,http://www.sandwell.gov.uk/info/200202/performance_and_spending/1079/payments_over_500,01-Feb-2024,Housing & Assets Total,"HIGHFIELD HOUSE HOTEL,",Corporate Management,1950.00,Rents,2324P11_CR00561,162756
Sandwell Metropolitan Borough Council,http://www.sandwell.gov.uk/info/200202/performance_and_spending/1079/payments_over_500,01-Feb-2024,Housing & Assets Total,"HIGHFIELD HOUSE HOTEL,",Corporate Management,2160.00,Rents,2324P11_CR00562,162756
Sandwell Metropolitan Borough Council,http://www.sandwell.gov.uk/info/200202/performance_and_spending/1079/payments_over_500,01-Feb-2024,Housing & Assets Total,"HIGHFIELD HOUSE HOTEL,",Corporate Management,550.00,Rents,2324P11_CR00563,162756
Sandwell Metropolitan Borough Council,http://www.sandwell.gov.uk/info/200202/performance_and_spending/1079/payments_over_500,01-Feb-2024,Housing & Assets Total,"HIGHFIELD HOUSE HOTEL,",Corporate Management,2835.00,Rents,2324P11_CR00564,162756
Sandwell Metropolitan Borough Council,http://www.sandwell.gov.uk/info/200202/performance_and_spending/1079/payments_over_500,01-Feb-2024,Housing & Assets Total,"HIGHFIELD HOUSE HOTEL,",Corporate Management,1425.00,Rents,2324P11_CR00565,162756
Sandwell Metropolitan Borough Council,http://www.sandwell.gov.uk/info/200202/performance_and_spending/1079/payments_over_500,01-Feb-2024,Housing & Assets Total,"HIGHFIELD HOUSE HOTEL,",Corporate Management,960.00,Rents,2324P11_CR00566,162756
Sandwell Metropolitan Borough Council,http://www.sandwell.gov.uk/info/200202/performance_and_spending/1079/payments_over_500,01-Feb-2024,Housing & Assets Total,HOME FARM NURSERIES (PINVIN) LIMITED,Housing & Assets Total,3144.00,Operational Services ,2324P11_CR00567,77003445
Sandwell Metropolitan Borough Council,http://www.sandwell.gov.uk/info/200202/performance_and_spending/1079/payments_over_500,01-Feb-2024,Housing & Assets Total,MIDLAND FORESTRY LIMITED,Housing & Assets Total,586.17,Externally Purchased Professional Services ,2324P11_CR00568,45812
Sandwell Metropolitan Borough Council,http://www.sandwell.gov.uk/info/200202/performance_and_spending/1079/payments_over_500,01-Feb-2024,Housing & Assets Total,MIDLAND FORESTRY LIMITED,Housing & Assets Total,4210.92,Externally Purchased Professional Services ,2324P11_CR00569,45812
Sandwell Metropolitan Borough Council,http://www.sandwell.gov.uk/info/200202/performance_and_spending/1079/payments_over_500,01-Feb-2024,Housing & Assets Total,MIDLAND FORESTRY LIMITED,Housing & Assets Total,1848.32,Externally Purchased Professional Services ,2324P11_CR00570,45812
Sandwell Metropolitan Borough Council,http://www.sandwell.gov.uk/info/200202/performance_and_spending/1079/payments_over_500,01-Feb-2024,Housing & Assets Total,MIDLAND FORESTRY LIMITED,Housing & Assets Total,2043.48,Externally Purchased Professional Services ,2324P11_CR00571,45812
Sandwell Metropolitan Borough Council,http://www.sandwell.gov.uk/info/200202/performance_and_spending/1079/payments_over_500,01-Feb-2024,Housing & Assets Total,MIDLAND FORESTRY LIMITED,Housing & Assets Total,1013.65,Externally Purchased Professional Services ,2324P11_CR00572,45812
Sandwell Metropolitan Borough Council,http://www.sandwell.gov.uk/info/200202/performance_and_spending/1079/payments_over_500,01-Feb-2024,Housing & Assets Total,MIDLAND FORESTRY LIMITED,Housing & Assets Total,1409.10,Externally Purchased Professional Services ,2324P11_CR00573,45812
Sandwell Metropolitan Borough Council,http://www.sandwell.gov.uk/info/200202/performance_and_spending/1079/payments_over_500,05-Feb-2024,Housing & Assets Total,MIDLAND FORESTRY LIMITED,Housing & Assets Total,739.08,Externally Purchased Professional Services ,2324P11_CR00574,45812
Sandwell Metropolitan Borough Council,http://www.sandwell.gov.uk/info/200202/performance_and_spending/1079/payments_over_500,01-Feb-2024,Housing & Assets Total,MIDLAND FORESTRY LIMITED,Housing & Assets Total,509.70,Externally Purchased Professional Services ,2324P11_CR00575,45812
Sandwell Metropolitan Borough Council,http://www.sandwell.gov.uk/info/200202/performance_and_spending/1079/payments_over_500,01-Feb-2024,Housing & Assets Total,MIDLAND FORESTRY LIMITED,Housing & Assets Total,545.98,Externally Purchased Professional Services ,2324P11_CR00576,45812
Sandwell Metropolitan Borough Council,http://www.sandwell.gov.uk/info/200202/performance_and_spending/1079/payments_over_500,01-Feb-2024,Housing & Assets Total,MIDLAND FORESTRY LIMITED,Housing & Assets Total,1466.57,Externally Purchased Professional Services ,2324P11_CR00577,45812
Sandwell Metropolitan Borough Council,http://www.sandwell.gov.uk/info/200202/performance_and_spending/1079/payments_over_500,01-Feb-2024,Housing & Assets Total,MIDLAND FORESTRY LIMITED,Housing & Assets Total,1876.68,Externally Purchased Professional Services ,2324P11_CR00578,45812
Sandwell Metropolitan Borough Council,http://www.sandwell.gov.uk/info/200202/performance_and_spending/1079/payments_over_500,01-Feb-2024,Housing & Assets Total,MIDLAND FORESTRY LIMITED,Housing & Assets Total,1372.73,Externally Purchased Professional Services ,2324P11_CR00579,45812
Sandwell Metropolitan Borough Council,http://www.sandwell.gov.uk/info/200202/performance_and_spending/1079/payments_over_500,01-Feb-2024,Housing & Assets Total,MIDLAND FORESTRY LIMITED,Housing & Assets Total,1338.26,Externally Purchased Professional Services ,2324P11_CR00580,45812
Sandwell Metropolitan Borough Council,http://www.sandwell.gov.uk/info/200202/performance_and_spending/1079/payments_over_500,01-Feb-2024,Housing & Assets Total,MIDLAND FORESTRY LIMITED,Housing & Assets Total,713.58,Externally Purchased Professional Services ,2324P11_CR00581,45812
Sandwell Metropolitan Borough Council,http://www.sandwell.gov.uk/info/200202/performance_and_spending/1079/payments_over_500,01-Feb-2024,Housing & Assets Total,MIDLAND FORESTRY LIMITED,Housing & Assets Total,1547.66,Externally Purchased Professional Services ,2324P11_CR00582,45812
Sandwell Metropolitan Borough Council,http://www.sandwell.gov.uk/info/200202/performance_and_spending/1079/payments_over_500,01-Feb-2024,Housing & Assets Total,MIDLAND FORESTRY LIMITED,Housing & Assets Total,2609.01,Externally Purchased Professional Services ,2324P11_CR00583,45812
Sandwell Metropolitan Borough Council,http://www.sandwell.gov.uk/info/200202/performance_and_spending/1079/payments_over_500,08-Feb-2024,Housing & Assets Total,MIDLAND HEART LIMITED,Corporate Management,673.93,Rents,2324P11_CR00584,16583
Sandwell Metropolitan Borough Council,http://www.sandwell.gov.uk/info/200202/performance_and_spending/1079/payments_over_500,01-Feb-2024,Housing & Assets Total,RELIANCE SOCIAL HOUSING C.I.C,Corporate Management,794.30,Tenants Expenses,2324P11_CR00585,167883
Sandwell Metropolitan Borough Council,http://www.sandwell.gov.uk/info/200202/performance_and_spending/1079/payments_over_500,04-Feb-2024,Housing & Assets Total,RSK ADAS LTD,Housing & Assets Total,12398.10,Materials & Consumables,2324P11_CR00586,89358
Sandwell Metropolitan Borough Council,http://www.sandwell.gov.uk/info/200202/performance_and_spending/1079/payments_over_500,01-Feb-2024,Housing & Assets Total,SAFFRON HOTEL,Corporate Management,140870.00,Rents,2324P11_CR00587,164316
Sandwell Metropolitan Borough Council,http://www.sandwell.gov.uk/info/200202/performance_and_spending/1079/payments_over_500,01-Feb-2024,Housing & Assets Total,SEERA PROPERTIES LTD,Corporate Management,1790.00,Tenants Expenses,2324P11_CR00588,167945
Sandwell Metropolitan Borough Council,http://www.sandwell.gov.uk/info/200202/performance_and_spending/1079/payments_over_500,06-Feb-2024,Housing & Assets Total,SHALIMAR BAGH LTD,Corporate Management,765.03,Rents,2324P11_CR00589,168054
Sandwell Metropolitan Borough Council,http://www.sandwell.gov.uk/info/200202/performance_and_spending/1079/payments_over_500,01-Feb-2024,Housing & Assets Total,TOTALENERGIES GAS & POWER LTD,Corporate Management,1144.02,Gas,2324P11_CR00590,107605
Sandwell Metropolitan Borough Council,http://www.sandwell.gov.uk/info/200202/performance_and_spending/1079/payments_over_500,01-Feb-2024,Housing & Assets Total,TOTALENERGIES GAS & POWER LTD,Corporate Management,1584.65,Gas,2324P11_CR00591,107605
Sandwell Metropolitan Borough Council,http://www.sandwell.gov.uk/info/200202/performance_and_spending/1079/payments_over_500,01-Feb-2024,Housing & Assets Total,TOTALENERGIES GAS & POWER LTD,Corporate Management,1752.09,Gas,2324P11_CR00592,107605
Sandwell Metropolitan Borough Council,http://www.sandwell.gov.uk/info/200202/performance_and_spending/1079/payments_over_500,01-Feb-2024,Housing & Assets Total,VICARAGE LODGE BIRMINGHAM,Corporate Management,1120.00,Rents,2324P11_CR00593,111819
Sandwell Metropolitan Borough Council,http://www.sandwell.gov.uk/info/200202/performance_and_spending/1079/payments_over_500,01-Feb-2024,Housing & Assets Total,VICARAGE LODGE BIRMINGHAM,Corporate Management,1120.00,Rents,2324P11_CR00594,111819
Sandwell Metropolitan Borough Council,http://www.sandwell.gov.uk/info/200202/performance_and_spending/1079/payments_over_500,01-Feb-2024,Housing & Assets Total,VICARAGE LODGE BIRMINGHAM,Corporate Management,1120.00,Rents,2324P11_CR00595,111819
Sandwell Metropolitan Borough Council,http://www.sandwell.gov.uk/info/200202/performance_and_spending/1079/payments_over_500,01-Feb-2024,Housing & Assets Total,VICARAGE LODGE BIRMINGHAM,Corporate Management,1120.00,Rents,2324P11_CR00596,111819
Sandwell Metropolitan Borough Council,http://www.sandwell.gov.uk/info/200202/performance_and_spending/1079/payments_over_500,01-Feb-2024,Housing & Assets Total,VICARAGE LODGE BIRMINGHAM,Corporate Management,1120.00,Rents,2324P11_CR00597,111819
Sandwell Metropolitan Borough Council,http://www.sandwell.gov.uk/info/200202/performance_and_spending/1079/payments_over_500,01-Feb-2024,Housing & Assets Total,VICARAGE LODGE BIRMINGHAM,Corporate Management,700.00,Rents,2324P11_CR00598,111819
Sandwell Metropolitan Borough Council,http://www.sandwell.gov.uk/info/200202/performance_and_spending/1079/payments_over_500,01-Feb-2024,Housing & Assets Total,VICARAGE LODGE BIRMINGHAM,Corporate Management,700.00,Rents,2324P11_CR00599,111819
Sandwell Metropolitan Borough Council,http://www.sandwell.gov.uk/info/200202/performance_and_spending/1079/payments_over_500,01-Feb-2024,Housing & Assets Total,VICARAGE LODGE BIRMINGHAM,Corporate Management,1120.00,Rents,2324P11_CR00600,111819
Sandwell Metropolitan Borough Council,http://www.sandwell.gov.uk/info/200202/performance_and_spending/1079/payments_over_500,01-Feb-2024,Housing & Assets Total,VICARAGE LODGE BIRMINGHAM,Corporate Management,1120.00,Rents,2324P11_CR00601,111819
Sandwell Metropolitan Borough Council,http://www.sandwell.gov.uk/info/200202/performance_and_spending/1079/payments_over_500,01-Feb-2024,Housing & Assets Total,VIEWRIGHT VISUAL SYSTEMS LTD,Housing & Assets Total,1195.00,Equipment & Furniture ,2324P11_CR00602,01332122
Sandwell Metropolitan Borough Council,http://www.sandwell.gov.uk/info/200202/performance_and_spending/1079/payments_over_500,01-Feb-2024,Housing & Assets Total,WATER PLUS SELECT LIMITED,Corporate Management,612.35,Water Services,2324P11_CR00603,129644
Sandwell Metropolitan Borough Council,http://www.sandwell.gov.uk/info/200202/performance_and_spending/1079/payments_over_500,01-Feb-2024,Housing & Assets Total,WEST MIDLANDS EMPLOYERS,Corporate Management,728.44,Externally Purchased Professional Services ,2324P11_CR00604,01587505
Sandwell Metropolitan Borough Council,http://www.sandwell.gov.uk/info/200202/performance_and_spending/1079/payments_over_500,14-Feb-2024,Housing & Assets Total,YOUR MOVE,Corporate Management,1415.39,Tenants Expenses,2324P11_CR00605,166769
Sandwell Metropolitan Borough Council,http://www.sandwell.gov.uk/info/200202/performance_and_spending/1079/payments_over_500,01-Feb-2024,Housing & Assets Total,Narinder singh.,Corporate Management,5399.03,Building Maintenance & Improvements,2324P11_CR00606,114091
Sandwell Metropolitan Borough Council,http://www.sandwell.gov.uk/info/200202/performance_and_spending/1079/payments_over_500,01-Feb-2024,Housing & Assets Total,H S SEEHRA,Corporate Management,1700.00,Rents,2324P11_CR00607,153972
Sandwell Metropolitan Borough Council,http://www.sandwell.gov.uk/info/200202/performance_and_spending/1079/payments_over_500,01-Feb-2024,Housing & Assets Total,REDACTED PERSONAL DATA,Corporate Management,762.00,Building Maintenance & Improvements,2324P11_CR00608,REDACTED PERSONAL DATA
Sandwell Metropolitan Borough Council,http://www.sandwell.gov.uk/info/200202/performance_and_spending/1079/payments_over_500,06-Feb-2024,Housing & Assets Total,REDACTED PERSONAL DATA,Housing & Assets Total,750.00,Grant Payments,2324P11_CR00609,REDACTED PERSONAL DATA
Sandwell Metropolitan Borough Council,http://www.sandwell.gov.uk/info/200202/performance_and_spending/1079/payments_over_500,01-Feb-2024,Housing & Assets Total,REDACTED PERSONAL DATA,Housing & Assets Total,750.00,Grant Payments,2324P11_CR00610,REDACTED PERSONAL DATA
Sandwell Metropolitan Borough Council,http://www.sandwell.gov.uk/info/200202/performance_and_spending/1079/payments_over_500,01-Feb-2024,Housing & Assets Total,REDACTED PERSONAL DATA,Housing & Assets Total,581.00,Grant Payments,2324P11_CR00611,REDACTED PERSONAL DATA
Sandwell Metropolitan Borough Council,http://www.sandwell.gov.uk/info/200202/performance_and_spending/1079/payments_over_500,12-Feb-2024,Housing & Assets Total,REDACTED PERSONAL DATA,Housing & Assets Total,600.00,Grant Payments,2324P11_CR00612,REDACTED PERSONAL DATA
Sandwell Metropolitan Borough Council,http://www.sandwell.gov.uk/info/200202/performance_and_spending/1079/payments_over_500,08-Feb-2024,Housing & Assets Total,REDACTED PERSONAL DATA,Housing & Assets Total,750.00,Grant Payments,2324P11_CR00613,REDACTED PERSONAL DATA
Sandwell Metropolitan Borough Council,http://www.sandwell.gov.uk/info/200202/performance_and_spending/1079/payments_over_500,07-Feb-2024,Housing & Assets Total,REDACTED PERSONAL DATA,Housing & Assets Total,500.00,Rents,2324P11_CR00614,REDACTED PERSONAL DATA
Sandwell Metropolitan Borough Council,http://www.sandwell.gov.uk/info/200202/performance_and_spending/1079/payments_over_500,07-Feb-2024,Housing & Assets Total,REDACTED PERSONAL DATA,Housing & Assets Total,500.00,Rents,2324P11_CR00615,REDACTED PERSONAL DATA
Sandwell Metropolitan Borough Council,http://www.sandwell.gov.uk/info/200202/performance_and_spending/1079/payments_over_500,07-Feb-2024,Housing & Assets Total,REDACTED PERSONAL DATA,Housing & Assets Total,500.00,Rents,2324P11_CR00616,REDACTED PERSONAL DATA
Sandwell Metropolitan Borough Council,http://www.sandwell.gov.uk/info/200202/performance_and_spending/1079/payments_over_500,07-Feb-2024,Housing & Assets Total,REDACTED PERSONAL DATA,Housing & Assets Total,500.00,Rents,2324P11_CR00617,REDACTED PERSONAL DATA
Sandwell Metropolitan Borough Council,http://www.sandwell.gov.uk/info/200202/performance_and_spending/1079/payments_over_500,07-Feb-2024,Housing & Assets Total,REDACTED PERSONAL DATA    ,Housing & Assets Total,500.00,Rents,2324P11_CR00618,REDACTED PERSONAL DATA
Sandwell Metropolitan Borough Council,http://www.sandwell.gov.uk/info/200202/performance_and_spending/1079/payments_over_500,07-Feb-2024,Housing & Assets Total,REDACTED PERSONAL DATA,Housing & Assets Total,700.00,Rents,2324P11_CR00619,REDACTED PERSONAL DATA
Sandwell Metropolitan Borough Council,http://www.sandwell.gov.uk/info/200202/performance_and_spending/1079/payments_over_500,07-Feb-2024,Housing & Assets Total,REDACTED PERSONAL DATA,Housing & Assets Total,500.00,Rents,2324P11_CR00620,REDACTED PERSONAL DATA
Sandwell Metropolitan Borough Council,http://www.sandwell.gov.uk/info/200202/performance_and_spending/1079/payments_over_500,07-Feb-2024,Housing & Assets Total,REDACTED PERSONAL DATA,Housing & Assets Total,500.00,Rents,2324P11_CR00621,REDACTED PERSONAL DATA
Sandwell Metropolitan Borough Council,http://www.sandwell.gov.uk/info/200202/performance_and_spending/1079/payments_over_500,07-Feb-2024,Housing & Assets Total,REDACTED PERSONAL DATA,Housing & Assets Total,500.00,Rents,2324P11_CR00622,REDACTED PERSONAL DATA
Sandwell Metropolitan Borough Council,http://www.sandwell.gov.uk/info/200202/performance_and_spending/1079/payments_over_500,07-Feb-2024,Housing & Assets Total,REDACTED PERSONAL DATA,Housing & Assets Total,500.00,Rents,2324P11_CR00623,REDACTED PERSONAL DATA
Sandwell Metropolitan Borough Council,http://www.sandwell.gov.uk/info/200202/performance_and_spending/1079/payments_over_500,07-Feb-2024,Housing & Assets Total,REDACTED PERSONAL DATA,Housing & Assets Total,500.00,Rents,2324P11_CR00624,REDACTED PERSONAL DATA
Sandwell Metropolitan Borough Council,http://www.sandwell.gov.uk/info/200202/performance_and_spending/1079/payments_over_500,07-Feb-2024,Housing & Assets Total,REDACTED PERSONAL DATA,Housing & Assets Total,500.00,Rents,2324P11_CR00625,REDACTED PERSONAL DATA
Sandwell Metropolitan Borough Council,http://www.sandwell.gov.uk/info/200202/performance_and_spending/1079/payments_over_500,07-Feb-2024,Housing & Assets Total,REDACTED PERSONAL DATA,Housing & Assets Total,500.00,Rents,2324P11_CR00626,REDACTED PERSONAL DATA
Sandwell Metropolitan Borough Council,http://www.sandwell.gov.uk/info/200202/performance_and_spending/1079/payments_over_500,07-Feb-2024,Housing & Assets Total,REDACTED PERSONAL DATA,Housing & Assets Total,500.00,Rents,2324P11_CR00627,REDACTED PERSONAL DATA
Sandwell Metropolitan Borough Council,http://www.sandwell.gov.uk/info/200202/performance_and_spending/1079/payments_over_500,07-Feb-2024,Housing & Assets Total,REDACTED PERSONAL DATA,Housing & Assets Total,500.00,Rents,2324P11_CR00628,REDACTED PERSONAL DATA
Sandwell Metropolitan Borough Council,http://www.sandwell.gov.uk/info/200202/performance_and_spending/1079/payments_over_500,07-Feb-2024,Housing & Assets Total,REDACTED PERSONAL DATA,Housing & Assets Total,1050.00,Rents,2324P11_CR00629,REDACTED PERSONAL DATA
Sandwell Metropolitan Borough Council,http://www.sandwell.gov.uk/info/200202/performance_and_spending/1079/payments_over_500,27-Feb-2024,Housing & Assets Total,BALIJIT KAUR,Corporate Management,500.00,Rents,2324P11_CR00630,101860
Sandwell Metropolitan Borough Council,http://www.sandwell.gov.uk/info/200202/performance_and_spending/1079/payments_over_500,07-Feb-2024,Housing & Assets Total,BALIJIT KAUR,Corporate Management,500.00,Rents,2324P11_CR00631,101860
Sandwell Metropolitan Borough Council,http://www.sandwell.gov.uk/info/200202/performance_and_spending/1079/payments_over_500,27-Feb-2024,Housing & Assets Total,BALWANT SINGH,Corporate Management,500.00,Rents,2324P11_CR00632,84433
Sandwell Metropolitan Borough Council,http://www.sandwell.gov.uk/info/200202/performance_and_spending/1079/payments_over_500,07-Feb-2024,Housing & Assets Total,BALWANT SINGH,Corporate Management,500.00,Rents,2324P11_CR00633,84433
Sandwell Metropolitan Borough Council,http://www.sandwell.gov.uk/info/200202/performance_and_spending/1079/payments_over_500,07-Feb-2024,Housing & Assets Total,C M REID,Corporate Management,500.00,Rents,2324P11_CR00634,106129
Sandwell Metropolitan Borough Council,http://www.sandwell.gov.uk/info/200202/performance_and_spending/1079/payments_over_500,27-Feb-2024,Housing & Assets Total,ELEANOR MCGEE,Corporate Management,550.00,Rents,2324P11_CR00635,109162
Sandwell Metropolitan Borough Council,http://www.sandwell.gov.uk/info/200202/performance_and_spending/1079/payments_over_500,07-Feb-2024,Housing & Assets Total,ELEANOR MCGEE,Corporate Management,550.00,Rents,2324P11_CR00636,109162
Sandwell Metropolitan Borough Council,http://www.sandwell.gov.uk/info/200202/performance_and_spending/1079/payments_over_500,07-Feb-2024,Housing & Assets Total,K PAREKH,Corporate Management,550.00,Rents,2324P11_CR00637,43404
Sandwell Metropolitan Borough Council,http://www.sandwell.gov.uk/info/200202/performance_and_spending/1079/payments_over_500,21-Feb-2024,Housing & Assets Total,AGEWELL CIC,Corporate Management,5000.00,Grant Payments,2324P11_CR00638,21030218
Sandwell Metropolitan Borough Council,http://www.sandwell.gov.uk/info/200202/performance_and_spending/1079/payments_over_500,21-Feb-2024,Housing & Assets Total,CROSSROADS CARE ATTENDANT SCHEME,Corporate Management,5000.00,Grant Payments,2324P11_CR00639,01092648
Sandwell Metropolitan Borough Council,http://www.sandwell.gov.uk/info/200202/performance_and_spending/1079/payments_over_500,21-Feb-2024,Housing & Assets Total,IDEAL FOR ALL LIMITED,Corporate Management,5000.00,Grant Payments,2324P11_CR00640,01678484
Sandwell Metropolitan Borough Council,http://www.sandwell.gov.uk/info/200202/performance_and_spending/1079/payments_over_500,21-Feb-2024,Housing & Assets Total,OPTIONS FOR LIFE,Corporate Management,5000.00,Grant Payments,2324P11_CR00641,32839
Sandwell Metropolitan Borough Council,http://www.sandwell.gov.uk/info/200202/performance_and_spending/1079/payments_over_500,09-Feb-2024,Housing & Assets Total,SANDWELL COMMUNITY INFORMATION AND PARTICIPATION SERVICE LIMITED,Corporate Management,10000.00,Grant Payments,2324P11_CR00642,01707456
Sandwell Metropolitan Borough Council,http://www.sandwell.gov.uk/info/200202/performance_and_spending/1079/payments_over_500,21-Feb-2024,Housing & Assets Total,SANDWELL VISUALLY IMPAIRED,Corporate Management,5000.00,Grant Payments,2324P11_CR00643,30136
Sandwell Metropolitan Borough Council,http://www.sandwell.gov.uk/info/200202/performance_and_spending/1079/payments_over_500,05-Feb-2024,Housing & Assets Total,SMETHWICK CHURCH ACTION NETWORK,Corporate Management,2960.00,Grant Payments,2324P11_CR00644,118380
Sandwell Metropolitan Borough Council,http://www.sandwell.gov.uk/info/200202/performance_and_spending/1079/payments_over_500,01-Feb-2024,Housing & Communities,ALLIANCE LEISURE SERVICES LTD,Housing & Communities,31862.40,"CIP - New Construction,Conversion, Enhancement & Reno",2324P11_CR00645,166445
Sandwell Metropolitan Borough Council,http://www.sandwell.gov.uk/info/200202/performance_and_spending/1079/payments_over_500,22-Feb-2024,Housing & Communities,ALLIANCE LEISURE SERVICES LTD,Housing & Communities,75210.25,"CIP - New Construction,Conversion, Enhancement & Reno",2324P11_CR00646,166445
Sandwell Metropolitan Borough Council,http://www.sandwell.gov.uk/info/200202/performance_and_spending/1079/payments_over_500,21-Feb-2024,Housing & Communities,INTERCLASS PLC,Housing & Communities,44984.11,"CIP - New Construction,Conversion, Enhancement & Reno",2324P11_CR00647,77001959
Sandwell Metropolitan Borough Council,http://www.sandwell.gov.uk/info/200202/performance_and_spending/1079/payments_over_500,21-Feb-2024,Housing & Communities,P CASEY LTD,Housing & Communities,34414.29,"CIP - New Construction,Conversion, Enhancement & Reno",2324P11_CR00648,149276
Sandwell Metropolitan Borough Council,http://www.sandwell.gov.uk/info/200202/performance_and_spending/1079/payments_over_500,01-Feb-2024,Housing & Communities,STRATEGIC LEISURE LIMITED,Housing & Communities,1490.73,"CIP - New Construction,Conversion, Enhancement & Reno",2324P11_CR00649,106038
Sandwell Metropolitan Borough Council,http://www.sandwell.gov.uk/info/200202/performance_and_spending/1079/payments_over_500,01-Feb-2024,Housing Revenue Account Capital,"ACIVICO (DESIGN,CONSTRUCTION AND FACILITIES MANAGEMENT) LTD",Housing Revenue Account Capital,8439.94,"CIP - New Construction,Conversion, Enhancement & Reno",2324P11_CR00650,148500
Sandwell Metropolitan Borough Council,http://www.sandwell.gov.uk/info/200202/performance_and_spending/1079/payments_over_500,01-Feb-2024,Housing Revenue Account Capital,"ACIVICO (DESIGN,CONSTRUCTION AND FACILITIES MANAGEMENT) LTD",Housing Revenue Account Capital,10634.09,"CIP - New Construction,Conversion, Enhancement & Reno",2324P11_CR00651,148500
Sandwell Metropolitan Borough Council,http://www.sandwell.gov.uk/info/200202/performance_and_spending/1079/payments_over_500,01-Feb-2024,Housing Revenue Account Capital,"ACIVICO (DESIGN,CONSTRUCTION AND FACILITIES MANAGEMENT) LTD",Housing Revenue Account Capital,864.00,"CIP - New Construction,Conversion, Enhancement & Reno",2324P11_CR00652,148500
Sandwell Metropolitan Borough Council,http://www.sandwell.gov.uk/info/200202/performance_and_spending/1079/payments_over_500,01-Feb-2024,Housing Revenue Account Capital,AXIS EUROPE PLC ,Housing Revenue Account Capital,20469.93,Deferred Charges/Grant Payments,2324P11_CR00653,64946
Sandwell Metropolitan Borough Council,http://www.sandwell.gov.uk/info/200202/performance_and_spending/1079/payments_over_500,01-Feb-2024,Housing Revenue Account Capital,AXIS EUROPE PLC ,Housing Revenue Account Capital,51450.80,Deferred Charges/Grant Payments,2324P11_CR00654,64946
Sandwell Metropolitan Borough Council,http://www.sandwell.gov.uk/info/200202/performance_and_spending/1079/payments_over_500,01-Feb-2024,Housing Revenue Account Capital,AXIS EUROPE PLC ,Housing Revenue Account Capital,9434.64,Deferred Charges/Grant Payments,2324P11_CR00655,64946
Sandwell Metropolitan Borough Council,http://www.sandwell.gov.uk/info/200202/performance_and_spending/1079/payments_over_500,01-Feb-2024,Housing Revenue Account Capital,BLOOM PROCUREMENT SERVICES LTD,Housing Revenue Account Capital,708.75,Externally Purchased Professional Services ,2324P11_CR00656,141813
Sandwell Metropolitan Borough Council,http://www.sandwell.gov.uk/info/200202/performance_and_spending/1079/payments_over_500,01-Feb-2024,Housing Revenue Account Capital,HOME FARM NURSERIES (PINVIN) LIMITED,Housing Revenue Account Capital,10065.60,CIP - Infrastructure,2324P11_CR00657,77003445
Sandwell Metropolitan Borough Council,http://www.sandwell.gov.uk/info/200202/performance_and_spending/1079/payments_over_500,01-Feb-2024,Housing Revenue Account Capital,HOME FARM NURSERIES (PINVIN) LIMITED,Housing Revenue Account Capital,10509.98,CIP - Infrastructure,2324P11_CR00658,77003445
Sandwell Metropolitan Borough Council,http://www.sandwell.gov.uk/info/200202/performance_and_spending/1079/payments_over_500,27-Feb-2024,Housing Revenue Account Capital,J.HARPER & SONS (LEOMINSTER) LIMITED,Housing Revenue Account Capital,53968.02,"CIP - New Construction,Conversion, Enhancement & Reno",2324P11_CR00659,111814
Sandwell Metropolitan Borough Council,http://www.sandwell.gov.uk/info/200202/performance_and_spending/1079/payments_over_500,01-Feb-2024,Housing Revenue Account Capital,LIFT & ENGINEERING SERVICES LTD,Housing Revenue Account Capital,26770.91,Materials & Consumables,2324P11_CR00660,77003962
Sandwell Metropolitan Borough Council,http://www.sandwell.gov.uk/info/200202/performance_and_spending/1079/payments_over_500,06-Feb-2024,Housing Revenue Account Capital,LOVELL PARTNERSHIPS  LTD,Housing Revenue Account Capital,866746.96,"CIP - New Construction,Conversion, Enhancement & Reno",2324P11_CR00661,77007398
Sandwell Metropolitan Borough Council,http://www.sandwell.gov.uk/info/200202/performance_and_spending/1079/payments_over_500,06-Feb-2024,Housing Revenue Account Capital,LOVELL PARTNERSHIPS  LTD,Housing Revenue Account Capital,437409.31,"CIP - New Construction,Conversion, Enhancement & Reno",2324P11_CR00662,77007398
Sandwell Metropolitan Borough Council,http://www.sandwell.gov.uk/info/200202/performance_and_spending/1079/payments_over_500,01-Feb-2024,Housing Revenue Account Capital,NATIONWIDE WINDOWS LIMITED,Housing Revenue Account Capital,141683.82,"CIP - New Construction,Conversion, Enhancement & Reno",2324P11_CR00663,108316
Sandwell Metropolitan Borough Council,http://www.sandwell.gov.uk/info/200202/performance_and_spending/1079/payments_over_500,01-Feb-2024,Housing Revenue Account Capital,OPENVIEW SECURITY SOLUTIONS LIMITED,Housing Revenue Account Capital,25042.26,"CIP - New Construction,Conversion, Enhancement & Reno",2324P11_CR00664,77000151
Sandwell Metropolitan Borough Council,http://www.sandwell.gov.uk/info/200202/performance_and_spending/1079/payments_over_500,01-Feb-2024,Housing Revenue Account Capital,PHOENIX GAS SERVICES LIMITED,Housing Revenue Account Capital,7040.46,Contract Payments,2324P11_CR00665,126729
Sandwell Metropolitan Borough Council,http://www.sandwell.gov.uk/info/200202/performance_and_spending/1079/payments_over_500,01-Feb-2024,Housing Revenue Account Capital,PHOENIX GAS SERVICES LIMITED,Housing Revenue Account Capital,4427.32,Contract Payments,2324P11_CR00666,126729
Sandwell Metropolitan Borough Council,http://www.sandwell.gov.uk/info/200202/performance_and_spending/1079/payments_over_500,03-Feb-2024,Housing Revenue Account Capital,PHOENIX GAS SERVICES LIMITED,Housing Revenue Account Capital,3638.58,Contract Payments,2324P11_CR00667,126729
Sandwell Metropolitan Borough Council,http://www.sandwell.gov.uk/info/200202/performance_and_spending/1079/payments_over_500,01-Feb-2024,Housing Revenue Account Capital,PR PROPERTY MAINTENANCE,Housing Revenue Account Capital,37487.24,Deferred Charges/Grant Payments,2324P11_CR00668,33836
Sandwell Metropolitan Borough Council,http://www.sandwell.gov.uk/info/200202/performance_and_spending/1079/payments_over_500,01-Feb-2024,Housing Revenue Account Capital,PREMIER MOBILITY UK LTD,Housing Revenue Account Capital,1845.52,Deferred Charges/Grant Payments,2324P11_CR00669,167259
Sandwell Metropolitan Borough Council,http://www.sandwell.gov.uk/info/200202/performance_and_spending/1079/payments_over_500,01-Feb-2024,Housing Revenue Account Capital,PREMIER MOBILITY UK LTD,Housing Revenue Account Capital,2152.69,Deferred Charges/Grant Payments,2324P11_CR00670,167259
Sandwell Metropolitan Borough Council,http://www.sandwell.gov.uk/info/200202/performance_and_spending/1079/payments_over_500,01-Feb-2024,Housing Revenue Account Capital,PREMIER MOBILITY UK LTD,Housing Revenue Account Capital,2796.41,Deferred Charges/Grant Payments,2324P11_CR00671,167259
Sandwell Metropolitan Borough Council,http://www.sandwell.gov.uk/info/200202/performance_and_spending/1079/payments_over_500,01-Feb-2024,Housing Revenue Account Capital,PREMIER MOBILITY UK LTD,Housing Revenue Account Capital,5148.87,Deferred Charges/Grant Payments,2324P11_CR00672,167259
Sandwell Metropolitan Borough Council,http://www.sandwell.gov.uk/info/200202/performance_and_spending/1079/payments_over_500,01-Feb-2024,Housing Revenue Account Capital,PREMIER MOBILITY UK LTD,Housing Revenue Account Capital,5934.70,Deferred Charges/Grant Payments,2324P11_CR00673,167259
Sandwell Metropolitan Borough Council,http://www.sandwell.gov.uk/info/200202/performance_and_spending/1079/payments_over_500,01-Feb-2024,Housing Revenue Account Capital,PREMIER MOBILITY UK LTD,Housing Revenue Account Capital,4108.69,Deferred Charges/Grant Payments,2324P11_CR00674,167259
Sandwell Metropolitan Borough Council,http://www.sandwell.gov.uk/info/200202/performance_and_spending/1079/payments_over_500,01-Feb-2024,Housing Revenue Account Capital,PREMIER MOBILITY UK LTD,Housing Revenue Account Capital,5124.79,Deferred Charges/Grant Payments,2324P11_CR00675,167259
Sandwell Metropolitan Borough Council,http://www.sandwell.gov.uk/info/200202/performance_and_spending/1079/payments_over_500,01-Feb-2024,Housing Revenue Account Capital,PREMIER MOBILITY UK LTD,Housing Revenue Account Capital,4602.95,Deferred Charges/Grant Payments,2324P11_CR00676,167259
Sandwell Metropolitan Borough Council,http://www.sandwell.gov.uk/info/200202/performance_and_spending/1079/payments_over_500,01-Feb-2024,Housing Revenue Account Capital,RIDGE & PARTNERS LLP,Housing Revenue Account Capital,2153.38,CIP - Infrastructure,2324P11_CR00677,134994
Sandwell Metropolitan Borough Council,http://www.sandwell.gov.uk/info/200202/performance_and_spending/1079/payments_over_500,01-Feb-2024,Housing Revenue Account Capital,RIDGE & PARTNERS LLP,Housing Revenue Account Capital,2080.00,"CIP - New Construction,Conversion, Enhancement & Reno",2324P11_CR00678,134994
Sandwell Metropolitan Borough Council,http://www.sandwell.gov.uk/info/200202/performance_and_spending/1079/payments_over_500,01-Feb-2024,Housing Revenue Account Capital,SAVILLS UK LTD,Housing Revenue Account Capital,960.00,Externally Purchased Professional Services ,2324P11_CR00679,122760
Sandwell Metropolitan Borough Council,http://www.sandwell.gov.uk/info/200202/performance_and_spending/1079/payments_over_500,20-Feb-2024,Housing Revenue Account Capital,SEDDON CONSTRUCTION LIMITED,Housing Revenue Account Capital,1051634.21,"CIP - New Construction,Conversion, Enhancement & Reno",2324P11_CR00680,132999
Sandwell Metropolitan Borough Council,http://www.sandwell.gov.uk/info/200202/performance_and_spending/1079/payments_over_500,01-Feb-2024,Housing Revenue Account Capital,SELECT WINDOWS (HOME IMPROVEMENTS) LIMITED,Housing Revenue Account Capital,765.46,Contract Payments,2324P11_CR00681,42616
Sandwell Metropolitan Borough Council,http://www.sandwell.gov.uk/info/200202/performance_and_spending/1079/payments_over_500,01-Feb-2024,Housing Revenue Account Capital,SELECT WINDOWS (HOME IMPROVEMENTS) LIMITED,Housing Revenue Account Capital,555.68,Contract Payments,2324P11_CR00682,42616
Sandwell Metropolitan Borough Council,http://www.sandwell.gov.uk/info/200202/performance_and_spending/1079/payments_over_500,01-Feb-2024,Housing Revenue Account Capital,SELECT WINDOWS (HOME IMPROVEMENTS) LIMITED,Housing Revenue Account Capital,700.57,Contract Payments,2324P11_CR00683,42616
Sandwell Metropolitan Borough Council,http://www.sandwell.gov.uk/info/200202/performance_and_spending/1079/payments_over_500,01-Feb-2024,Housing Revenue Account Capital,SELECT WINDOWS (HOME IMPROVEMENTS) LIMITED,Housing Revenue Account Capital,678.19,Contract Payments,2324P11_CR00684,42616
Sandwell Metropolitan Borough Council,http://www.sandwell.gov.uk/info/200202/performance_and_spending/1079/payments_over_500,01-Feb-2024,Housing Revenue Account Capital,SELECT WINDOWS (HOME IMPROVEMENTS) LIMITED,Housing Revenue Account Capital,811.12,Contract Payments,2324P11_CR00685,42616
Sandwell Metropolitan Borough Council,http://www.sandwell.gov.uk/info/200202/performance_and_spending/1079/payments_over_500,01-Feb-2024,Housing Revenue Account Capital,SELECT WINDOWS (HOME IMPROVEMENTS) LIMITED,Housing Revenue Account Capital,618.25,Contract Payments,2324P11_CR00686,42616
Sandwell Metropolitan Borough Council,http://www.sandwell.gov.uk/info/200202/performance_and_spending/1079/payments_over_500,01-Feb-2024,Housing Revenue Account Capital,SELECT WINDOWS (HOME IMPROVEMENTS) LIMITED,Housing Revenue Account Capital,799.39,Contract Payments,2324P11_CR00687,42616
Sandwell Metropolitan Borough Council,http://www.sandwell.gov.uk/info/200202/performance_and_spending/1079/payments_over_500,01-Feb-2024,Housing Revenue Account Capital,SELECT WINDOWS (HOME IMPROVEMENTS) LIMITED,Housing Revenue Account Capital,801.50,Contract Payments,2324P11_CR00688,42616
Sandwell Metropolitan Borough Council,http://www.sandwell.gov.uk/info/200202/performance_and_spending/1079/payments_over_500,01-Feb-2024,Housing Revenue Account Capital,SELECT WINDOWS (HOME IMPROVEMENTS) LIMITED,Housing Revenue Account Capital,517.92,Contract Payments,2324P11_CR00689,42616
Sandwell Metropolitan Borough Council,http://www.sandwell.gov.uk/info/200202/performance_and_spending/1079/payments_over_500,01-Feb-2024,Housing Revenue Account Capital,SELECT WINDOWS (HOME IMPROVEMENTS) LIMITED,Housing Revenue Account Capital,964.34,Contract Payments,2324P11_CR00690,42616
Sandwell Metropolitan Borough Council,http://www.sandwell.gov.uk/info/200202/performance_and_spending/1079/payments_over_500,01-Feb-2024,Housing Revenue Account Capital,SELECT WINDOWS (HOME IMPROVEMENTS) LIMITED,Housing Revenue Account Capital,835.87,Contract Payments,2324P11_CR00691,42616
Sandwell Metropolitan Borough Council,http://www.sandwell.gov.uk/info/200202/performance_and_spending/1079/payments_over_500,01-Feb-2024,Housing Revenue Account Capital,SELECT WINDOWS (HOME IMPROVEMENTS) LIMITED,Housing Revenue Account Capital,1373.52,Contract Payments,2324P11_CR00692,42616
Sandwell Metropolitan Borough Council,http://www.sandwell.gov.uk/info/200202/performance_and_spending/1079/payments_over_500,01-Feb-2024,Housing Revenue Account Capital,SELECT WINDOWS (HOME IMPROVEMENTS) LIMITED,Housing Revenue Account Capital,765.46,Contract Payments,2324P11_CR00693,42616
Sandwell Metropolitan Borough Council,http://www.sandwell.gov.uk/info/200202/performance_and_spending/1079/payments_over_500,01-Feb-2024,Housing Revenue Account Capital,SELECT WINDOWS (HOME IMPROVEMENTS) LIMITED,Housing Revenue Account Capital,3977.91,Contract Payments,2324P11_CR00694,42616
Sandwell Metropolitan Borough Council,http://www.sandwell.gov.uk/info/200202/performance_and_spending/1079/payments_over_500,01-Feb-2024,Housing Revenue Account Capital,SELECT WINDOWS (HOME IMPROVEMENTS) LIMITED,Housing Revenue Account Capital,2907.48,Contract Payments,2324P11_CR00695,42616
Sandwell Metropolitan Borough Council,http://www.sandwell.gov.uk/info/200202/performance_and_spending/1079/payments_over_500,01-Feb-2024,Housing Revenue Account Capital,SELECT WINDOWS (HOME IMPROVEMENTS) LIMITED,Housing Revenue Account Capital,549.16,Contract Payments,2324P11_CR00696,42616
Sandwell Metropolitan Borough Council,http://www.sandwell.gov.uk/info/200202/performance_and_spending/1079/payments_over_500,22-Feb-2024,Housing Revenue Account Capital,SWG CONSTRUCTION (BUILD & RENOVATE) LTD,Housing Revenue Account Capital,343018.45,"CIP - New Construction,Conversion, Enhancement & Reno",2324P11_CR00697,166518
Sandwell Metropolitan Borough Council,http://www.sandwell.gov.uk/info/200202/performance_and_spending/1079/payments_over_500,09-Feb-2024,Housing Revenue Account Capital,SYCAMORE WINDOWS & CONSERVATORIES LIMITED,Housing Revenue Account Capital,193249.35,"CIP - New Construction,Conversion, Enhancement & Reno",2324P11_CR00698,145272
Sandwell Metropolitan Borough Council,http://www.sandwell.gov.uk/info/200202/performance_and_spending/1079/payments_over_500,01-Feb-2024,Housing Revenue Account Capital,VINCI CONSTRUCTION LTD,Housing Revenue Account Capital,131639.86,Deferred Charges/Grant Payments,2324P11_CR00699,36361
Sandwell Metropolitan Borough Council,http://www.sandwell.gov.uk/info/200202/performance_and_spending/1079/payments_over_500,27-Feb-2024,Housing Revenue Account Capital,WELCH AND PHILLIPS BUILDING CONTRACTORS LTD,Housing Revenue Account Capital,96481.31,"CIP - New Construction,Conversion, Enhancement & Reno",2324P11_CR00700,167124
Sandwell Metropolitan Borough Council,http://www.sandwell.gov.uk/info/200202/performance_and_spending/1079/payments_over_500,01-Feb-2024,Housing Revenue Account Capital,WESSEX LIFT CO LTD,Housing Revenue Account Capital,9322.00,Deferred Charges/Grant Payments,2324P11_CR00701,01095737
Sandwell Metropolitan Borough Council,http://www.sandwell.gov.uk/info/200202/performance_and_spending/1079/payments_over_500,01-Feb-2024,Housing Revenue Account Capital,WESSEX LIFT CO LTD,Housing Revenue Account Capital,6783.00,Deferred Charges/Grant Payments,2324P11_CR00702,01095737
Sandwell Metropolitan Borough Council,http://www.sandwell.gov.uk/info/200202/performance_and_spending/1079/payments_over_500,01-Feb-2024,Housing Revenue Account Capital,WESSEX LIFT CO LTD,Housing Revenue Account Capital,550.00,Deferred Charges/Grant Payments,2324P11_CR00703,01095737
Sandwell Metropolitan Borough Council,http://www.sandwell.gov.uk/info/200202/performance_and_spending/1079/payments_over_500,08-Feb-2024,Housing Revenue Account Capital,REDACTED PERSONAL DATA,Housing Revenue Account Capital,8100.00,Deferred Charges/Grant Payments,2324P11_CR00704,REDACTED PERSONAL DATA
Sandwell Metropolitan Borough Council,http://www.sandwell.gov.uk/info/200202/performance_and_spending/1079/payments_over_500,14-Feb-2024,Housing Revenue Account Capital,JOHN GILLESPIE CONTRACTORS LTD,Housing Revenue Account Capital,815.00,Deferred Charges/Grant Payments,2324P11_CR00705,82566
Sandwell Metropolitan Borough Council,http://www.sandwell.gov.uk/info/200202/performance_and_spending/1079/payments_over_500,01-Feb-2024,Housing Revenue Account Capital,PR PROPERTY MAINTENANCE,Housing Revenue Account Capital,670.45,Deferred Charges/Grant Payments,2324P11_CR00706,33836
Sandwell Metropolitan Borough Council,http://www.sandwell.gov.uk/info/200202/performance_and_spending/1079/payments_over_500,07-Feb-2024,Housing Revenue Account Capital,LIFT & ENGINEERING SERVICES LTD,Housing Revenue Account Capital,1085.93,"CIP - New Construction,Conversion, Enhancement & Reno",2324P11_CR00707,77003962
Sandwell Metropolitan Borough Council,http://www.sandwell.gov.uk/info/200202/performance_and_spending/1079/payments_over_500,21-Feb-2024,Individual School Budgets With Inclusion,5 STAR DAY NURSERY - OLDBURY,Individual School Budgets With Inclusion,11714.87,Grant Payments,2324P11_CR00708,120730
Sandwell Metropolitan Borough Council,http://www.sandwell.gov.uk/info/200202/performance_and_spending/1079/payments_over_500,21-Feb-2024,Individual School Budgets With Inclusion,5 STAR DAY NURSERY LIMITED,Individual School Budgets With Inclusion,7256.30,Grant Payments,2324P11_CR00709,105382
Sandwell Metropolitan Borough Council,http://www.sandwell.gov.uk/info/200202/performance_and_spending/1079/payments_over_500,21-Feb-2024,Individual School Budgets With Inclusion,ABC DAY NURSERY & PRE SCHOOL LTD,Individual School Budgets With Inclusion,15571.11,Grant Payments,2324P11_CR00710,01472823
Sandwell Metropolitan Borough Council,http://www.sandwell.gov.uk/info/200202/performance_and_spending/1079/payments_over_500,21-Feb-2024,Individual School Budgets With Inclusion,ADVENTURE QUEST (GREAT BRIDGE) LTD,Individual School Budgets With Inclusion,8323.72,Grant Payments,2324P11_CR00711,153563
Sandwell Metropolitan Borough Council,http://www.sandwell.gov.uk/info/200202/performance_and_spending/1079/payments_over_500,21-Feb-2024,Individual School Budgets With Inclusion,AL KAHIR SCHOOL,Individual School Budgets With Inclusion,4823.99,Grant Payments,2324P11_CR00712,128728
Sandwell Metropolitan Borough Council,http://www.sandwell.gov.uk/info/200202/performance_and_spending/1079/payments_over_500,21-Feb-2024,Individual School Budgets With Inclusion,BABY STEPS DAY CARE,Individual School Budgets With Inclusion,3023.46,Grant Payments,2324P11_CR00713,165672
Sandwell Metropolitan Borough Council,http://www.sandwell.gov.uk/info/200202/performance_and_spending/1079/payments_over_500,21-Feb-2024,Individual School Budgets With Inclusion,BANANA MOON DAY NURSERY,Individual School Budgets With Inclusion,10173.44,Grant Payments,2324P11_CR00714,124220
Sandwell Metropolitan Borough Council,http://www.sandwell.gov.uk/info/200202/performance_and_spending/1079/payments_over_500,21-Feb-2024,Individual School Budgets With Inclusion,BEEHIVE WB LTD,Individual School Budgets With Inclusion,604.69,Grant Payments,2324P11_CR00715,164780
Sandwell Metropolitan Borough Council,http://www.sandwell.gov.uk/info/200202/performance_and_spending/1079/payments_over_500,21-Feb-2024,Individual School Budgets With Inclusion,BOOKWORMS DAYCARE LIMITED,Individual School Budgets With Inclusion,14044.53,Grant Payments,2324P11_CR00716,114741
Sandwell Metropolitan Borough Council,http://www.sandwell.gov.uk/info/200202/performance_and_spending/1079/payments_over_500,21-Feb-2024,Individual School Budgets With Inclusion,BRIGHT LIGHTS DAY NURSERY,Individual School Budgets With Inclusion,14140.17,Grant Payments,2324P11_CR00717,89877
Sandwell Metropolitan Borough Council,http://www.sandwell.gov.uk/info/200202/performance_and_spending/1079/payments_over_500,21-Feb-2024,Individual School Budgets With Inclusion,BUSY BEE NURSERY,Individual School Budgets With Inclusion,14960.48,Grant Payments,2324P11_CR00718,01222577
Sandwell Metropolitan Borough Council,http://www.sandwell.gov.uk/info/200202/performance_and_spending/1079/payments_over_500,21-Feb-2024,Individual School Budgets With Inclusion,CAP DAY NURSERY,Individual School Budgets With Inclusion,4713.39,Grant Payments,2324P11_CR00719,51154
Sandwell Metropolitan Borough Council,http://www.sandwell.gov.uk/info/200202/performance_and_spending/1079/payments_over_500,21-Feb-2024,Individual School Budgets With Inclusion,CONFEDERATION OF BANGLADESHI ORGANISATIONS (CBO) LIMITED,Individual School Budgets With Inclusion,1571.13,Grant Payments,2324P11_CR00720,10034
Sandwell Metropolitan Borough Council,http://www.sandwell.gov.uk/info/200202/performance_and_spending/1079/payments_over_500,21-Feb-2024,Individual School Budgets With Inclusion,CONIFERS DAY NURSERY LTD,Individual School Budgets With Inclusion,9556.86,Grant Payments,2324P11_CR00721,131957
Sandwell Metropolitan Borough Council,http://www.sandwell.gov.uk/info/200202/performance_and_spending/1079/payments_over_500,21-Feb-2024,Individual School Budgets With Inclusion,DAFFODILS NURSERY LTD,Individual School Budgets With Inclusion,10997.91,Grant Payments,2324P11_CR00722,120066
Sandwell Metropolitan Borough Council,http://www.sandwell.gov.uk/info/200202/performance_and_spending/1079/payments_over_500,21-Feb-2024,Individual School Budgets With Inclusion,FAIRYTALES NURSERY LTD,Individual School Budgets With Inclusion,12823.27,Grant Payments,2324P11_CR00723,106247
Sandwell Metropolitan Borough Council,http://www.sandwell.gov.uk/info/200202/performance_and_spending/1079/payments_over_500,21-Feb-2024,Individual School Budgets With Inclusion,FATIMA DAY NURSERY,Individual School Budgets With Inclusion,10173.44,Grant Payments,2324P11_CR00724,131343
Sandwell Metropolitan Borough Council,http://www.sandwell.gov.uk/info/200202/performance_and_spending/1079/payments_over_500,21-Feb-2024,Individual School Budgets With Inclusion,FIREFLIES NURSERY LIMITED,Individual School Budgets With Inclusion,16955.73,Grant Payments,2324P11_CR00725,124120
Sandwell Metropolitan Borough Council,http://www.sandwell.gov.uk/info/200202/performance_and_spending/1079/payments_over_500,21-Feb-2024,Individual School Budgets With Inclusion,FIRST STEPS DAY NURSERY,Individual School Budgets With Inclusion,10358.41,Grant Payments,2324P11_CR00726,51155
Sandwell Metropolitan Borough Council,http://www.sandwell.gov.uk/info/200202/performance_and_spending/1079/payments_over_500,21-Feb-2024,Individual School Budgets With Inclusion,FIRST STEPS OLDBURY,Individual School Budgets With Inclusion,7090.58,Grant Payments,2324P11_CR00727,118886
Sandwell Metropolitan Borough Council,http://www.sandwell.gov.uk/info/200202/performance_and_spending/1079/payments_over_500,21-Feb-2024,Individual School Budgets With Inclusion,GENIUS GEMS,Individual School Budgets With Inclusion,24046.31,Grant Payments,2324P11_CR00728,160606
Sandwell Metropolitan Borough Council,http://www.sandwell.gov.uk/info/200202/performance_and_spending/1079/payments_over_500,21-Feb-2024,Individual School Budgets With Inclusion,GNG NURSERY,Individual School Budgets With Inclusion,12331.44,Grant Payments,2324P11_CR00729,114805
Sandwell Metropolitan Borough Council,http://www.sandwell.gov.uk/info/200202/performance_and_spending/1079/payments_over_500,21-Feb-2024,Individual School Budgets With Inclusion,HAPPY DAYS NURSERY (GREETS GREEN),Individual School Budgets With Inclusion,7227.20,Grant Payments,2324P11_CR00730,125840
Sandwell Metropolitan Borough Council,http://www.sandwell.gov.uk/info/200202/performance_and_spending/1079/payments_over_500,21-Feb-2024,Individual School Budgets With Inclusion,HUMPTY DUMPTYS DAY NURSERY,Individual School Budgets With Inclusion,16647.44,Grant Payments,2324P11_CR00731,08510771
Sandwell Metropolitan Borough Council,http://www.sandwell.gov.uk/info/200202/performance_and_spending/1079/payments_over_500,21-Feb-2024,Individual School Budgets With Inclusion,JUNIPER'S PRESCHOOL,Individual School Budgets With Inclusion,14960.48,Grant Payments,2324P11_CR00732,154579
Sandwell Metropolitan Borough Council,http://www.sandwell.gov.uk/info/200202/performance_and_spending/1079/payments_over_500,21-Feb-2024,Individual School Budgets With Inclusion,KANGAROO POUCH AT GREAT BRIDGE,Individual School Budgets With Inclusion,12331.44,Grant Payments,2324P11_CR00733,129771
Sandwell Metropolitan Borough Council,http://www.sandwell.gov.uk/info/200202/performance_and_spending/1079/payments_over_500,21-Feb-2024,Individual School Budgets With Inclusion,KANGAROO POUCH AT TIVIDALE,Individual School Budgets With Inclusion,9372.72,Grant Payments,2324P11_CR00734,113715
Sandwell Metropolitan Borough Council,http://www.sandwell.gov.uk/info/200202/performance_and_spending/1079/payments_over_500,21-Feb-2024,Individual School Budgets With Inclusion,KANGAROO POUCH CHARLEMONT,Individual School Budgets With Inclusion,4713.39,Grant Payments,2324P11_CR00735,117283
Sandwell Metropolitan Borough Council,http://www.sandwell.gov.uk/info/200202/performance_and_spending/1079/payments_over_500,21-Feb-2024,Individual School Budgets With Inclusion,KANGAROO POUCH LIMITED,Individual School Budgets With Inclusion,8632.01,Grant Payments,2324P11_CR00736,106981
Sandwell Metropolitan Borough Council,http://www.sandwell.gov.uk/info/200202/performance_and_spending/1079/payments_over_500,21-Feb-2024,Individual School Budgets With Inclusion,LAVENDER FARM DAY NURSERY,Individual School Budgets With Inclusion,38844.03,Grant Payments,2324P11_CR00737,65596
Sandwell Metropolitan Borough Council,http://www.sandwell.gov.uk/info/200202/performance_and_spending/1079/payments_over_500,21-Feb-2024,Individual School Budgets With Inclusion,LILLIPUT LODGE CHILDRENS DAY NURSERY,Individual School Budgets With Inclusion,12212.64,Grant Payments,2324P11_CR00738,2980
Sandwell Metropolitan Borough Council,http://www.sandwell.gov.uk/info/200202/performance_and_spending/1079/payments_over_500,21-Feb-2024,Individual School Budgets With Inclusion,LITTLE ACADEMY NURSERY,Individual School Budgets With Inclusion,4579.74,Grant Payments,2324P11_CR00739,81904
Sandwell Metropolitan Borough Council,http://www.sandwell.gov.uk/info/200202/performance_and_spending/1079/payments_over_500,21-Feb-2024,Individual School Budgets With Inclusion,LITTLE ANGELS DAY NURSERY LIMITED,Individual School Budgets With Inclusion,5549.15,Grant Payments,2324P11_CR00740,10207
Sandwell Metropolitan Borough Council,http://www.sandwell.gov.uk/info/200202/performance_and_spending/1079/payments_over_500,21-Feb-2024,Individual School Budgets With Inclusion,LITTLE EXPLORERS (WEST MIDLANDS) LTD,Individual School Budgets With Inclusion,25587.74,Grant Payments,2324P11_CR00741,114804
Sandwell Metropolitan Borough Council,http://www.sandwell.gov.uk/info/200202/performance_and_spending/1079/payments_over_500,21-Feb-2024,Individual School Budgets With Inclusion,LITTLE LEARNERS LTD,Individual School Budgets With Inclusion,14273.82,Grant Payments,2324P11_CR00742,01424133
Sandwell Metropolitan Borough Council,http://www.sandwell.gov.uk/info/200202/performance_and_spending/1079/payments_over_500,21-Feb-2024,Individual School Budgets With Inclusion,LITTLE LEGEND NURSERIES LTD,Individual School Budgets With Inclusion,7113.74,Grant Payments,2324P11_CR00743,117890
Sandwell Metropolitan Borough Council,http://www.sandwell.gov.uk/info/200202/performance_and_spending/1079/payments_over_500,21-Feb-2024,Individual School Budgets With Inclusion,LITTLE SAPLINGS CHILDCARE CENTRES,Individual School Budgets With Inclusion,7938.21,Grant Payments,2324P11_CR00744,131043
Sandwell Metropolitan Borough Council,http://www.sandwell.gov.uk/info/200202/performance_and_spending/1079/payments_over_500,21-Feb-2024,Individual School Budgets With Inclusion,LITTLE STEPPERS,Individual School Budgets With Inclusion,8632.01,Grant Payments,2324P11_CR00745,120240
Sandwell Metropolitan Borough Council,http://www.sandwell.gov.uk/info/200202/performance_and_spending/1079/payments_over_500,21-Feb-2024,Individual School Budgets With Inclusion,LITTLE VALERS PRE SCHOOL,Individual School Budgets With Inclusion,14512.61,Grant Payments,2324P11_CR00746,99107
Sandwell Metropolitan Borough Council,http://www.sandwell.gov.uk/info/200202/performance_and_spending/1079/payments_over_500,21-Feb-2024,Individual School Budgets With Inclusion,LITTLE WENDY HOUSE DAY NURSERY,Individual School Budgets With Inclusion,15784.24,Grant Payments,2324P11_CR00747,91544
Sandwell Metropolitan Borough Council,http://www.sandwell.gov.uk/info/200202/performance_and_spending/1079/payments_over_500,21-Feb-2024,Individual School Budgets With Inclusion,LOLA BELLES PRIVATE DAY NURSERY,Individual School Budgets With Inclusion,11907.32,Grant Payments,2324P11_CR00748,89271
Sandwell Metropolitan Borough Council,http://www.sandwell.gov.uk/info/200202/performance_and_spending/1079/payments_over_500,21-Feb-2024,Individual School Budgets With Inclusion,MINI MONKEYS LTD,Individual School Budgets With Inclusion,12023.15,Grant Payments,2324P11_CR00749,114818
Sandwell Metropolitan Borough Council,http://www.sandwell.gov.uk/info/200202/performance_and_spending/1079/payments_over_500,21-Feb-2024,Individual School Budgets With Inclusion,MINNS LIMITED,Individual School Budgets With Inclusion,9248.58,Grant Payments,2324P11_CR00750,120067
Sandwell Metropolitan Borough Council,http://www.sandwell.gov.uk/info/200202/performance_and_spending/1079/payments_over_500,21-Feb-2024,Individual School Budgets With Inclusion,MOORLANDS LITTLE LEARNERS PLAYGROUP,Individual School Budgets With Inclusion,10481.72,Grant Payments,2324P11_CR00751,46390
Sandwell Metropolitan Borough Council,http://www.sandwell.gov.uk/info/200202/performance_and_spending/1079/payments_over_500,21-Feb-2024,Individual School Budgets With Inclusion,N & K VARMA LIMITED T/A (KIDDIES PLAYHOUSE TIPTON),Individual School Budgets With Inclusion,10481.72,Grant Payments,2324P11_CR00752,26124
Sandwell Metropolitan Borough Council,http://www.sandwell.gov.uk/info/200202/performance_and_spending/1079/payments_over_500,21-Feb-2024,Individual School Budgets With Inclusion,OUR LADY AND ST HUBERTS CATHOLIC PRIMARY SCHOOL    ,Individual School Budgets With Inclusion,16647.44,Grant Payments,2324P11_CR00753,61053
Sandwell Metropolitan Borough Council,http://www.sandwell.gov.uk/info/200202/performance_and_spending/1079/payments_over_500,21-Feb-2024,Individual School Budgets With Inclusion,PERRYFIELDS PRE SCHOOL,Individual School Budgets With Inclusion,14624.63,Grant Payments,2324P11_CR00754,18879
Sandwell Metropolitan Borough Council,http://www.sandwell.gov.uk/info/200202/performance_and_spending/1079/payments_over_500,21-Feb-2024,Individual School Budgets With Inclusion,PLAYHOUSE DAY NURSERY,Individual School Budgets With Inclusion,4007.72,Grant Payments,2324P11_CR00755,01586669
Sandwell Metropolitan Borough Council,http://www.sandwell.gov.uk/info/200202/performance_and_spending/1079/payments_over_500,21-Feb-2024,Individual School Budgets With Inclusion,PRECIOUS TIMES DAY NURSERY,Individual School Budgets With Inclusion,11907.32,Grant Payments,2324P11_CR00756,165946
